{"text_format":"1","workbook":"xlsx","n_sheets":11,"sheets":["How to input data","Data set info.","Field Survey","Laboratory analysis","Results","Remarks","List","Code","Check(Macro programs)","Check(Manual)","CheckData"],"not_rendered":{"charts":0,"images":1,"macros":1,"external_links":0,"defined_names":2,"comments":0,"pivot_tables":0},"unopened":[],"bounds":{"document_bytes":16777216,"sheet_cells":100000,"rows_first":2000,"rows_last":500,"rows_between":2000,"halvings":0,"cell_chars":16384,"cell_head_chars":4096},"cells_cut":0,"cells_raw":0,"read":"whole","date_system":"1900"}

{"sheet":"How to input data","index":0,"n_rows":137,"n_cols":6,"rows_kept":137,"cut":false,"hidden":false,"merged":[[48,2,48,4],[3,2,3,4],[4,2,4,4],[5,2,5,4],[6,2,6,4],[7,2,7,4],[8,2,8,4],[9,2,9,4],[42,2,42,4],[43,3,43,4],[44,3,44,4],[47,2,47,4],[49,2,49,4],[50,3,50,4],[51,3,51,4],[52,3,52,4],[56,2,56,4],[55,2,55,4],[72,3,72,4],[59,2,59,4],[60,2,60,4],[61,2,61,4],[64,3,64,4],[65,3,65,4],[66,3,66,4],[67,3,67,4],[68,3,68,4],[69,3,69,4],[70,3,70,4],[71,3,71,4],[88,3,88,4],[73,3,73,4],[76,2,76,4],[77,2,77,4],[80,2,80,4],[81,2,81,4],[82,2,82,4],[83,2,83,4],[84,2,84,4],[85,2,85,4],[86,2,86,4],[87,3,87,4],[112,2,112,4],[89,3,89,4],[92,2,92,4],[93,2,93,4],[94,2,94,4],[95,2,95,4],[96,2,96,4],[97,2,97,4],[98,2,98,4],[109,2,109,4],[110,2,110,4],[111,2,111,4],[136,2,136,4],[113,2,113,4],[114,2,114,4],[115,2,115,4],[116,3,116,4],[117,3,117,4],[118,3,118,4],[119,2,119,4],[122,2,122,4],[123,2,123,4],[126,2,126,4],[127,3,127,4]]}
[null,"How to input data"]
[]
[null,"1. Introduction"]
[null,null,"This file was created for the purpose of compiling monitoring data for microplastics at the ocean surface."]
[null,null,"The data items are those that should be reported in the Guidelines for Harmonizing Ocean Surface Microplastic Monitoring Methods (Version 1.2). ",null,null,"\n"]
[null,null,"This Data Entry Form provides the format that can be used for registering data in the Marine Plastic Litter Mapping Database. "]
[null,null,"As a general rule, the data provider is requested to enter data into each of the 5 sheets: \"Data Set Info.,\" \"Field Survey,\" \"Laboratory Analysis,\" \"Results\" and \"Remarks\".",null,null,"\n"]
[null,null,"In the file containing the macro program, the data entered above are automatically listed on the \"List\" sheet and converted to a format in which they can be registered in the database. ",null,null,"\n"]
[null,null,"The software also has a data-checking function."]
[null,null,"The procedure from data entry to registration in the database is as follows."]
[]
[]
[]
[]
[]
[]
[]
[]
[]
[]
[]
[]
[]
[]
[]
[]
[]
[]
[]
[]
[]
[]
[]
[]
[]
[]
[]
[]
[]
[]
[null,"2. Entering the Data"]
[null,"2-1. \"Data Set Info.\"sheet"]
[null,null,"As with all data you enter, enter the value in the blue cell."]
[null,null,"Note 1:","If you want to enter multiple survey data items, please use a separate \"Data Set Info.\" sheet for each individual data input item.",null,"\n"]
[null,null,"Note 2:","Be sure to enter \"Data Owner/Observer (Name)\". If you fail to enter it, the listing and data check cannot be performed correctly."]
[]
[null,"2-2. \"Field Survey\" sheet and \"Laboratory Analysis\" sheet"]
[null,null,"Please fill in the green or blue cells."]
[null,null,"If you want to enter the same value for all samples, please enter it in the green cell."]
[null,null,"If you want to enter different values for each sample, please enter them in the blue cells."]
[null,null,"Note 3:","If a value is entered in both the green and blue cells, samples with a value entered in the blue cell will have that value, and samples without a value in the blue cell will have the value in the green cell. ",null,"\n"]
[null,null,"Note 4:","Be sure to enter values for all samples in the \"Sample name/ID\" field on the \"Field Survey\" sheet. If you fail to enter them, the listing and data check cannot be performed correctly.",null,"\n"]
[null,null,null,"If a name or ID is entered into  \"Sample ID/Name\" on the \"Field Survey\" sheet, the same ID or name will be automatically displayed on the \"Laboratory Analysis,\" \"Results\" and \"Remarks\" sheets.",null,"\n"]
[]
[null,"2-3. \"Results\" sheet"]
[null,null,"Please fill in the blue cells."]
[null,null,"The white cells between the blue cells automatically display the total value."]
[]
[null,"2-4. \"Remarks\" sheet"]
[null,null,"Please fill in the green or blue cells."]
[null,null,"If you want to enter the same value for all samples, please enter it into the green cell."]
[null,null,"In the blue cells, enter the values you want to add for each individual sample in addition to the values you entered in the green cells.",null,null,"\n"]
[]
[null,"2-5. Precautions in data entry"]
[null,null,"Note 5:","The data to be entered must be half-width alphanumeric characters. Please do not use double-byte characters. Also, please use English as a common language, as it will be registered in a database intended for worldwide distribution.",null,"\n"]
[null,null,"Note 6:","Please enter decimal points as \".\" (period). Please do not use \",\" (comma) as a decimal point."]
[null,null,"Note 7:","The meanings of the symbols in the \"Category\" column of the \"Field Survey\", \"Laboratory Analysis\" and \"Results\" sheets are as follows.",null,"\n"]
[null,null,null,"・FA, FB and FC represent “fundamental” items. The “fundamental” items are the minimum requirement to identify the abundance of microplastics, the sampling time and location, and microplastic density, which can be displayed in any of the following four units: number of particles/m3 or km2, weight/m3 or km2.",null,"\n"]
[null,null,null,"　FA: All of the “FA” items are necessary for displaying density."]
[null,null,null,"　FB: At least one (1) item in “FB” is necessary for displaying density. The symbol * (asterisk) with FB indicates that some additional items from among the “FC” items are necessary for calculating microplastic density.",null,"\n"]
[null,null,null,"・The letter “E” represents “essential” items, which are the minimum requirements to make survey results comparable.",null,"\n"]
[null,null,null,"・The items with no letter in the \" Category \" column are those that may be obtained optionally, depending on the specific purpose of individual surveys or instrument availability.",null,"\n"]
[null,null,null,"The Guidelines recommend reporting all obtained data, including metadata."]
[null,null,null,"If the format of the data you want to enter does not match the style specified in the input field, please enter a remark to that effect in the\"Remarks\"sheet together with the item's name.",null,"\n"]
[]
[null,"3. Listing the Data"]
[null,null,"After you have entered all data that can be entered, press the \"1. Make list\" button on the \"List\" sheet."]
[null,null,"The data entered into the five sheets of \"Data Set Info.,\" \"Field Survey,\" \"Laboratory Analysis,\" \"Results,\" and \"Remarks\" are integrated to create a list that matches the items in the database.",null,null,"\n"]
[]
[null,"4. Formatting"]
[null,null,"Please press the \"2. Format\" button on the \"List\" sheet to convert the data format into one that can be stored in the database."]
[null,null,"Date data are converted to a YYYY-MM-DD format, and time data are converted to an hh:mm:ss format."]
[null,null,"Other numeric data are rounded to the number of significant digits specified by the database."]
[null,null,"If text data are entered in a date or time field, which requires a numerical value, a text message saying \"The item mon the left ust be numerical (or YYYY- MM-DD / hh:mm:ss)\" is displayed in red in the QC code cell to the right of it. Please correct it accordingly.",null,null,"\n"]
[null,null,"If the maximum number of characters specified in the database is exceeded, a text message saying \"The number of characters must be XXX or less.\" is displayed in red in the QC code column to the right of the item. Please correct it accordingly.",null,null,"\n"]
[null,null,"When correcting data, please be sure to correct the values in each data entry field of the \"Data Set Info.,\" \"Field Survey,\" \"Laboratory Analysis,\" \"Results\" and \"Remarks\" sheets.",null,null,"\n"]
[null,null,"After completing  correction of a data entry field in the \"Data Set Info.,\" \"Field Survey,\" \"Laboratory Analysis,\" \"Results\" or \"Remarks\" sheets, please click and run \"1. Make list\" and \"2. Format\" again.",null,null,"\n"]
[null,null,"Note 8:","Please do not modify the values in the \"List\" sheet directly."]
[null,null,null,"Please note that the results of correcting data in the \"List\" sheet are not reflected in the \"Data Set Info.,\" \"Field Survey,\" \"Laboratory Analysis,\" \"Results\" or \"Remarks\" sheets.",null,"\n"]
[null,null,null,"Also, if you execute \"1. Make list\" after correcting the data in the \"List\" sheet, the data will return to their uncorrectled state in the \"List\" sheet as well.",null,"\n"]
[]
[null,"5. Data Checking"]
[null,null,"Data checking is divided into 3 steps, which are \"3. Data check 1,\" \"4. Data check 2,\" and other visual checks (\"5. QC code\")."]
[null,null,"Please refer to \"Marine Plastic Litter Mapping Database, Data Check Manual ver. 2.0\" for details on the data check."]
[null,null,"\"3. Data check 1\" is for the items entered in the \"Data Set Info.,\" \"Field Survey\" and \"Laboratory Analysis\" sheets."]
[null,null,"\"4. Data check 2\" is basically for the items entered in the \"Results\" sheet."]
[null,null,"\"3. Data check 1\" and \"4. Data check 2\" check the contents and are able to automatically judge whether there are any errors or not.",null,null,"\n"]
[null,null,"First, please press the \"3. Data check 1\" button to execute this first, and then press the \"4. Data check 2\" button to execute that second.",null,null,"\n"]
[null,null,"When \"3. Data check 1\" and \"4. Data check 2\" are executed, a QC code other than 4 among the following is assigned to the QC code cell to the right of the checked data.",null,null,"\n"]
[]
[null,null,null,"QC code","Description"]
[null,null,null,0,"No errors"]
[null,null,null,1,"Logically improbable value"]
[null,null,null,2,"Values showing inconsistency between data"]
[null,null,null,3,"Deviated value compared to other existing data (values that have not been checked with the data provider）"]
[null,null,null,4,"Deviated value compared to other existing data (checked with the data provider, and value confirmed as an outlier）"]
[null,null,null,5,"Value added by the database administrator after converting units from provided data only"]
[null,null,null,6,"Value can be added by the data provider from other data items"]
[]
[null,null,"In addition, the check results are displayed on the \"Check\" sheet."]
[null,null,"Please refer to the check results shown on the \"Check\" sheet and correct the data as necessary."]
[null,null,"In addition, you can correct the data without executing \"3. Data check 1\" and without executing \"4. Data check 2\"."]
[null,null,"If the data have a QC code of 1, 2 or 3 on the right, but are not corrected for some reason, please enter the reason for that in \"Remarks\".",null,null,"\n"]
[null,null,"For data with QC Code 5 assigned to the right, if you as the data provider judge it as appropriate, please delete QC code 5 from the \"List\" sheet. It will be treated as data provided by the data provider.",null,null,"\n"]
[null,null,"When correcting data, please be sure to correct the values in each data entry field of the \"Data Set Info.,\" \"Field Survey,\" \"Laboratory Analysis,\" \"Results\" and \"Remarks\" sheets.",null,null,"\n"]
[null,null,"After completing the correction of a data entry field in the \"Data Set Info.,\" \"Field Survey,\" \"Laboratory analysis,\" \"Results\" or \"Remarks\" sheets, please click and run \"1. Make list\" and \"2. Format\" again",null,null,"\n"]
[null,null,"Note 10:","Please do not  modify the values in the \"List\" sheet directly."]
[null,null,null,"Please note that the results of correcting data in the \"List\" sheet are not reflected in the \"Data Set Info.,\" \"Field Survey,\" \"Laboratory Analysis,\" \"Results\" or \"Remarks\" sheets.",null,"\n"]
[null,null,null,"Also, if you execute \"1. Make list\" after correcting the data in the \"List\" sheet, the data will return to their uncorrectled state in the \"List\" sheet as well.",null,"\n"]
[null,null,"Please conduct visual checks, referring to the Check Manual as well, including data with a QC code of 1, 2 or 3 on the right field of \"3. Data check 1\" and \"4. Data check 2.\"",null,null,"\n"]
[]
[null,"6. Adding and Changing QC Codes"]
[null,null,"After completing all of the above checks, execute \"5. QC code.\" QC Code 0 is assigned to items among the input data that do not have a QC code to the right.",null,null,"\n"]
[null,null,"If you have no correction for a value assigned QC Code 3, change it to QC Code 4."]
[]
[null,"7. Assignment of Data Grades"]
[null,null,"When the \"6. Data grade\" button is pressed, a data grade of 2 to 4 will be assigned."]
[null,null,"Note 11:","Data grades are on a scale of 1 to 5. They indicate whether or not the data are harmonized in light of the Guidelines. Their meanings are as follows.",null,"\n"]
[]
[null,null,null,"Data Grade","Value Description"]
[null,null,null,1,"Initial data"]
[null,null,null,2,"Data with codes for quality control  (The abundance, sampling time and sampling location cannot be displayed on the map if no laboratory analysis has been performed since they are cruise summary data.)"]
[null,null,null,3,"A data record displaying the amount of microplastics present, the time and location of sampling on a map (with the necessary \"fundamental data items\" entered)"]
[null,null,null,4,"Data include all “essential data items”"]
[null,null,null,5,"A data record resulting from research conducted in a harmonized manner"]
[]
[null,null,"Data Grade 4 data records shall be checked by the database administrator to see if the values are in the range recommended by the Guidelines, and upgraded to Data Grade 5 if they are found suitable for that."]

{"sheet":"Data set info.","index":1,"n_rows":11,"n_cols":8,"rows_kept":11,"cut":false,"hidden":false,"merged":[]}
[]
[]
[null,null,"Data set information"]
[null,null,"Item",null,"Item ID","Data entry field","Description of data item","Example"]
[null,null,"Data contributer (Name)",null,"0004",null,"The name of the person who provided the relevant data record. If the data was registered from a published document and there is more than one author, the name of the first author is listed.","YAMADA, Taro"]
[null,null,"Organization","Name (Organization)","0009",null,"The name of the institution to which the person listed in #0004 belongs.","Ministry of the Environment Japan"]
[null,null,null,"Region (Location)","0006",null,"The name of the country or region where the organization to which the person listed in #0004 belongs is located. The country or region is the English name of ISO 3166-1.","Japan"]
[null,null,null,"Type of Organization (Location code)","0011",null,"Type of provider（1: University, 2: Other Research Institution, 3: Administrative Institution, 4: Educational Institution other than University, 5: NPO/NGO, 6: Other, respectively）","University"]
[null,null,"Reference","Refernce","0014",null,"Source of the material in which this data record appears.","MOEJ, Report on a survey of microplastics in coastal waters(2021)"]
[null,null,null,"DOI","0016",null,"DOI (Digital Object Identifier) for #0014.","https://doi.org/XXXXXXXXX"]
[null,null,"Creative commons license",null,"0018",null,"Terms of Use. You can check the meaning of symbol (https://creativecommons.org/)","CC BY 4.0"]

{"sheet":"Field Survey","index":2,"n_rows":60,"n_cols":10,"rows_kept":60,"cut":false,"hidden":false,"merged":[]}
[]
[]
[null,null,"Field Survey"]
[null,null,"Item",null,"Item ID","Description of data item","Example","Category","Data entry field"]
[null,null,null,null,null,null,null,null,"All samples","Each samples"]
[null,null,"Cruise name",null,"0012","Name of voyage when the sample was taken.","Japanese off-shore"]
[null,null,"Sampling ship","Ship name","0053","Name of vessel used for sample collection.","Kiraku-maru"]
[null,null,null,"Code","0055","Code of vessel used to collect the sample: either the vessel's registration number or the vessel's radio station call sign.","XXXXXX"]
[null,null,"Sampling equipment","Type of equipment","0056","Name of instrument used to collect the sample, including the name of the net, such as Newston net or Manta net, and methods other than net sampling, such as pump sampling or bulk sampling.","Neuston net","E"]
[null,null,null,"Model number and manufacturer (Equipment Model)","0058","Model of instrument used to collect the sample.","JMA Neuston net, No.5552"]
[null,null,null,"Shape of water intake","0060","Shape of sample collection port.","Rectangular","E"]
[null,null,null,"Width of water intake (Unit: m)","0062","Width of the sampling port, in meters.",0.75,"FC / E"]
[null,null,null,"Height of water intake (Unit: m)","0064","Height of sampling port, in meters. If the top of the sampling port is above the sea surface, this will be greater than the depth from the sea surface to the bottom of the sampling port. If the shape of the sampling port (#0060) is square or circular, this will be equal to the width of the sampling port (#0062).",0.75,"E"]
[null,null,null,"Area of water intake (Unit: m2)","0066","Height of sampling port, in meters. If the shape of the sampling port (#0060) is square or rectangular, the value is obtained by multiplying the width of the sampling port (#0062) by the height of the sampling port (#0064), and if the shape of the sampling port (#0060) is circular, the value is obtained as the area of a circle whose diameter is the width (#0062) or height (#0064) of the sampling port.",{"$f":"G13*G12","v":0.5625},"E"]
[null,null,null,"Length of net (Unit: m)","0068","Length from the opening of the net to the very end of the net. If a sample collection device such as a cod-end is attached to the very end of the net, its length is not included.",3,"E"]
[null,null,null,"Mesh openings size (Unit: mm)","0070","Length of the open part of each stitch in the net. This does not include the length of the part closed as the mesh thread. The unit is mm. The Guidelines recommend a length of about 0.3 mm.",0.35,"E"]
[null,null,null,"Measurement point of 'Mesh openings size' (Mesh Side or diagonal)","0072","Whether the length of the mesh eye opening (#0070) is the length of the sides of the mesh or the length of the diagonal.","One side","E"]
[null,null,null,"Model number and manufacturer of mesh (Mesh Model)","0074","Net model number, standard, etc.","net fabric nip"]
[null,null,"Sampling gear position","Sampling gear position","0094","Location of sampling device relative to the research vessel. The guideline recommends that the sampling device be installed forward of the vessel,  avoiding locations where towing waves are generated.","Side","E"]
[null,null,null,"Distance from vessel (Unit: m)","0096","Distance of sampling device from the research vessel, in meters.",3,"E"]
[null,null,"Sample name/ ID",null,"0029","Name of sample taken for monitoring, or its ID.","Towing No.99"]
[null,null,"Sampling time","Time difference from GMT (h)","0031","Time difference from GMT (Greenwich Mean Time) of the times entered in #0037 and #0039.","The above times -  9 h = GMT","E"]
[null,null,null,"Start date (YYYY-MM-DD)","0033","Start date of  sample collection.","2018-09-19","FA / E"]
[null,null,null,"Ene date (YYYY-MM-DD)","0035","Date of completion of sample collection.","2018-09-19","E"]
[null,null,null,"Start time (hh:mm:ss)","0037","Start time of sample collection.（24 hour notation）","15:00:00","E"]
[null,null,null,"End time (hh:mm:ss)","0039","End time of sample collection.（24 hour notation）","15:20:00","E"]
[null,null,null,"Season","0041","Season in which the sample was taken.","Summer","E"]
[null,null,"Sampling Location ","Sampling Location Name","0043","Name of water body from which the sample was taken.","Toyama Bay","E"]
[null,null,null,"Initial latitude (Latitude of start (decimal number))","0045","Latitudinal coordinates at the start of the sample collection, with positive values for north latitude and negative values for south latitude.",39.767222222222223,"FA / E"]
[null,null,null,"Initial longitude (Longitude of start (decimal number))","0047","Longitude coordinates at the start of the sample collection, with positive values for east longitude and negative values for west longitude.",8.0436111111111117,"FA / E"]
[null,null,null,"Final latitude (Latitude of end (decimal number))","0049","Latitudinal coordinates at the end of the sampling, with positive values for north latitude and negative values for south latitude.",39.756388888888885,"E"]
[null,null,null,"Final longitude (Longitude of endt (decimal number))","0051","Longitude coordinates at the end of the sample collection, with positive values for east longitude and negative values for west longitude.",8.0430555555555561,"E"]
[null,null,"Sampling distance","Sweep distance (Unit: m) (Sampling_Distance (m))","0076","Distance towed, in meters. The Guidelines recommend that it be determined by means of a filtration meter as the distance of seawater passing through the sampling port.",1100,"FC / E"]
[null,null,null,"Measuring method of the distance (Method of #76)","0078","Method of measureing the distance towed.  The Guidelines recommend calculating the distance from the value obtained with the 'Flow meter'.","Flow meter","E"]
[null,null,null,"Calculation formulas","0080","Formula used in determining the distance towed.","Rotation x Factor","E"]
[null,null,"Sampling area","Sweep area (Unit: m2) (Sampling Area (m2))","0082","Area of sea surface towed, in m2. In principle, this is obtained by multiplying the width of the sampling port (#00062) by the towing distance (#0076). The Guidelines recommend a minimum of 1,000 m2.",{"$f":"G12*G33","v":825},"FC / E"]
[null,null,null,"Calculation formulas","0084","Formula for the area of the sea surface swept in the tow (#0082).","Width of water intake x Sweep distance","E"]
[null,null,"Filtered water volume","Filtered water volume (Unit: m3)","0086","Volume of seawater filtered or sampled, in m3. For sea surface sampling with a tow net, it is determined from the width of the sampling opening (#00062) x distance of the tow net (#0076) x depth at the bottom of the sampling opening (#0100). The Guidelines recommend a filtration volume of 200-500 m3.",{"$f":"G12*G33*G42","v":309.375},"FC / E"]
[null,null,null,"Calculation formulas","0088","Formula for the amount of seawater filtered or collected (#0086).","Width of water intake x Sweep distance x Lower end depth","E"]
[null,null,"Sampling duration","(hh:mm:ss)","0090","Time from the start to the end of the sample collection. Time periods when the net was replaced due to clogging of the net, etc., are excluded from the time taken to obtain the sample","00:20:00","FC / E"]
[null,null,"Vessel speed ","(Unit: knot)","0092","Velocity with respect to the water at the time of sampling, measured in knots. The Guidelines recommend 1 to 3 knots, and 1-2 knots for small vessels.",3,"FC / E"]
[null,null,"Depth of the water intake","Depth (Unit: m) (Lower end depth (m))","0098","Average water depth at the bottom of the net mouth for net sampling, bottom of the sampling mouth for pump sampling, and depth at which the bucket is submerged for bulk sampling. The unit is m. If the sea surface layer was sampled, it means that the seawater was sampled from the sea surface to this water depth, and the value is equal to or less than the height of the sampling port (#0064). If the surface layer was excluded, it means that the seawater was sampled from the water depth obtained by subtracting the height of the sampling port (#0064) from this value to the water depth of this value.",{"$f":"0.75/2","v":0.375},"FC / E"]
[null,null,null,"Did depth change during sampling? (Lower end depth Change or not)","0102","Whether there was a change in the water depth (#0098) at the lower end of the sampling port when the sample was taken.","Changed"]
[null,null,"Tow direction","Tow direction","0104","Sailing direction of the research vessel during sample collection.","Same direction to Current. Reverse direction to Wind."]
[null,null,"Blank tests","Whether or not were conducted (Blank test: conducted or not)","0106","Whether or not a blank test was performed at the time of sample collection.","Conducted","E"]
[null,null," ","Results of the blank test (Unit: particles/ sample)","0108","Results of blank test at time of sample collection. Values are the number of particles obtained in the blank test.",1,"E"]
[null,null,"Weather, sea conditions, water quality","Wind direction","0110","Wind direction at the time of sample collection.","ESE","E"]
[null,null,null,"Wind speed (Unit: m/s)","0112","Wind speed at the time of sampling, in m/s.",1,"E"]
[null,null,null,"Significant wave height (Unit: m)","0114","Significant wave height at the time of sampling, in meters. Significant wave height is calculated by selecting 1/3 of the total number of waves observed, starting from the highest wave height, and averaging these wave heights. The guidelines recommend that samples be taken with a significant wave height of 0.5 m or less.",1,"E"]
[null,null,null,"Beaufort scale","0116","An integer from 0 to 12 that indicates the wind strength at the time of sampling, with smaller numbers indicating calmer conditions. The Guidelines recommend that samples be taken with a Beaufort scale of 3 or less.",1,"E"]
[null,null,null,"Vessel movements","0118","Whether the ship was rocking at the time the sample was taken.","Heave","E"]
[null,null,null,"Sea surface temperature (Unit: ℃)","0120","Sea surface temperature at the time of sample collection, in ℃.",25,"E"]
[null,null,null,"Sea surface salinity (Unit: -)","0122","Sea surface salinity at the time of sample collection.",34,"E"]
[null,null,null,"Water current direction","0124","Direction of ocean current at the time of sample collection.","From the inner bay to the mouth of the bay"]
[null,null,null,"Water current speed (Unit: knot)","0126","Velocity of ocean current at the time of sample collection, in knots.",0.2]
[null,null,"Other types of water data","Quality 1","0128","Other water quality information observed at the time of sample collection.","Chlorophyll: 0.1µg/L"]
[null,null,null,"Quality 2","0130","Other water quality information observed at the time of sample collection.","Turbidity：2.0"]
[null,null,null,"Quality 3","0132","Other water quality information observed at the time of sample collection.","DO: 9.6mg/L"]
[null,null,null,"Quality 4","0134","Other water quality information observed at the time of sample collection.","COD: 1.6mg/L"]
[null,null,"State of floating debris on the sea surface. (possible obstruction)",null,"0136","Information on suspended solids visually observed during sample collection.","A large amount of sea buckthorn (Zostera marina) had been caught.","E"]

{"sheet":"Laboratory analysis","index":3,"n_rows":32,"n_cols":209,"rows_kept":32,"cut":false,"hidden":false,"merged":[]}
[]
[]
[null,null,"Laboratory analysis"]
[null,null,"Item",null,"Item ID","Description of data item","Example","Category","Data entry field"]
[null,null,null,null,null,null,null,null,"All samples","Each samples"]
[null,null,"Sample name/ ID",null,"0029","Name of sample taken for monitoring, or its ID.",{"$f":"IF(COUNTA('Field Survey'!G21)=1,'Field Survey'!G21,\"\")","v":"Towing No.99"},null,null,{"$f":"IF(COUNTA('Field Survey'!J21)=1,'Field Survey'!J21,\"\")","v":""},{"$f":"IF(COUNTA('Field Survey'!K21)=1,'Field Survey'!K21,\"\")","v":""},{"$f":"IF(COUNTA('Field Survey'!L21)=1,'Field Survey'!L21,\"\")","v":""},{"$f":"IF(COUNTA('Field Survey'!M21)=1,'Field Survey'!M21,\"\")","v":""},{"$f":"IF(COUNTA('Field Survey'!N21)=1,'Field Survey'!N21,\"\")","v":""},{"$f":"IF(COUNTA('Field Survey'!O21)=1,'Field Survey'!O21,\"\")","v":""},{"$f":"IF(COUNTA('Field Survey'!P21)=1,'Field Survey'!P21,\"\")","v":""},{"$f":"IF(COUNTA('Field Survey'!Q21)=1,'Field Survey'!Q21,\"\")","v":""},{"$f":"IF(COUNTA('Field Survey'!R21)=1,'Field Survey'!R21,\"\")","v":""},{"$f":"IF(COUNTA('Field Survey'!S21)=1,'Field Survey'!S21,\"\")","v":""},{"$f":"IF(COUNTA('Field Survey'!T21)=1,'Field Survey'!T21,\"\")","v":""},{"$f":"IF(COUNTA('Field Survey'!U21)=1,'Field Survey'!U21,\"\")","v":""},{"$f":"IF(COUNTA('Field Survey'!V21)=1,'Field Survey'!V21,\"\")","v":""},{"$f":"IF(COUNTA('Field Survey'!W21)=1,'Field Survey'!W21,\"\")","v":""},{"$f":"IF(COUNTA('Field Survey'!X21)=1,'Field Survey'!X21,\"\")","v":""},{"$f":"IF(COUNTA('Field Survey'!Y21)=1,'Field Survey'!Y21,\"\")","v":""},{"$f":"IF(COUNTA('Field Survey'!Z21)=1,'Field Survey'!Z21,\"\")","v":""},{"$f":"IF(COUNTA('Field Survey'!AA21)=1,'Field Survey'!AA21,\"\")","v":""},{"$f":"IF(COUNTA('Field Survey'!AB21)=1,'Field Survey'!AB21,\"\")","v":""},{"$f":"IF(COUNTA('Field Survey'!AC21)=1,'Field Survey'!AC21,\"\")","v":""},{"$f":"IF(COUNTA('Field Survey'!AD21)=1,'Field Survey'!AD21,\"\")","v":""},{"$f":"IF(COUNTA('Field Survey'!AE21)=1,'Field Survey'!AE21,\"\")","v":""},{"$f":"IF(COUNTA('Field Survey'!AF21)=1,'Field Survey'!AF21,\"\")","v":""},{"$f":"IF(COUNTA('Field Survey'!AG21)=1,'Field Survey'!AG21,\"\")","v":""},{"$f":"IF(COUNTA('Field Survey'!AH21)=1,'Field Survey'!AH21,\"\")","v":""},{"$f":"IF(COUNTA('Field Survey'!AI21)=1,'Field Survey'!AI21,\"\")","v":""},{"$f":"IF(COUNTA('Field Survey'!AJ21)=1,'Field Survey'!AJ21,\"\")","v":""},{"$f":"IF(COUNTA('Field Survey'!AK21)=1,'Field Survey'!AK21,\"\")","v":""},{"$f":"IF(COUNTA('Field Survey'!AL21)=1,'Field Survey'!AL21,\"\")","v":""},{"$f":"IF(COUNTA('Field Survey'!AM21)=1,'Field Survey'!AM21,\"\")","v":""},{"$f":"IF(COUNTA('Field Survey'!AN21)=1,'Field Survey'!AN21,\"\")","v":""},{"$f":"IF(COUNTA('Field Survey'!AO21)=1,'Field Survey'!AO21,\"\")","v":""},{"$f":"IF(COUNTA('Field Survey'!AP21)=1,'Field Survey'!AP21,\"\")","v":""},{"$f":"IF(COUNTA('Field Survey'!AQ21)=1,'Field Survey'!AQ21,\"\")","v":""},{"$f":"IF(COUNTA('Field Survey'!AR21)=1,'Field Survey'!AR21,\"\")","v":""},{"$f":"IF(COUNTA('Field Survey'!AS21)=1,'Field Survey'!AS21,\"\")","v":""},{"$f":"IF(COUNTA('Field Survey'!AT21)=1,'Field Survey'!AT21,\"\")","v":""},{"$f":"IF(COUNTA('Field Survey'!AU21)=1,'Field Survey'!AU21,\"\")","v":""},{"$f":"IF(COUNTA('Field Survey'!AV21)=1,'Field Survey'!AV21,\"\")","v":""},{"$f":"IF(COUNTA('Field Survey'!AW21)=1,'Field Survey'!AW21,\"\")","v":""},{"$f":"IF(COUNTA('Field Survey'!AX21)=1,'Field Survey'!AX21,\"\")","v":""},{"$f":"IF(COUNTA('Field Survey'!AY21)=1,'Field Survey'!AY21,\"\")","v":""},{"$f":"IF(COUNTA('Field Survey'!AZ21)=1,'Field Survey'!AZ21,\"\")","v":""},{"$f":"IF(COUNTA('Field Survey'!BA21)=1,'Field Survey'!BA21,\"\")","v":""},{"$f":"IF(COUNTA('Field Survey'!BB21)=1,'Field Survey'!BB21,\"\")","v":""},{"$f":"IF(COUNTA('Field Survey'!BC21)=1,'Field Survey'!BC21,\"\")","v":""},{"$f":"IF(COUNTA('Field Survey'!BD21)=1,'Field Survey'!BD21,\"\")","v":""},{"$f":"IF(COUNTA('Field Survey'!BE21)=1,'Field Survey'!BE21,\"\")","v":""},{"$f":"IF(COUNTA('Field Survey'!BF21)=1,'Field Survey'!BF21,\"\")","v":""},{"$f":"IF(COUNTA('Field Survey'!BG21)=1,'Field Survey'!BG21,\"\")","v":""},{"$f":"IF(COUNTA('Field Survey'!BH21)=1,'Field Survey'!BH21,\"\")","v":""},{"$f":"IF(COUNTA('Field Survey'!BI21)=1,'Field Survey'!BI21,\"\")","v":""},{"$f":"IF(COUNTA('Field Survey'!BJ21)=1,'Field Survey'!BJ21,\"\")","v":""},{"$f":"IF(COUNTA('Field Survey'!BK21)=1,'Field Survey'!BK21,\"\")","v":""},{"$f":"IF(COUNTA('Field Survey'!BL21)=1,'Field Survey'!BL21,\"\")","v":""},{"$f":"IF(COUNTA('Field Survey'!BM21)=1,'Field Survey'!BM21,\"\")","v":""},{"$f":"IF(COUNTA('Field Survey'!BN21)=1,'Field Survey'!BN21,\"\")","v":""},{"$f":"IF(COUNTA('Field Survey'!BO21)=1,'Field Survey'!BO21,\"\")","v":""},{"$f":"IF(COUNTA('Field Survey'!BP21)=1,'Field Survey'!BP21,\"\")","v":""},{"$f":"IF(COUNTA('Field Survey'!BQ21)=1,'Field Survey'!BQ21,\"\")","v":""},{"$f":"IF(COUNTA('Field Survey'!BR21)=1,'Field Survey'!BR21,\"\")","v":""},{"$f":"IF(COUNTA('Field Survey'!BS21)=1,'Field Survey'!BS21,\"\")","v":""},{"$f":"IF(COUNTA('Field Survey'!BT21)=1,'Field Survey'!BT21,\"\")","v":""},{"$f":"IF(COUNTA('Field Survey'!BU21)=1,'Field Survey'!BU21,\"\")","v":""},{"$f":"IF(COUNTA('Field Survey'!BV21)=1,'Field Survey'!BV21,\"\")","v":""},{"$f":"IF(COUNTA('Field Survey'!BW21)=1,'Field Survey'!BW21,\"\")","v":""},{"$f":"IF(COUNTA('Field Survey'!BX21)=1,'Field Survey'!BX21,\"\")","v":""},{"$f":"IF(COUNTA('Field Survey'!BY21)=1,'Field Survey'!BY21,\"\")","v":""},{"$f":"IF(COUNTA('Field Survey'!BZ21)=1,'Field Survey'!BZ21,\"\")","v":""},{"$f":"IF(COUNTA('Field Survey'!CA21)=1,'Field Survey'!CA21,\"\")","v":""},{"$f":"IF(COUNTA('Field Survey'!CB21)=1,'Field Survey'!CB21,\"\")","v":""},{"$f":"IF(COUNTA('Field Survey'!CC21)=1,'Field Survey'!CC21,\"\")","v":""},{"$f":"IF(COUNTA('Field Survey'!CD21)=1,'Field Survey'!CD21,\"\")","v":""},{"$f":"IF(COUNTA('Field Survey'!CE21)=1,'Field Survey'!CE21,\"\")","v":""},{"$f":"IF(COUNTA('Field Survey'!CF21)=1,'Field Survey'!CF21,\"\")","v":""},{"$f":"IF(COUNTA('Field Survey'!CG21)=1,'Field Survey'!CG21,\"\")","v":""},{"$f":"IF(COUNTA('Field Survey'!CH21)=1,'Field Survey'!CH21,\"\")","v":""},{"$f":"IF(COUNTA('Field Survey'!CI21)=1,'Field Survey'!CI21,\"\")","v":""},{"$f":"IF(COUNTA('Field Survey'!CJ21)=1,'Field Survey'!CJ21,\"\")","v":""},{"$f":"IF(COUNTA('Field Survey'!CK21)=1,'Field Survey'!CK21,\"\")","v":""},{"$f":"IF(COUNTA('Field Survey'!CL21)=1,'Field Survey'!CL21,\"\")","v":""},{"$f":"IF(COUNTA('Field Survey'!CM21)=1,'Field Survey'!CM21,\"\")","v":""},{"$f":"IF(COUNTA('Field Survey'!CN21)=1,'Field Survey'!CN21,\"\")","v":""},{"$f":"IF(COUNTA('Field Survey'!CO21)=1,'Field Survey'!CO21,\"\")","v":""},{"$f":"IF(COUNTA('Field Survey'!CP21)=1,'Field Survey'!CP21,\"\")","v":""},{"$f":"IF(COUNTA('Field Survey'!CQ21)=1,'Field Survey'!CQ21,\"\")","v":""},{"$f":"IF(COUNTA('Field Survey'!CR21)=1,'Field Survey'!CR21,\"\")","v":""},{"$f":"IF(COUNTA('Field Survey'!CS21)=1,'Field Survey'!CS21,\"\")","v":""},{"$f":"IF(COUNTA('Field Survey'!CT21)=1,'Field Survey'!CT21,\"\")","v":""},{"$f":"IF(COUNTA('Field Survey'!CU21)=1,'Field Survey'!CU21,\"\")","v":""},{"$f":"IF(COUNTA('Field Survey'!CV21)=1,'Field Survey'!CV21,\"\")","v":""},{"$f":"IF(COUNTA('Field Survey'!CW21)=1,'Field Survey'!CW21,\"\")","v":""},{"$f":"IF(COUNTA('Field Survey'!CX21)=1,'Field Survey'!CX21,\"\")","v":""},{"$f":"IF(COUNTA('Field Survey'!CY21)=1,'Field Survey'!CY21,\"\")","v":""},{"$f":"IF(COUNTA('Field Survey'!CZ21)=1,'Field Survey'!CZ21,\"\")","v":""},{"$f":"IF(COUNTA('Field Survey'!DA21)=1,'Field Survey'!DA21,\"\")","v":""},{"$f":"IF(COUNTA('Field Survey'!DB21)=1,'Field Survey'!DB21,\"\")","v":""},{"$f":"IF(COUNTA('Field Survey'!DC21)=1,'Field Survey'!DC21,\"\")","v":""},{"$f":"IF(COUNTA('Field Survey'!DD21)=1,'Field Survey'!DD21,\"\")","v":""},{"$f":"IF(COUNTA('Field Survey'!DE21)=1,'Field Survey'!DE21,\"\")","v":""},{"$f":"IF(COUNTA('Field Survey'!DF21)=1,'Field Survey'!DF21,\"\")","v":""},{"$f":"IF(COUNTA('Field Survey'!DG21)=1,'Field Survey'!DG21,\"\")","v":""},{"$f":"IF(COUNTA('Field Survey'!DH21)=1,'Field Survey'!DH21,\"\")","v":""},{"$f":"IF(COUNTA('Field Survey'!DI21)=1,'Field Survey'!DI21,\"\")","v":""},{"$f":"IF(COUNTA('Field Survey'!DJ21)=1,'Field Survey'!DJ21,\"\")","v":""},{"$f":"IF(COUNTA('Field Survey'!DK21)=1,'Field Survey'!DK21,\"\")","v":""},{"$f":"IF(COUNTA('Field Survey'!DL21)=1,'Field Survey'!DL21,\"\")","v":""},{"$f":"IF(COUNTA('Field Survey'!DM21)=1,'Field Survey'!DM21,\"\")","v":""},{"$f":"IF(COUNTA('Field Survey'!DN21)=1,'Field Survey'!DN21,\"\")","v":""},{"$f":"IF(COUNTA('Field Survey'!DO21)=1,'Field Survey'!DO21,\"\")","v":""},{"$f":"IF(COUNTA('Field Survey'!DP21)=1,'Field Survey'!DP21,\"\")","v":""},{"$f":"IF(COUNTA('Field Survey'!DQ21)=1,'Field Survey'!DQ21,\"\")","v":""},{"$f":"IF(COUNTA('Field Survey'!DR21)=1,'Field Survey'!DR21,\"\")","v":""},{"$f":"IF(COUNTA('Field Survey'!DS21)=1,'Field Survey'!DS21,\"\")","v":""},{"$f":"IF(COUNTA('Field Survey'!DT21)=1,'Field Survey'!DT21,\"\")","v":""},{"$f":"IF(COUNTA('Field Survey'!DU21)=1,'Field Survey'!DU21,\"\")","v":""},{"$f":"IF(COUNTA('Field Survey'!DV21)=1,'Field Survey'!DV21,\"\")","v":""},{"$f":"IF(COUNTA('Field Survey'!DW21)=1,'Field Survey'!DW21,\"\")","v":""},{"$f":"IF(COUNTA('Field Survey'!DX21)=1,'Field Survey'!DX21,\"\")","v":""},{"$f":"IF(COUNTA('Field Survey'!DY21)=1,'Field Survey'!DY21,\"\")","v":""},{"$f":"IF(COUNTA('Field Survey'!DZ21)=1,'Field Survey'!DZ21,\"\")","v":""},{"$f":"IF(COUNTA('Field Survey'!EA21)=1,'Field Survey'!EA21,\"\")","v":""},{"$f":"IF(COUNTA('Field Survey'!EB21)=1,'Field Survey'!EB21,\"\")","v":""},{"$f":"IF(COUNTA('Field Survey'!EC21)=1,'Field Survey'!EC21,\"\")","v":""},{"$f":"IF(COUNTA('Field Survey'!ED21)=1,'Field Survey'!ED21,\"\")","v":""},{"$f":"IF(COUNTA('Field Survey'!EE21)=1,'Field Survey'!EE21,\"\")","v":""},{"$f":"IF(COUNTA('Field Survey'!EF21)=1,'Field Survey'!EF21,\"\")","v":""},{"$f":"IF(COUNTA('Field Survey'!EG21)=1,'Field Survey'!EG21,\"\")","v":""},{"$f":"IF(COUNTA('Field Survey'!EH21)=1,'Field Survey'!EH21,\"\")","v":""},{"$f":"IF(COUNTA('Field Survey'!EI21)=1,'Field Survey'!EI21,\"\")","v":""},{"$f":"IF(COUNTA('Field Survey'!EJ21)=1,'Field Survey'!EJ21,\"\")","v":""},{"$f":"IF(COUNTA('Field Survey'!EK21)=1,'Field Survey'!EK21,\"\")","v":""},{"$f":"IF(COUNTA('Field Survey'!EL21)=1,'Field Survey'!EL21,\"\")","v":""},{"$f":"IF(COUNTA('Field Survey'!EM21)=1,'Field Survey'!EM21,\"\")","v":""},{"$f":"IF(COUNTA('Field Survey'!EN21)=1,'Field Survey'!EN21,\"\")","v":""},{"$f":"IF(COUNTA('Field Survey'!EO21)=1,'Field Survey'!EO21,\"\")","v":""},{"$f":"IF(COUNTA('Field Survey'!EP21)=1,'Field Survey'!EP21,\"\")","v":""},{"$f":"IF(COUNTA('Field Survey'!EQ21)=1,'Field Survey'!EQ21,\"\")","v":""},{"$f":"IF(COUNTA('Field Survey'!ER21)=1,'Field Survey'!ER21,\"\")","v":""},{"$f":"IF(COUNTA('Field Survey'!ES21)=1,'Field Survey'!ES21,\"\")","v":""},{"$f":"IF(COUNTA('Field Survey'!ET21)=1,'Field Survey'!ET21,\"\")","v":""},{"$f":"IF(COUNTA('Field Survey'!EU21)=1,'Field Survey'!EU21,\"\")","v":""},{"$f":"IF(COUNTA('Field Survey'!EV21)=1,'Field Survey'!EV21,\"\")","v":""},{"$f":"IF(COUNTA('Field Survey'!EW21)=1,'Field Survey'!EW21,\"\")","v":""},{"$f":"IF(COUNTA('Field Survey'!EX21)=1,'Field Survey'!EX21,\"\")","v":""},{"$f":"IF(COUNTA('Field Survey'!EY21)=1,'Field Survey'!EY21,\"\")","v":""},{"$f":"IF(COUNTA('Field Survey'!EZ21)=1,'Field Survey'!EZ21,\"\")","v":""},{"$f":"IF(COUNTA('Field Survey'!FA21)=1,'Field Survey'!FA21,\"\")","v":""},{"$f":"IF(COUNTA('Field Survey'!FB21)=1,'Field Survey'!FB21,\"\")","v":""},{"$f":"IF(COUNTA('Field Survey'!FC21)=1,'Field Survey'!FC21,\"\")","v":""},{"$f":"IF(COUNTA('Field Survey'!FD21)=1,'Field Survey'!FD21,\"\")","v":""},{"$f":"IF(COUNTA('Field Survey'!FE21)=1,'Field Survey'!FE21,\"\")","v":""},{"$f":"IF(COUNTA('Field Survey'!FF21)=1,'Field Survey'!FF21,\"\")","v":""},{"$f":"IF(COUNTA('Field Survey'!FG21)=1,'Field Survey'!FG21,\"\")","v":""},{"$f":"IF(COUNTA('Field Survey'!FH21)=1,'Field Survey'!FH21,\"\")","v":""},{"$f":"IF(COUNTA('Field Survey'!FI21)=1,'Field Survey'!FI21,\"\")","v":""},{"$f":"IF(COUNTA('Field Survey'!FJ21)=1,'Field Survey'!FJ21,\"\")","v":""},{"$f":"IF(COUNTA('Field Survey'!FK21)=1,'Field Survey'!FK21,\"\")","v":""},{"$f":"IF(COUNTA('Field Survey'!FL21)=1,'Field Survey'!FL21,\"\")","v":""},{"$f":"IF(COUNTA('Field Survey'!FM21)=1,'Field Survey'!FM21,\"\")","v":""},{"$f":"IF(COUNTA('Field Survey'!FN21)=1,'Field Survey'!FN21,\"\")","v":""},{"$f":"IF(COUNTA('Field Survey'!FO21)=1,'Field Survey'!FO21,\"\")","v":""},{"$f":"IF(COUNTA('Field Survey'!FP21)=1,'Field Survey'!FP21,\"\")","v":""},{"$f":"IF(COUNTA('Field Survey'!FQ21)=1,'Field Survey'!FQ21,\"\")","v":""},{"$f":"IF(COUNTA('Field Survey'!FR21)=1,'Field Survey'!FR21,\"\")","v":""},{"$f":"IF(COUNTA('Field Survey'!FS21)=1,'Field Survey'!FS21,\"\")","v":""},{"$f":"IF(COUNTA('Field Survey'!FT21)=1,'Field Survey'!FT21,\"\")","v":""},{"$f":"IF(COUNTA('Field Survey'!FU21)=1,'Field Survey'!FU21,\"\")","v":""},{"$f":"IF(COUNTA('Field Survey'!FV21)=1,'Field Survey'!FV21,\"\")","v":""},{"$f":"IF(COUNTA('Field Survey'!FW21)=1,'Field Survey'!FW21,\"\")","v":""},{"$f":"IF(COUNTA('Field Survey'!FX21)=1,'Field Survey'!FX21,\"\")","v":""},{"$f":"IF(COUNTA('Field Survey'!FY21)=1,'Field Survey'!FY21,\"\")","v":""},{"$f":"IF(COUNTA('Field Survey'!FZ21)=1,'Field Survey'!FZ21,\"\")","v":""},{"$f":"IF(COUNTA('Field Survey'!GA21)=1,'Field Survey'!GA21,\"\")","v":""},{"$f":"IF(COUNTA('Field Survey'!GB21)=1,'Field Survey'!GB21,\"\")","v":""},{"$f":"IF(COUNTA('Field Survey'!GC21)=1,'Field Survey'!GC21,\"\")","v":""},{"$f":"IF(COUNTA('Field Survey'!GD21)=1,'Field Survey'!GD21,\"\")","v":""},{"$f":"IF(COUNTA('Field Survey'!GE21)=1,'Field Survey'!GE21,\"\")","v":""},{"$f":"IF(COUNTA('Field Survey'!GF21)=1,'Field Survey'!GF21,\"\")","v":""},{"$f":"IF(COUNTA('Field Survey'!GG21)=1,'Field Survey'!GG21,\"\")","v":""},{"$f":"IF(COUNTA('Field Survey'!GH21)=1,'Field Survey'!GH21,\"\")","v":""},{"$f":"IF(COUNTA('Field Survey'!GI21)=1,'Field Survey'!GI21,\"\")","v":""},{"$f":"IF(COUNTA('Field Survey'!GJ21)=1,'Field Survey'!GJ21,\"\")","v":""},{"$f":"IF(COUNTA('Field Survey'!GK21)=1,'Field Survey'!GK21,\"\")","v":""},{"$f":"IF(COUNTA('Field Survey'!GL21)=1,'Field Survey'!GL21,\"\")","v":""},{"$f":"IF(COUNTA('Field Survey'!GM21)=1,'Field Survey'!GM21,\"\")","v":""},{"$f":"IF(COUNTA('Field Survey'!GN21)=1,'Field Survey'!GN21,\"\")","v":""},{"$f":"IF(COUNTA('Field Survey'!GO21)=1,'Field Survey'!GO21,\"\")","v":""},{"$f":"IF(COUNTA('Field Survey'!GP21)=1,'Field Survey'!GP21,\"\")","v":""},{"$f":"IF(COUNTA('Field Survey'!GQ21)=1,'Field Survey'!GQ21,\"\")","v":""},{"$f":"IF(COUNTA('Field Survey'!GR21)=1,'Field Survey'!GR21,\"\")","v":""},{"$f":"IF(COUNTA('Field Survey'!GS21)=1,'Field Survey'!GS21,\"\")","v":""},{"$f":"IF(COUNTA('Field Survey'!GT21)=1,'Field Survey'!GT21,\"\")","v":""},{"$f":"IF(COUNTA('Field Survey'!GU21)=1,'Field Survey'!GU21,\"\")","v":""},{"$f":"IF(COUNTA('Field Survey'!GV21)=1,'Field Survey'!GV21,\"\")","v":""},{"$f":"IF(COUNTA('Field Survey'!GW21)=1,'Field Survey'!GW21,\"\")","v":""},{"$f":"IF(COUNTA('Field Survey'!GX21)=1,'Field Survey'!GX21,\"\")","v":""},{"$f":"IF(COUNTA('Field Survey'!GY21)=1,'Field Survey'!GY21,\"\")","v":""},{"$f":"IF(COUNTA('Field Survey'!GZ21)=1,'Field Survey'!GZ21,\"\")","v":""},{"$f":"IF(COUNTA('Field Survey'!HA21)=1,'Field Survey'!HA21,\"\")","v":""}]
[null,null,"Sample splitting","Whether or not sample splitting was conducted","0154","Whether or not sample division was performed.","Conducted","E"]
[null,null,null,"Method or equipment of splitting","0156","Sample division method.","Split into four by Folsom splitter","E"]
[null,null,null,"Estimated relative error range caused by splitting process","0158","Error resulting from sample division.","about ± 10%"]
[null,null,"Biological digestion and chemical treatment","Whether or not was conducted (Biological digestiion and chemical treat)","0146","Whether biochemical or chemical treatment was used to break down natural organic matter.","Conducted","E"]
[null,null,null,"Methods used for digesting organic matter","0148","Biochemical or chemical treatment.","Oxidation treatment (30%H2O2  solution was added to the sample)","E"]
[null,null,null,"Temperature during processing (Unit: ℃)","0150","Temperature at time of biochemical or chemical treatment, in %.",60,"E"]
[null,null,null,"Reaction time (Unit: min.)","0152","Reaction time for biochemical or chemical treatment, in minutes.",7200,"E"]
[null,null,"Density separation","Whether or not was conducted (Density separation conducted or not)","0138","Whether the analysis separated plastic from oher materials by differences in density.","Conducted","E"]
[null,null,null,"Type of solution used (Solution type for density separation)","0140","Type of solute used in the density separation.","NaCl","E"]
[null,null,null,"Concentration of solution for density separation (Unit: %)","0142","Concentration of solute used in the density separation, in %.",26,"E"]
[null,null,null,"Processing Time (Unit: min.)","0144","Standing time for density separation, in minutes",60]
[null,null,"Isolation of microplastics","Whether or not pretreatment before particle isolation was conducted","0160","Whether or not pretreatment was performed to separate microplastics.","Conducted","E"]
[null,null,null,"Type of pretreatment","0162","Type of pretreatment.","A size fluctuation with 2.0 mm and 0.3 mm sieves","　"]
[null,null,null,"Whether or not picking was conducted under stereomicroscope (Under stereomicroscope or not)","0164","Whether or not a stereomicroscope was used.","Used","E"]
[null,null,"Counting and measuring sizes of particles","Method of size fractionation","0166","Method of fractionating the particle size to count the number and weight of particles by particle size. The Guidelines recommend measuring the major axis of each particle. In addition, there is also a method of using multiple stages of sieves to carry out particle size fractionation.","Measured maximum diameter","E"]
[null,null,"Identification of microplastics","Whether or not composition analysis was conducted","0168","Whether the materials were analyzed or not.","Conducted","E"]
[null,null,null,"Method of composition analysis","0170","Methods by which the materials were analyzed","FTIR (Bruker optics)","E"]
[null,null,null,"Percentage of the particles subjected to composition analysis (Unit: %)","0172","Percentage of number of particles analyzed for material quality, in %.",100,"E"]
[null,null,"Weight measurement","Temperature of sample drying (Unit: ℃)","0174","Temperature of drying process conducted prior to  particle weight measurement, in °C.",25,"E"]
[null,null,null,"Humidity of sample drying (Unit: %)","0176","Humidity, in %, of the drying process conducted prior to particle weight measurement.",100]
[null,null,null,"Processing time of sample drying (Unit: min.)","0178","Time, in minutes, of the drying process performed prior to  particle weight measurement.",1440,"E"]
[null,null,null,"Methods of weight measurements","0180","Methods used to measure the weight of particles.","Weighting the mass of the vial and microplastics together and subtracting the mass of the tared vial to provide the mass of the microplastics.","E"]
[null,null,"Blank tests","Whether or not blank tests were conducted","0182","Whether or not a blank test was performed at the time of analysis.","Conducted","E"]
[null,null," ","Blank test results (Unit: particles/ sample)","0184","Results of blank test at time of analysis, values are the number of particles obtained in the blank test.",2,"E"]
[null,null,"Spiked recovery tests","Whether or not spiked recovery tests were conducted","0186","The presence or absence of additive recovery testing.","Conducted","E"]
[null,null," ","Spiked recovery test results (Unit: %)","0188","Results of additive recovery test (number of particles recovered/number of particles added), in %.",96,"E"]

{"sheet":"Results","index":4,"n_rows":128,"n_cols":209,"rows_kept":128,"cut":false,"hidden":false,"merged":[]}
[]
[]
[null,null,"Results"]
[null,null,"Item",null,null,"Item ID","Description of data item","Example","Category","Data entry field"]
[null,null,"Sample name/ ID",null,null,"0029","The name of the sample taken for monitoring, or its ID.",{"$f":"IF(COUNTA('Field Survey'!G21)=1,'Field Survey'!G21,\"\")","v":"Towing No.99"},null,{"$f":"IF(COUNTA('Field Survey'!J21)=1,'Field Survey'!J21,\"\")","v":""},{"$f":"IF(COUNTA('Field Survey'!K21)=1,'Field Survey'!K21,\"\")","v":""},{"$f":"IF(COUNTA('Field Survey'!L21)=1,'Field Survey'!L21,\"\")","v":""},{"$f":"IF(COUNTA('Field Survey'!M21)=1,'Field Survey'!M21,\"\")","v":""},{"$f":"IF(COUNTA('Field Survey'!N21)=1,'Field Survey'!N21,\"\")","v":""},{"$f":"IF(COUNTA('Field Survey'!O21)=1,'Field Survey'!O21,\"\")","v":""},{"$f":"IF(COUNTA('Field Survey'!P21)=1,'Field Survey'!P21,\"\")","v":""},{"$f":"IF(COUNTA('Field Survey'!Q21)=1,'Field Survey'!Q21,\"\")","v":""},{"$f":"IF(COUNTA('Field Survey'!R21)=1,'Field Survey'!R21,\"\")","v":""},{"$f":"IF(COUNTA('Field Survey'!S21)=1,'Field Survey'!S21,\"\")","v":""},{"$f":"IF(COUNTA('Field Survey'!T21)=1,'Field Survey'!T21,\"\")","v":""},{"$f":"IF(COUNTA('Field Survey'!U21)=1,'Field Survey'!U21,\"\")","v":""},{"$f":"IF(COUNTA('Field Survey'!V21)=1,'Field Survey'!V21,\"\")","v":""},{"$f":"IF(COUNTA('Field Survey'!W21)=1,'Field Survey'!W21,\"\")","v":""},{"$f":"IF(COUNTA('Field Survey'!X21)=1,'Field Survey'!X21,\"\")","v":""},{"$f":"IF(COUNTA('Field Survey'!Y21)=1,'Field Survey'!Y21,\"\")","v":""},{"$f":"IF(COUNTA('Field Survey'!Z21)=1,'Field Survey'!Z21,\"\")","v":""},{"$f":"IF(COUNTA('Field Survey'!AA21)=1,'Field Survey'!AA21,\"\")","v":""},{"$f":"IF(COUNTA('Field Survey'!AB21)=1,'Field Survey'!AB21,\"\")","v":""},{"$f":"IF(COUNTA('Field Survey'!AC21)=1,'Field Survey'!AC21,\"\")","v":""},{"$f":"IF(COUNTA('Field Survey'!AD21)=1,'Field Survey'!AD21,\"\")","v":""},{"$f":"IF(COUNTA('Field Survey'!AE21)=1,'Field Survey'!AE21,\"\")","v":""},{"$f":"IF(COUNTA('Field Survey'!AF21)=1,'Field Survey'!AF21,\"\")","v":""},{"$f":"IF(COUNTA('Field Survey'!AG21)=1,'Field Survey'!AG21,\"\")","v":""},{"$f":"IF(COUNTA('Field Survey'!AH21)=1,'Field Survey'!AH21,\"\")","v":""},{"$f":"IF(COUNTA('Field Survey'!AI21)=1,'Field Survey'!AI21,\"\")","v":""},{"$f":"IF(COUNTA('Field Survey'!AJ21)=1,'Field Survey'!AJ21,\"\")","v":""},{"$f":"IF(COUNTA('Field Survey'!AK21)=1,'Field Survey'!AK21,\"\")","v":""},{"$f":"IF(COUNTA('Field Survey'!AL21)=1,'Field Survey'!AL21,\"\")","v":""},{"$f":"IF(COUNTA('Field Survey'!AM21)=1,'Field Survey'!AM21,\"\")","v":""},{"$f":"IF(COUNTA('Field Survey'!AN21)=1,'Field Survey'!AN21,\"\")","v":""},{"$f":"IF(COUNTA('Field Survey'!AO21)=1,'Field Survey'!AO21,\"\")","v":""},{"$f":"IF(COUNTA('Field Survey'!AP21)=1,'Field Survey'!AP21,\"\")","v":""},{"$f":"IF(COUNTA('Field Survey'!AQ21)=1,'Field Survey'!AQ21,\"\")","v":""},{"$f":"IF(COUNTA('Field Survey'!AR21)=1,'Field Survey'!AR21,\"\")","v":""},{"$f":"IF(COUNTA('Field Survey'!AS21)=1,'Field Survey'!AS21,\"\")","v":""},{"$f":"IF(COUNTA('Field Survey'!AT21)=1,'Field Survey'!AT21,\"\")","v":""},{"$f":"IF(COUNTA('Field Survey'!AU21)=1,'Field Survey'!AU21,\"\")","v":""},{"$f":"IF(COUNTA('Field Survey'!AV21)=1,'Field Survey'!AV21,\"\")","v":""},{"$f":"IF(COUNTA('Field Survey'!AW21)=1,'Field Survey'!AW21,\"\")","v":""},{"$f":"IF(COUNTA('Field Survey'!AX21)=1,'Field Survey'!AX21,\"\")","v":""},{"$f":"IF(COUNTA('Field Survey'!AY21)=1,'Field Survey'!AY21,\"\")","v":""},{"$f":"IF(COUNTA('Field Survey'!AZ21)=1,'Field Survey'!AZ21,\"\")","v":""},{"$f":"IF(COUNTA('Field Survey'!BA21)=1,'Field Survey'!BA21,\"\")","v":""},{"$f":"IF(COUNTA('Field Survey'!BB21)=1,'Field Survey'!BB21,\"\")","v":""},{"$f":"IF(COUNTA('Field Survey'!BC21)=1,'Field Survey'!BC21,\"\")","v":""},{"$f":"IF(COUNTA('Field Survey'!BD21)=1,'Field Survey'!BD21,\"\")","v":""},{"$f":"IF(COUNTA('Field Survey'!BE21)=1,'Field Survey'!BE21,\"\")","v":""},{"$f":"IF(COUNTA('Field Survey'!BF21)=1,'Field Survey'!BF21,\"\")","v":""},{"$f":"IF(COUNTA('Field Survey'!BG21)=1,'Field Survey'!BG21,\"\")","v":""},{"$f":"IF(COUNTA('Field Survey'!BH21)=1,'Field Survey'!BH21,\"\")","v":""},{"$f":"IF(COUNTA('Field Survey'!BI21)=1,'Field Survey'!BI21,\"\")","v":""},{"$f":"IF(COUNTA('Field Survey'!BJ21)=1,'Field Survey'!BJ21,\"\")","v":""},{"$f":"IF(COUNTA('Field Survey'!BK21)=1,'Field Survey'!BK21,\"\")","v":""},{"$f":"IF(COUNTA('Field Survey'!BL21)=1,'Field Survey'!BL21,\"\")","v":""},{"$f":"IF(COUNTA('Field Survey'!BM21)=1,'Field Survey'!BM21,\"\")","v":""},{"$f":"IF(COUNTA('Field Survey'!BN21)=1,'Field Survey'!BN21,\"\")","v":""},{"$f":"IF(COUNTA('Field Survey'!BO21)=1,'Field Survey'!BO21,\"\")","v":""},{"$f":"IF(COUNTA('Field Survey'!BP21)=1,'Field Survey'!BP21,\"\")","v":""},{"$f":"IF(COUNTA('Field Survey'!BQ21)=1,'Field Survey'!BQ21,\"\")","v":""},{"$f":"IF(COUNTA('Field Survey'!BR21)=1,'Field Survey'!BR21,\"\")","v":""},{"$f":"IF(COUNTA('Field Survey'!BS21)=1,'Field Survey'!BS21,\"\")","v":""},{"$f":"IF(COUNTA('Field Survey'!BT21)=1,'Field Survey'!BT21,\"\")","v":""},{"$f":"IF(COUNTA('Field Survey'!BU21)=1,'Field Survey'!BU21,\"\")","v":""},{"$f":"IF(COUNTA('Field Survey'!BV21)=1,'Field Survey'!BV21,\"\")","v":""},{"$f":"IF(COUNTA('Field Survey'!BW21)=1,'Field Survey'!BW21,\"\")","v":""},{"$f":"IF(COUNTA('Field Survey'!BX21)=1,'Field Survey'!BX21,\"\")","v":""},{"$f":"IF(COUNTA('Field Survey'!BY21)=1,'Field Survey'!BY21,\"\")","v":""},{"$f":"IF(COUNTA('Field Survey'!BZ21)=1,'Field Survey'!BZ21,\"\")","v":""},{"$f":"IF(COUNTA('Field Survey'!CA21)=1,'Field Survey'!CA21,\"\")","v":""},{"$f":"IF(COUNTA('Field Survey'!CB21)=1,'Field Survey'!CB21,\"\")","v":""},{"$f":"IF(COUNTA('Field Survey'!CC21)=1,'Field Survey'!CC21,\"\")","v":""},{"$f":"IF(COUNTA('Field Survey'!CD21)=1,'Field Survey'!CD21,\"\")","v":""},{"$f":"IF(COUNTA('Field Survey'!CE21)=1,'Field Survey'!CE21,\"\")","v":""},{"$f":"IF(COUNTA('Field Survey'!CF21)=1,'Field Survey'!CF21,\"\")","v":""},{"$f":"IF(COUNTA('Field Survey'!CG21)=1,'Field Survey'!CG21,\"\")","v":""},{"$f":"IF(COUNTA('Field Survey'!CH21)=1,'Field Survey'!CH21,\"\")","v":""},{"$f":"IF(COUNTA('Field Survey'!CI21)=1,'Field Survey'!CI21,\"\")","v":""},{"$f":"IF(COUNTA('Field Survey'!CJ21)=1,'Field Survey'!CJ21,\"\")","v":""},{"$f":"IF(COUNTA('Field Survey'!CK21)=1,'Field Survey'!CK21,\"\")","v":""},{"$f":"IF(COUNTA('Field Survey'!CL21)=1,'Field Survey'!CL21,\"\")","v":""},{"$f":"IF(COUNTA('Field Survey'!CM21)=1,'Field Survey'!CM21,\"\")","v":""},{"$f":"IF(COUNTA('Field Survey'!CN21)=1,'Field Survey'!CN21,\"\")","v":""},{"$f":"IF(COUNTA('Field Survey'!CO21)=1,'Field Survey'!CO21,\"\")","v":""},{"$f":"IF(COUNTA('Field Survey'!CP21)=1,'Field Survey'!CP21,\"\")","v":""},{"$f":"IF(COUNTA('Field Survey'!CQ21)=1,'Field Survey'!CQ21,\"\")","v":""},{"$f":"IF(COUNTA('Field Survey'!CR21)=1,'Field Survey'!CR21,\"\")","v":""},{"$f":"IF(COUNTA('Field Survey'!CS21)=1,'Field Survey'!CS21,\"\")","v":""},{"$f":"IF(COUNTA('Field Survey'!CT21)=1,'Field Survey'!CT21,\"\")","v":""},{"$f":"IF(COUNTA('Field Survey'!CU21)=1,'Field Survey'!CU21,\"\")","v":""},{"$f":"IF(COUNTA('Field Survey'!CV21)=1,'Field Survey'!CV21,\"\")","v":""},{"$f":"IF(COUNTA('Field Survey'!CW21)=1,'Field Survey'!CW21,\"\")","v":""},{"$f":"IF(COUNTA('Field Survey'!CX21)=1,'Field Survey'!CX21,\"\")","v":""},{"$f":"IF(COUNTA('Field Survey'!CY21)=1,'Field Survey'!CY21,\"\")","v":""},{"$f":"IF(COUNTA('Field Survey'!CZ21)=1,'Field Survey'!CZ21,\"\")","v":""},{"$f":"IF(COUNTA('Field Survey'!DA21)=1,'Field Survey'!DA21,\"\")","v":""},{"$f":"IF(COUNTA('Field Survey'!DB21)=1,'Field Survey'!DB21,\"\")","v":""},{"$f":"IF(COUNTA('Field Survey'!DC21)=1,'Field Survey'!DC21,\"\")","v":""},{"$f":"IF(COUNTA('Field Survey'!DD21)=1,'Field Survey'!DD21,\"\")","v":""},{"$f":"IF(COUNTA('Field Survey'!DE21)=1,'Field Survey'!DE21,\"\")","v":""},{"$f":"IF(COUNTA('Field Survey'!DF21)=1,'Field Survey'!DF21,\"\")","v":""},{"$f":"IF(COUNTA('Field Survey'!DG21)=1,'Field Survey'!DG21,\"\")","v":""},{"$f":"IF(COUNTA('Field Survey'!DH21)=1,'Field Survey'!DH21,\"\")","v":""},{"$f":"IF(COUNTA('Field Survey'!DI21)=1,'Field Survey'!DI21,\"\")","v":""},{"$f":"IF(COUNTA('Field Survey'!DJ21)=1,'Field Survey'!DJ21,\"\")","v":""},{"$f":"IF(COUNTA('Field Survey'!DK21)=1,'Field Survey'!DK21,\"\")","v":""},{"$f":"IF(COUNTA('Field Survey'!DL21)=1,'Field Survey'!DL21,\"\")","v":""},{"$f":"IF(COUNTA('Field Survey'!DM21)=1,'Field Survey'!DM21,\"\")","v":""},{"$f":"IF(COUNTA('Field Survey'!DN21)=1,'Field Survey'!DN21,\"\")","v":""},{"$f":"IF(COUNTA('Field Survey'!DO21)=1,'Field Survey'!DO21,\"\")","v":""},{"$f":"IF(COUNTA('Field Survey'!DP21)=1,'Field Survey'!DP21,\"\")","v":""},{"$f":"IF(COUNTA('Field Survey'!DQ21)=1,'Field Survey'!DQ21,\"\")","v":""},{"$f":"IF(COUNTA('Field Survey'!DR21)=1,'Field Survey'!DR21,\"\")","v":""},{"$f":"IF(COUNTA('Field Survey'!DS21)=1,'Field Survey'!DS21,\"\")","v":""},{"$f":"IF(COUNTA('Field Survey'!DT21)=1,'Field Survey'!DT21,\"\")","v":""},{"$f":"IF(COUNTA('Field Survey'!DU21)=1,'Field Survey'!DU21,\"\")","v":""},{"$f":"IF(COUNTA('Field Survey'!DV21)=1,'Field Survey'!DV21,\"\")","v":""},{"$f":"IF(COUNTA('Field Survey'!DW21)=1,'Field Survey'!DW21,\"\")","v":""},{"$f":"IF(COUNTA('Field Survey'!DX21)=1,'Field Survey'!DX21,\"\")","v":""},{"$f":"IF(COUNTA('Field Survey'!DY21)=1,'Field Survey'!DY21,\"\")","v":""},{"$f":"IF(COUNTA('Field Survey'!DZ21)=1,'Field Survey'!DZ21,\"\")","v":""},{"$f":"IF(COUNTA('Field Survey'!EA21)=1,'Field Survey'!EA21,\"\")","v":""},{"$f":"IF(COUNTA('Field Survey'!EB21)=1,'Field Survey'!EB21,\"\")","v":""},{"$f":"IF(COUNTA('Field Survey'!EC21)=1,'Field Survey'!EC21,\"\")","v":""},{"$f":"IF(COUNTA('Field Survey'!ED21)=1,'Field Survey'!ED21,\"\")","v":""},{"$f":"IF(COUNTA('Field Survey'!EE21)=1,'Field Survey'!EE21,\"\")","v":""},{"$f":"IF(COUNTA('Field Survey'!EF21)=1,'Field Survey'!EF21,\"\")","v":""},{"$f":"IF(COUNTA('Field Survey'!EG21)=1,'Field Survey'!EG21,\"\")","v":""},{"$f":"IF(COUNTA('Field Survey'!EH21)=1,'Field Survey'!EH21,\"\")","v":""},{"$f":"IF(COUNTA('Field Survey'!EI21)=1,'Field Survey'!EI21,\"\")","v":""},{"$f":"IF(COUNTA('Field Survey'!EJ21)=1,'Field Survey'!EJ21,\"\")","v":""},{"$f":"IF(COUNTA('Field Survey'!EK21)=1,'Field Survey'!EK21,\"\")","v":""},{"$f":"IF(COUNTA('Field Survey'!EL21)=1,'Field Survey'!EL21,\"\")","v":""},{"$f":"IF(COUNTA('Field Survey'!EM21)=1,'Field Survey'!EM21,\"\")","v":""},{"$f":"IF(COUNTA('Field Survey'!EN21)=1,'Field Survey'!EN21,\"\")","v":""},{"$f":"IF(COUNTA('Field Survey'!EO21)=1,'Field Survey'!EO21,\"\")","v":""},{"$f":"IF(COUNTA('Field Survey'!EP21)=1,'Field Survey'!EP21,\"\")","v":""},{"$f":"IF(COUNTA('Field Survey'!EQ21)=1,'Field Survey'!EQ21,\"\")","v":""},{"$f":"IF(COUNTA('Field Survey'!ER21)=1,'Field Survey'!ER21,\"\")","v":""},{"$f":"IF(COUNTA('Field Survey'!ES21)=1,'Field Survey'!ES21,\"\")","v":""},{"$f":"IF(COUNTA('Field Survey'!ET21)=1,'Field Survey'!ET21,\"\")","v":""},{"$f":"IF(COUNTA('Field Survey'!EU21)=1,'Field Survey'!EU21,\"\")","v":""},{"$f":"IF(COUNTA('Field Survey'!EV21)=1,'Field Survey'!EV21,\"\")","v":""},{"$f":"IF(COUNTA('Field Survey'!EW21)=1,'Field Survey'!EW21,\"\")","v":""},{"$f":"IF(COUNTA('Field Survey'!EX21)=1,'Field Survey'!EX21,\"\")","v":""},{"$f":"IF(COUNTA('Field Survey'!EY21)=1,'Field Survey'!EY21,\"\")","v":""},{"$f":"IF(COUNTA('Field Survey'!EZ21)=1,'Field Survey'!EZ21,\"\")","v":""},{"$f":"IF(COUNTA('Field Survey'!FA21)=1,'Field Survey'!FA21,\"\")","v":""},{"$f":"IF(COUNTA('Field Survey'!FB21)=1,'Field Survey'!FB21,\"\")","v":""},{"$f":"IF(COUNTA('Field Survey'!FC21)=1,'Field Survey'!FC21,\"\")","v":""},{"$f":"IF(COUNTA('Field Survey'!FD21)=1,'Field Survey'!FD21,\"\")","v":""},{"$f":"IF(COUNTA('Field Survey'!FE21)=1,'Field Survey'!FE21,\"\")","v":""},{"$f":"IF(COUNTA('Field Survey'!FF21)=1,'Field Survey'!FF21,\"\")","v":""},{"$f":"IF(COUNTA('Field Survey'!FG21)=1,'Field Survey'!FG21,\"\")","v":""},{"$f":"IF(COUNTA('Field Survey'!FH21)=1,'Field Survey'!FH21,\"\")","v":""},{"$f":"IF(COUNTA('Field Survey'!FI21)=1,'Field Survey'!FI21,\"\")","v":""},{"$f":"IF(COUNTA('Field Survey'!FJ21)=1,'Field Survey'!FJ21,\"\")","v":""},{"$f":"IF(COUNTA('Field Survey'!FK21)=1,'Field Survey'!FK21,\"\")","v":""},{"$f":"IF(COUNTA('Field Survey'!FL21)=1,'Field Survey'!FL21,\"\")","v":""},{"$f":"IF(COUNTA('Field Survey'!FM21)=1,'Field Survey'!FM21,\"\")","v":""},{"$f":"IF(COUNTA('Field Survey'!FN21)=1,'Field Survey'!FN21,\"\")","v":""},{"$f":"IF(COUNTA('Field Survey'!FO21)=1,'Field Survey'!FO21,\"\")","v":""},{"$f":"IF(COUNTA('Field Survey'!FP21)=1,'Field Survey'!FP21,\"\")","v":""},{"$f":"IF(COUNTA('Field Survey'!FQ21)=1,'Field Survey'!FQ21,\"\")","v":""},{"$f":"IF(COUNTA('Field Survey'!FR21)=1,'Field Survey'!FR21,\"\")","v":""},{"$f":"IF(COUNTA('Field Survey'!FS21)=1,'Field Survey'!FS21,\"\")","v":""},{"$f":"IF(COUNTA('Field Survey'!FT21)=1,'Field Survey'!FT21,\"\")","v":""},{"$f":"IF(COUNTA('Field Survey'!FU21)=1,'Field Survey'!FU21,\"\")","v":""},{"$f":"IF(COUNTA('Field Survey'!FV21)=1,'Field Survey'!FV21,\"\")","v":""},{"$f":"IF(COUNTA('Field Survey'!FW21)=1,'Field Survey'!FW21,\"\")","v":""},{"$f":"IF(COUNTA('Field Survey'!FX21)=1,'Field Survey'!FX21,\"\")","v":""},{"$f":"IF(COUNTA('Field Survey'!FY21)=1,'Field Survey'!FY21,\"\")","v":""},{"$f":"IF(COUNTA('Field Survey'!FZ21)=1,'Field Survey'!FZ21,\"\")","v":""},{"$f":"IF(COUNTA('Field Survey'!GA21)=1,'Field Survey'!GA21,\"\")","v":""},{"$f":"IF(COUNTA('Field Survey'!GB21)=1,'Field Survey'!GB21,\"\")","v":""},{"$f":"IF(COUNTA('Field Survey'!GC21)=1,'Field Survey'!GC21,\"\")","v":""},{"$f":"IF(COUNTA('Field Survey'!GD21)=1,'Field Survey'!GD21,\"\")","v":""},{"$f":"IF(COUNTA('Field Survey'!GE21)=1,'Field Survey'!GE21,\"\")","v":""},{"$f":"IF(COUNTA('Field Survey'!GF21)=1,'Field Survey'!GF21,\"\")","v":""},{"$f":"IF(COUNTA('Field Survey'!GG21)=1,'Field Survey'!GG21,\"\")","v":""},{"$f":"IF(COUNTA('Field Survey'!GH21)=1,'Field Survey'!GH21,\"\")","v":""},{"$f":"IF(COUNTA('Field Survey'!GI21)=1,'Field Survey'!GI21,\"\")","v":""},{"$f":"IF(COUNTA('Field Survey'!GJ21)=1,'Field Survey'!GJ21,\"\")","v":""},{"$f":"IF(COUNTA('Field Survey'!GK21)=1,'Field Survey'!GK21,\"\")","v":""},{"$f":"IF(COUNTA('Field Survey'!GL21)=1,'Field Survey'!GL21,\"\")","v":""},{"$f":"IF(COUNTA('Field Survey'!GM21)=1,'Field Survey'!GM21,\"\")","v":""},{"$f":"IF(COUNTA('Field Survey'!GN21)=1,'Field Survey'!GN21,\"\")","v":""},{"$f":"IF(COUNTA('Field Survey'!GO21)=1,'Field Survey'!GO21,\"\")","v":""},{"$f":"IF(COUNTA('Field Survey'!GP21)=1,'Field Survey'!GP21,\"\")","v":""},{"$f":"IF(COUNTA('Field Survey'!GQ21)=1,'Field Survey'!GQ21,\"\")","v":""},{"$f":"IF(COUNTA('Field Survey'!GR21)=1,'Field Survey'!GR21,\"\")","v":""},{"$f":"IF(COUNTA('Field Survey'!GS21)=1,'Field Survey'!GS21,\"\")","v":""},{"$f":"IF(COUNTA('Field Survey'!GT21)=1,'Field Survey'!GT21,\"\")","v":""},{"$f":"IF(COUNTA('Field Survey'!GU21)=1,'Field Survey'!GU21,\"\")","v":""},{"$f":"IF(COUNTA('Field Survey'!GV21)=1,'Field Survey'!GV21,\"\")","v":""},{"$f":"IF(COUNTA('Field Survey'!GW21)=1,'Field Survey'!GW21,\"\")","v":""},{"$f":"IF(COUNTA('Field Survey'!GX21)=1,'Field Survey'!GX21,\"\")","v":""},{"$f":"IF(COUNTA('Field Survey'!GY21)=1,'Field Survey'!GY21,\"\")","v":""},{"$f":"IF(COUNTA('Field Survey'!GZ21)=1,'Field Survey'!GZ21,\"\")","v":""},{"$f":"IF(COUNTA('Field Survey'!HA21)=1,'Field Survey'!HA21,\"\")","v":""}]
[null,null,"Number of plastic particles","d<5.0mm",null,"0190","Number of particles with a particle size of less than 5 mm.",{"$f":"H7+H8","v":1260},"FB*"]
[null,null," (Unit: parrticles/sample)","1.0mm≤d<5.0mm",null,"0202","Volume density of the number of particles with a particle size of less than 5 mm, calculated in principle as the number of particles (#0190)/volume of filtered water (#0086), in partsicles/m3.",1092,"FB* / E"]
[null,null," (Total Number of Particles)","d<1.0mm",null,"0214","Area density of the number of particles with a particle diameter of less than 5 mm, calculated in principle as the number of particles (#0190)/sampled area (#0082)/1,000,0000m2/km2, in partsicles/km2.",168,"FB*"]
[null,null,null,"5.0mm≤d",null,"0226","Particle weight of particles with a diameter of less than 5 mm.",52]
[null,null,"Particle number density per filtered water volume","d<5.0mm",null,"0192","Particle weight volume density of particles with a particle size of less than 5 mm, calculated in principle as particle weight (#0196)/filtrate volume (#0086), in partsicles/m3.",{"$f":"H6/'Field Survey'!G38","v":4.0727272727272723},"FB"]
[null,null," (Unit: parrticles/m3)","1.0mm≤d<5.0mm",null,"0204","Particle weight area density of particles with a particle diameter of less than 5 mm, calculated in principle as particle weight (#0190)/sampled area (#0082)/1,000,0000m2/km2, with the unit being particles/km2.",{"$f":"H7/'Field Survey'!G38","v":3.5296969696969698},"FB / E"]
[null,null," (Particle density_m3)","d<1.0mm",null,"0216","Number of particles with diameters between 1 mm and 5 mm.",{"$f":"H8/'Field Survey'!G38","v":0.54303030303030309},"FB"]
[null,null,null,"5.0mm≤d",null,"0228","Volume density of the number of particles with a particle diameter between 1 mm and 5 mm, calculated in principle as the number of particles (#0202)/volume of filtered water (#0086), in partsicles/m3.",{"$f":"H9/'Field Survey'!G38","v":0.16808080808080808}]
[null,null,"Particle number density per trawl swept area","d<5.0mm",null,"0194","Area density of the number of particles with a particle diameter between 1 mm and 5 mm. In principle, it is calculated as the number of particles (#0202)/sampled area (#0082)/1,000,0000m2/km2, with the unit being particles/km2.",{"$f":"H7/'Field Survey'!G36*1000*1000","v":1323636.3636363638},"FB"]
[null,null,"(Unit: parrticles/km2)","1.0mm≤d<5.0mm",null,"0206","Particle weight of particles with a diameter between 1 mm and 5 mm.",{"$f":"H8/'Field Survey'!G36*1000*1000","v":203636.36363636365},"FB / E"]
[null,null,"(Particle density_km2)","d<1.0mm",null,"0218","Particle weight volume density of particles with a particle size between 1 mm and 5 mm, calculated in principle as particle weight (#0208)/filtrate volume (#0086), in partsicles/m3.",{"$f":"H9/'Field Survey'!G36*1000*1000","v":63030.303030303032},"FB"]
[null,null,null,"5.0mm≤d",null,"0230","Particle weight area density of particles with a particle diameter between 1 mm and 5 mm, calculated in principle by particle weight (#0208)/sampled area (#0082)/1,000,0000m2/km2, with units of particles/km2.",{"$f":"H10/'Field Survey'!G36*1000*1000","v":4936.6391184573004}]
[null,null,"Weight of plastic particles","d<5.0mm",null,"0196","Number of particles with a particle size of less than 1 mm.",{"$f":"H19+H20","v":1.3},"FB*"]
[null,null," (Unit: g/sample)","1.0mm≤d<5.0mm",null,"0208","Volume density of the number of particles with a particle size of less than 1 mm, calculated in principle as the number of particles (#0214)/volume of filtered water (#0086), in partsicles/m3.",1.2,"FB* / E"]
[null,null," (Total weight_g)","d<1.0mm",null,"0220","Area density of the number of particles with a particle diameter of less than 1 mm, and is calculated in principle as the number of particles (#0214)/sampled area (#0082)/1,000,0000m2/km2, with the unit being particles/km2.",0.1,"FB*"]
[null,null,null,"5.0mm≤d",null,"0232","Particle weight of particles less than 1 mm in diameter.",0.26]
[null,null,"Particle weight density per filtered water volume","d<5.0mm",null,"0198","Particle weight volume density of particles less than 1 mm in diameter, calculated in principle by particle weight (#0220)/filtrate volume (#0086), in partsicles/m3.",{"$f":"H18/'Field Survey'!G38","v":4.2020202020202025E-3},"FB"]
[null,null," (Unit: g/m3)","1.0mm≤d<5.0mm",null,"0210","Particle weight area density of particles with a particle diameter of less than 1 mm, calculated in principle as particle weight (#0220)/sampled area (#0082)/1,000,0000m2/km2, with units of particles/km2.",{"$f":"H19/'Field Survey'!G38","v":3.8787878787878787E-3},"FB / E"]
[null,null," (Weight density_g/m3)","d<1.0mm",null,"0222","Number of particles with a particle size of 5 mm or larger.",{"$f":"H20/'Field Survey'!G38","v":3.2323232323232324E-4},"FB"]
[null,null,null,"5.0mm≤d",null,"0234","It is the volume density of the number of particles with a particle size of 5 mm or larger, calculated in principle as the number of particles (#0226) / volume of filtered water (#0086), in partsicles/m3.",{"$f":"H21/'Field Survey'!G38","v":8.4040404040404046E-4}]
[null,null,"Particle weight density per trawl swept area","d<5.0mm",null,"0200","Area density of the number of particles with a particle diameter of 5 mm or larger, calculated in principle as the number of particles (#0226)/sampled area (#0082)/1,000,0000m2/km2, in partsicles/km2.",{"$f":"H19/'Field Survey'!G36*1000*1000","v":1454.5454545454543},"FB"]
[null,null," (Unit: g/km2)","1.0mm≤d<5.0mm",null,"0212","Particle weight of particles with a particle size of 5 mm or larger.",{"$f":"H20/'Field Survey'!G36*1000*1000","v":121.21212121212123},"FB / E"]
[null,null," (Weight density_g/km2)","d<1.0mm",null,"0224","Particle weight volume density of particles with a particle size of 5 mm or larger, calculated in principle as particle weight (#0232)/filtrate volume (#0086), in partsicles/m3.",{"$f":"H21/'Field Survey'!G36*1000*1000","v":315.15151515151513},"FB"]
[null,null,null,"5.0mm≤d",null,"0236","Particle weight area density of particles with a particle diameter of 5 mm or larger, calculated in principle as particle weight (#0232)/sampled area (#0082)/1,000,0000m2/km2, with the unit being particles/km2.",{"$f":"H22/'Field Survey'!G36*1000*1000","v":5.0933578206305485}]
[null,null,"Percentage per shape","d<5.0mm","Shape category 1","0238","Percentage of plastic particles with a diameter of less than 5 mm, by shape. in units of %. If 'Others' is selected for any of \"Shape category 1\" to \"Shape category 5,\" please enter values that sum up from \"Shape percentage 1\" to \"Shape percentage 5\" to 100%.","Fragments"]
[null,null,"(Unit: %)",null,"Shape_percentage 1","0240",null,40]
[null,null,null,null,"Shape category 2","0242",null,"Beads"]
[null,null,null,null,"Shape_percentage 2","0244",null,26]
[null,null,null,null,"Shape category 3","0246",null,"Pellets "]
[null,null,null,null,"Shape_percentage 3","0248",null,14]
[null,null,null,null,"Shape category 4","0250",null,"Fibers"]
[null,null,null,null,"Shape_percentage 4","0252",null,13]
[null,null,null,null,"Shape category 5","0254",null,"Others"]
[null,null,null,null,"Shape_percentage 5","0256",null,7]
[null,null,null,null,"Total","-",null,{"$f":"IF(COUNT(H31,H33,H35,H37,H39)>0,H31+H33+H35+H37+H39,\"\")","v":100},null,{"$f":"IF(COUNT(J31,J33,J35,J37,J39)>0,J31+J33+J35+J37+J39,\"\")","v":""},"","","","","","","","","","","","","","","","","","","","","","","","","","","","","","","","","","","","","","","","","","","","","","","","","","","","","","","","","","","","","","","",{"$f":"IF(COUNT(BV31,BV33,BV35,BV37,BV39)>0,BV31+BV33+BV35+BV37+BV39,\"\")","v":""},"","","","","","","","","","","","","","","","","","","","","","","","","","","","","","","","","","","","","","","","","","","","","","","","","","","","","","","","","","","","","","","",{"$f":"IF(COUNT(EH31,EH33,EH35,EH37,EH39)>0,EH31+EH33+EH35+EH37+EH39,\"\")","v":""},"","","","","","","","","","","","","","","","","","","","","","","","","","","","","","","","","","","","","","","","","","","","","","","","","","","","","","","","","","","","","","","",{"$f":"IF(COUNT(GT31,GT33,GT35,GT37,GT39)>0,GT31+GT33+GT35+GT37+GT39,\"\")","v":""},"","","","","","",""]
[null,null,null,"1.0mm≤d<5.0mm","Shape category 1","0298","Percentage of plastic particles with a diameter of less than 5 mm but greater than 1 mm, by shape. in units of %. If 'Others' is selected for any of \"Shape category 1\" to \"Shape category 5,\" please enter values that sum up from \"Shape percentage 1\" to \"Shape percentage 5\" to 100%.","Fragments","E"]
[null,null,null,null,"Shape_percentage 1","0300",null,40]
[null,null,null,null,"Shape category 2","0302",null,"Beads"]
[null,null,null,null,"Shape_percentage 2","0304",null,26]
[null,null,null,null,"Shape category 3","0306",null,"Pellets "]
[null,null,null,null,"Shape_percentage 3","0308",null,14]
[null,null,null,null,"Shape category 4","0310",null,"Fibers"]
[null,null,null,null,"Shape_percentage 4","0312",null,13]
[null,null,null,null,"Shape category 5","0314",null,"Others"]
[null,null,null,null,"Shape_percentage 5","0316",null,7]
[null,null,null,null,"Total","-",null,{"$f":"IF(COUNT(H42,H44,H46,H48,H50)>0,H42+H44+H46+H48+H50,\"\")","v":100},null,"","","","","","","","","","","","","","","","","","","","","","","","","","","","","","","","","","","","","","","","","","","","","","","","","","","","","","","","","","","","","","","",{"$f":"IF(COUNT(BU42,BU44,BU46,BU48,BU50)>0,BU42+BU44+BU46+BU48+BU50,\"\")","v":""},"","","","","","","","","","","","","","","","","","","","","","","","","","","","","","","","","","","","","","","","","","","","","","","","","","","","","","","","","","","","","","","",{"$f":"IF(COUNT(EG42,EG44,EG46,EG48,EG50)>0,EG42+EG44+EG46+EG48+EG50,\"\")","v":""},"","","","","","","","","","","","","","","","","","","","","","","","","","","","","","","","","","","","","","","","","","","","","","","","","","","","","","","","","","","","","","","",{"$f":"IF(COUNT(GS42,GS44,GS46,GS48,GS50)>0,GS42+GS44+GS46+GS48+GS50,\"\")","v":""},"","","","","","","",""]
[null,null,null,"d<1.0mm","Shape category 1","0358","Percentage of plastic particles with a diameter of less than 1 mm, by shape. in units of %. If 'Others' is selected for any of \"Shape category 1\" to \"Shape category 5,\" please enter values that sum up from \"Shape percentage 1\" to \"Shape percentage 5\" to 100%.","Fragments"]
[null,null,null,null,"Shape_percentage 1","0360",null,40]
[null,null,null,null,"Shape category 2","0362",null,"Beads"]
[null,null,null,null,"Shape_percentage 2","0364",null,26]
[null,null,null,null,"Shape category 3","0366",null,"Pellets "]
[null,null,null,null,"Shape_percentage 3","0368",null,14]
[null,null,null,null,"Shape category 4","0370",null,"Fibers"]
[null,null,null,null,"Shape_percentage 4","0372",null,13]
[null,null,null,null,"Shape category 5","0374",null,"Others"]
[null,null,null,null,"Shape_percentage 5","0376",null,7]
[null,null,null,null,"Total","-",null,{"$f":"IF(COUNT(H53,H55,H57,H59,H61)>0,H53+H55+H57+H59+H61,\"\")","v":100},null,"","","","","","","","","","","","","","","","","","","","","","","","","","","","","","","","","","","","","","","","","","","","","","","","","","","","","","","","","","","","","","","",{"$f":"IF(COUNT(BU53,BU55,BU57,BU59,BU61)>0,BU53+BU55+BU57+BU59+BU61,\"\")","v":""},"","","","","","","","","","","","","","","","","","","","","","","","","","","","","","","","","","","","","","","","","","","","","","","","","","","","","","","","","","","","","","","",{"$f":"IF(COUNT(EG53,EG55,EG57,EG59,EG61)>0,EG53+EG55+EG57+EG59+EG61,\"\")","v":""},"","","","","","","","","","","","","","","","","","","","","","","","","","","","","","","","","","","","","","","","","","","","","","","","","","","","","","","","","","","","","","","",{"$f":"IF(COUNT(GS53,GS55,GS57,GS59,GS61)>0,GS53+GS55+GS57+GS59+GS61,\"\")","v":""},"","","","","","","",""]
[null,null,"Percentage per material","d<5.0mm","Material category 1","0258","Percentage of plastic particles with a diameter of less than 5 mm, by material, in units of %. If 'Others' is selected for any of \"Material category 1\" to \"Material category 5,\" please enter values that sum up from \"Material percentage 1\" to \"Material percentage 5\" to 100%.","PE"]
[null,null,"(Unit: %)",null,"Material_percentage 1","0260",null,56]
[null,null,null,null,"Material category 2","0262",null,"PP"]
[null,null,null,null,"Material_percentage 2","0264",null,30]
[null,null,null,null,"Material category 3","0266",null,"PS"]
[null,null,null,null,"Material_percentage 3","0268",null,10]
[null,null,null,null,"Material category 4","0270",null,"PU "]
[null,null,null,null,"Material_percentage 4","0272",null,3]
[null,null,null,null,"Material category 5","0274",null,"Others"]
[null,null,null,null,"Material_percentage 5","0276",null,1]
[null,null,null,null,"Total","-",null,{"$f":"IF(COUNT(H64,H66,H68,H70,H72)>0,H64+H66+H68+H70+H72,\"\")","v":100},null,"","","","","","","","","","","","","","","","","","","","","","","","","","","","","","","","","","","","","","","","","","","","","","","","","","","","","","","","","","","","","","","",{"$f":"IF(COUNT(BU64,BU66,BU68,BU70,BU72)>0,BU64+BU66+BU68+BU70+BU72,\"\")","v":""},"","","","","","","","","","","","","","","","","","","","","","","","","","","","","","","","","","","","","","","","","","","","","","","","","","","","","","","","","","","","","","","",{"$f":"IF(COUNT(EG64,EG66,EG68,EG70,EG72)>0,EG64+EG66+EG68+EG70+EG72,\"\")","v":""},"","","","","","","","","","","","","","","","","","","","","","","","","","","","","","","","","","","","","","","","","","","","","","","","","","","","","","","","","","","","","","","",{"$f":"IF(COUNT(GS64,GS66,GS68,GS70,GS72)>0,GS64+GS66+GS68+GS70+GS72,\"\")","v":""},"","","","","","","",""]
[null,null,null,"1.0mm≤d<5.0mm","Material category 1","0318","Percentage of plastic particles with a diameter of 1 mm or more and less than 5 mm, by material, in units of %. If 'Others' is selected for any of \"Material category 1\" to \"Material category 5,\" please enter values that sum up from \"Material percentage 1\" to \"Material percentage 5\" to 100%.","PE"]
[null,null,null,null,"Material_percentage 1","0320",null,56]
[null,null,null,null,"Material category 2","0322",null,"PP"]
[null,null,null,null,"Material_percentage 2","0324",null,30]
[null,null,null,null,"Material category 3","0326",null,"PS"]
[null,null,null,null,"Material_percentage 3","0328",null,10]
[null,null,null,null,"Material category 4","0330",null,"PU "]
[null,null,null,null,"Material_percentage 4","0332",null,3]
[null,null,null,null,"Material category 5","0334",null,"Others"]
[null,null,null,null,"Material_percentage 5","0336",null,1]
[null,null,null,null,"Total","-",null,{"$f":"IF(COUNT(H75,H77,H79,H81,H83)>0,H75+H77+H79+H81+H83,\"\")","v":100},null,"","","","","","","","","","","","","","","","","","","","","","","","","","","","","","","","","","","","","","","","","","","","","","","","","","","","","","","","","","","","","","","",{"$f":"IF(COUNT(BU75,BU77,BU79,BU81,BU83)>0,BU75+BU77+BU79+BU81+BU83,\"\")","v":""},"","","","","","","","","","","","","","","","","","","","","","","","","","","","","","","","","","","","","","","","","","","","","","","","","","","","","","","","","","","","","","","",{"$f":"IF(COUNT(EG75,EG77,EG79,EG81,EG83)>0,EG75+EG77+EG79+EG81+EG83,\"\")","v":""},"","","","","","","","","","","","","","","","","","","","","","","","","","","","","","","","","","","","","","","","","","","","","","","","","","","","","","","","","","","","","","","",{"$f":"IF(COUNT(GS75,GS77,GS79,GS81,GS83)>0,GS75+GS77+GS79+GS81+GS83,\"\")","v":""},"","","","","","","",""]
[null,null,null,"d<1.0mm","Material category 1","0378","Percentage of plastic particles with a diameter of less than 1 mm, by material, in units of %. If 'Others' is selected for any of \"Material category 1\" to \"Material category 5,\" please enter values that sum up from \"Material percentage 1\" to \"Material percentage 5\" to 100%.","PE"]
[null,null,null,null,"Material_percentage 1","0380",null,56]
[null,null,null,null,"Material category 2","0382",null,"PP"]
[null,null,null,null,"Material_percentage 2","0384",null,30]
[null,null,null,null,"Material category 3","0386",null,"PS"]
[null,null,null,null,"Material_percentage 3","0388",null,10]
[null,null,null,null,"Material category 4","0390",null,"PU "]
[null,null,null,null,"Material_percentage 4","0392",null,3]
[null,null,null,null,"Material category 5","0394",null,"Others"]
[null,null,null,null,"Material_percentage 5","0396",null,1]
[null,null,null,null,"Total","-",null,{"$f":"IF(COUNT(H86,H88,H90,H92,H94)>0,H86+H88+H90+H92+H94,\"\")","v":100},null,"","","","","","","","","","","","","","","","","","","","","","","","","","","","","","","","","","","","","","","","","","","","","","","","","","","","","","","","","","","","","","","",{"$f":"IF(COUNT(BU86,BU88,BU90,BU92,BU94)>0,BU86+BU88+BU90+BU92+BU94,\"\")","v":""},"","","","","","","","","","","","","","","","","","","","","","","","","","","","","","","","","","","","","","","","","","","","","","","","","","","","","","","","","","","","","","","",{"$f":"IF(COUNT(EG86,EG88,EG90,EG92,EG94)>0,EG86+EG88+EG90+EG92+EG94,\"\")","v":""},"","","","","","","","","","","","","","","","","","","","","","","","","","","","","","","","","","","","","","","","","","","","","","","","","","","","","","","","","","","","","","","",{"$f":"IF(COUNT(GS86,GS88,GS90,GS92,GS94)>0,GS86+GS88+GS90+GS92+GS94,\"\")","v":""},"","","","","","","",""]
[null,null,"Percentage per colour","d<5.0mm","Colour category 1","0278","Percentage of plastic particles with a diameter of less than 5 mm, by shape, in units of %. If 'Uncategorized' is selected for any of \"Colour category 1\" to \"Colour category 5,\" please enter values that sum up from \"Colour percentage 1\" to \"Colour percentage 5\" to 100%.","Transparent"]
[null,null,"(Unit: %)",null,"Colour_percentage 1","0280",null,36]
[null,null,null,null,"Colour category 2","0282",null,"White"]
[null,null,null,null,"Colour_percentage 2","0284",null,30]
[null,null,null,null,"Colour category 3","0286",null,"Green"]
[null,null,null,null,"Colour_percentage 3","0288",null,20]
[null,null,null,null,"Colour category 4","0290",null,"Red"]
[null,null,null,null,"Colour_percentage 4","0292",null,10]
[null,null,null,null,"Colour category 5","0294",null,"Uncategorized"]
[null,null,null,null,"Colour_percentage 5","0296",null,3]
[null,null,null,null,"Total","-",null,{"$f":"IF(COUNT(H97,H99,H101,H103,H105)>0,H97+H99+H101+H103+H105,\"\")","v":99},null,"","","","","","","","","","","","","","","","","","","","","","","","","","","","","","","","","","","","","","","","","","","","","","","","","","","","","","","","","","","","","","","",{"$f":"IF(COUNT(BU97,BU99,BU101,BU103,BU105)>0,BU97+BU99+BU101+BU103+BU105,\"\")","v":""},"","","","","","","","","","","","","","","","","","","","","","","","","","","","","","","","","","","","","","","","","","","","","","","","","","","","","","","","","","","","","","","",{"$f":"IF(COUNT(EG97,EG99,EG101,EG103,EG105)>0,EG97+EG99+EG101+EG103+EG105,\"\")","v":""},"","","","","","","","","","","","","","","","","","","","","","","","","","","","","","","","","","","","","","","","","","","","","","","","","","","","","","","","","","","","","","","",{"$f":"IF(COUNT(GS97,GS99,GS101,GS103,GS105)>0,GS97+GS99+GS101+GS103+GS105,\"\")","v":""},"","","","","","","",""]
[null,null,null,"1.0mm≤d<5.0mm","Colour category 1","0338","Percentage of plastic particles with a diameter of 1 mm or more and less than 5 mm, by shape, in units of %. If 'Uncategorized' is selected for any of \"Colour category 1\" to \"Colour category 5,\" please enter values that sum up from \"Colour percentage 1\" to \"Colour percentage 5\" to 100%.","Transparent"]
[null,null,null,null,"Colour_percentage 1","0340",null,36]
[null,null,null,null,"Colour category 2","0342",null,"White"]
[null,null,null,null,"Colour_percentage 2","0344",null,30]
[null,null,null,null,"Colour category 3","0346",null,"Green"]
[null,null,null,null,"Colour_percentage 3","0348",null,20]
[null,null,null,null,"Colour category 4","0350",null,"Red"]
[null,null,null,null,"Colour_percentage 4","0352",null,10]
[null,null,null,null,"Colour category 5","0354",null,"Uncategorized"]
[null,null,null,null,"Colour_percentage 5","0356",null,3]
[null,null,null,null,"Total","-",null,{"$f":"IF(COUNT(H108,H110,H112,H114,H116)>0,H108+H110+H112+H114+H116,\"\")","v":99},null,"","","","","","","","","","","","","","","","","","","","","","","","","","","","","","","","","","","","","","","","","","","","","","","","","","","","","","","","","","","","","","","",{"$f":"IF(COUNT(BU108,BU110,BU112,BU114,BU116)>0,BU108+BU110+BU112+BU114+BU116,\"\")","v":""},"","","","","","","","","","","","","","","","","","","","","","","","","","","","","","","","","","","","","","","","","","","","","","","","","","","","","","","","","","","","","","","",{"$f":"IF(COUNT(EG108,EG110,EG112,EG114,EG116)>0,EG108+EG110+EG112+EG114+EG116,\"\")","v":""},"","","","","","","","","","","","","","","","","","","","","","","","","","","","","","","","","","","","","","","","","","","","","","","","","","","","","","","","","","","","","","","",{"$f":"IF(COUNT(GS108,GS110,GS112,GS114,GS116)>0,GS108+GS110+GS112+GS114+GS116,\"\")","v":""},"","","","","","","",""]
[null,null,null,"d<1.0mm","Colour category 1","0398","Percentage of plastic particles with a diameter of less than 1 mm, by shape, in units of %. If 'Uncategorized' is selected for any of \"Colour category 1\" to \"Colour category 5,\" please enter values that sum up from \"Colour percentage 1\" to \"Colour percentage 5\" to 100%.","Transparent"]
[null,null,null,null,"Colour_percentage 1","0400",null,36]
[null,null,null,null,"Colour category 2","0402",null,"White"]
[null,null,null,null,"Colour_percentage 2","0404",null,30]
[null,null,null,null,"Colour category 3","0406",null,"Green"]
[null,null,null,null,"Colour_percentage 3","0408",null,20]
[null,null,null,null,"Colour category 4","0410",null,"Red"]
[null,null,null,null,"Colour_percentage 4","0412",null,10]
[null,null,null,null,"Colour category 5","0414",null,"Uncategorized"]
[null,null,null,null,"Colour_percentage 5","0416",null,3]
[null,null,null,null,"Total","-",null,{"$f":"IF(COUNT(H119,H121,H123,H125,H127)>0,H119+H121+H123+H125+H127,\"\")","v":99},null,"","","","","","","","","","","","","","","","","","","","","","","","","","","","","","","","","","","","","","","","","","","","","","","","","","","","","","","","","","","","","","","",{"$f":"IF(COUNT(BU119,BU121,BU123,BU125,BU127)>0,BU119+BU121+BU123+BU125+BU127,\"\")","v":""},"","","","","","","","","","","","","","","","","","","","","","","","","","","","","","","","","","","","","","","","","","","","","","","","","","","","","","","","","","","","","","","",{"$f":"IF(COUNT(EG119,EG121,EG123,EG125,EG127)>0,EG119+EG121+EG123+EG125+EG127,\"\")","v":""},"","","","","","","","","","","","","","","","","","","","","","","","","","","","","","","","","","","","","","","","","","","","","","","","","","","","","","","","","","","","","","","",{"$f":"IF(COUNT(GS119,GS121,GS123,GS125,GS127)>0,GS119+GS121+GS123+GS125+GS127,\"\")","v":""},"","","","","","","",""]

{"sheet":"Remarks","index":5,"n_rows":69,"n_cols":203,"rows_kept":69,"cut":false,"hidden":false,"merged":[]}
[]
[]
[]
[null,null,"All samples"]
[null,null,"No.","Data entry field"]
[null,null,1]
[null,null,{"$f":"C6+1","v":2}]
[null,null,{"$f":"C7+1","v":3}]
[null,null,4]
[null,null,5]
[null,null,6]
[null,null,7]
[null,null,8]
[null,null,9]
[null,null,10]
[null,null,11]
[null,null,12]
[null,null,13]
[null,null,14]
[null,null,15]
[null,null,16]
[null,null,17]
[null,null,18]
[null,null,19]
[null,null,20]
[null,null,21]
[null,null,22]
[null,null,23]
[null,null,24]
[null,null,25]
[null,null,26]
[null,null,27]
[null,null,28]
[null,null,29]
[null,null,30]
[]
[null,null,"Each samples"]
[null,null,"Category","Data entry field"]
[null,null,null,{"$f":"IF(COUNTA('Field Survey'!J21)=1,'Field Survey'!J21,\"\")","v":""},{"$f":"IF(COUNTA('Field Survey'!K21)=1,'Field Survey'!K21,\"\")","v":""},{"$f":"IF(COUNTA('Field Survey'!L21)=1,'Field Survey'!L21,\"\")","v":""},{"$f":"IF(COUNTA('Field Survey'!M21)=1,'Field Survey'!M21,\"\")","v":""},{"$f":"IF(COUNTA('Field Survey'!N21)=1,'Field Survey'!N21,\"\")","v":""},{"$f":"IF(COUNTA('Field Survey'!O21)=1,'Field Survey'!O21,\"\")","v":""},{"$f":"IF(COUNTA('Field Survey'!P21)=1,'Field Survey'!P21,\"\")","v":""},{"$f":"IF(COUNTA('Field Survey'!Q21)=1,'Field Survey'!Q21,\"\")","v":""},{"$f":"IF(COUNTA('Field Survey'!R21)=1,'Field Survey'!R21,\"\")","v":""},{"$f":"IF(COUNTA('Field Survey'!S21)=1,'Field Survey'!S21,\"\")","v":""},{"$f":"IF(COUNTA('Field Survey'!T21)=1,'Field Survey'!T21,\"\")","v":""},{"$f":"IF(COUNTA('Field Survey'!U21)=1,'Field Survey'!U21,\"\")","v":""},{"$f":"IF(COUNTA('Field Survey'!V21)=1,'Field Survey'!V21,\"\")","v":""},{"$f":"IF(COUNTA('Field Survey'!W21)=1,'Field Survey'!W21,\"\")","v":""},{"$f":"IF(COUNTA('Field Survey'!X21)=1,'Field Survey'!X21,\"\")","v":""},{"$f":"IF(COUNTA('Field Survey'!Y21)=1,'Field Survey'!Y21,\"\")","v":""},{"$f":"IF(COUNTA('Field Survey'!Z21)=1,'Field Survey'!Z21,\"\")","v":""},{"$f":"IF(COUNTA('Field Survey'!AA21)=1,'Field Survey'!AA21,\"\")","v":""},{"$f":"IF(COUNTA('Field Survey'!AB21)=1,'Field Survey'!AB21,\"\")","v":""},{"$f":"IF(COUNTA('Field Survey'!AC21)=1,'Field Survey'!AC21,\"\")","v":""},{"$f":"IF(COUNTA('Field Survey'!AD21)=1,'Field Survey'!AD21,\"\")","v":""},{"$f":"IF(COUNTA('Field Survey'!AE21)=1,'Field Survey'!AE21,\"\")","v":""},{"$f":"IF(COUNTA('Field Survey'!AF21)=1,'Field Survey'!AF21,\"\")","v":""},{"$f":"IF(COUNTA('Field Survey'!AG21)=1,'Field Survey'!AG21,\"\")","v":""},{"$f":"IF(COUNTA('Field Survey'!AH21)=1,'Field Survey'!AH21,\"\")","v":""},{"$f":"IF(COUNTA('Field Survey'!AI21)=1,'Field Survey'!AI21,\"\")","v":""},{"$f":"IF(COUNTA('Field Survey'!AJ21)=1,'Field Survey'!AJ21,\"\")","v":""},{"$f":"IF(COUNTA('Field Survey'!AK21)=1,'Field Survey'!AK21,\"\")","v":""},{"$f":"IF(COUNTA('Field Survey'!AL21)=1,'Field Survey'!AL21,\"\")","v":""},{"$f":"IF(COUNTA('Field Survey'!AM21)=1,'Field Survey'!AM21,\"\")","v":""},{"$f":"IF(COUNTA('Field Survey'!AN21)=1,'Field Survey'!AN21,\"\")","v":""},{"$f":"IF(COUNTA('Field Survey'!AO21)=1,'Field Survey'!AO21,\"\")","v":""},{"$f":"IF(COUNTA('Field Survey'!AP21)=1,'Field Survey'!AP21,\"\")","v":""},{"$f":"IF(COUNTA('Field Survey'!AQ21)=1,'Field Survey'!AQ21,\"\")","v":""},{"$f":"IF(COUNTA('Field Survey'!AR21)=1,'Field Survey'!AR21,\"\")","v":""},{"$f":"IF(COUNTA('Field Survey'!AS21)=1,'Field Survey'!AS21,\"\")","v":""},{"$f":"IF(COUNTA('Field Survey'!AT21)=1,'Field Survey'!AT21,\"\")","v":""},{"$f":"IF(COUNTA('Field Survey'!AU21)=1,'Field Survey'!AU21,\"\")","v":""},{"$f":"IF(COUNTA('Field Survey'!AV21)=1,'Field Survey'!AV21,\"\")","v":""},{"$f":"IF(COUNTA('Field Survey'!AW21)=1,'Field Survey'!AW21,\"\")","v":""},{"$f":"IF(COUNTA('Field Survey'!AX21)=1,'Field Survey'!AX21,\"\")","v":""},{"$f":"IF(COUNTA('Field Survey'!AY21)=1,'Field Survey'!AY21,\"\")","v":""},{"$f":"IF(COUNTA('Field Survey'!AZ21)=1,'Field Survey'!AZ21,\"\")","v":""},{"$f":"IF(COUNTA('Field Survey'!BA21)=1,'Field Survey'!BA21,\"\")","v":""},{"$f":"IF(COUNTA('Field Survey'!BB21)=1,'Field Survey'!BB21,\"\")","v":""},{"$f":"IF(COUNTA('Field Survey'!BC21)=1,'Field Survey'!BC21,\"\")","v":""},{"$f":"IF(COUNTA('Field Survey'!BD21)=1,'Field Survey'!BD21,\"\")","v":""},{"$f":"IF(COUNTA('Field Survey'!BE21)=1,'Field Survey'!BE21,\"\")","v":""},{"$f":"IF(COUNTA('Field Survey'!BF21)=1,'Field Survey'!BF21,\"\")","v":""},{"$f":"IF(COUNTA('Field Survey'!BG21)=1,'Field Survey'!BG21,\"\")","v":""},{"$f":"IF(COUNTA('Field Survey'!BH21)=1,'Field Survey'!BH21,\"\")","v":""},{"$f":"IF(COUNTA('Field Survey'!BI21)=1,'Field Survey'!BI21,\"\")","v":""},{"$f":"IF(COUNTA('Field Survey'!BJ21)=1,'Field Survey'!BJ21,\"\")","v":""},{"$f":"IF(COUNTA('Field Survey'!BK21)=1,'Field Survey'!BK21,\"\")","v":""},{"$f":"IF(COUNTA('Field Survey'!BL21)=1,'Field Survey'!BL21,\"\")","v":""},{"$f":"IF(COUNTA('Field Survey'!BM21)=1,'Field Survey'!BM21,\"\")","v":""},{"$f":"IF(COUNTA('Field Survey'!BN21)=1,'Field Survey'!BN21,\"\")","v":""},{"$f":"IF(COUNTA('Field Survey'!BO21)=1,'Field Survey'!BO21,\"\")","v":""},{"$f":"IF(COUNTA('Field Survey'!BP21)=1,'Field Survey'!BP21,\"\")","v":""},{"$f":"IF(COUNTA('Field Survey'!BQ21)=1,'Field Survey'!BQ21,\"\")","v":""},{"$f":"IF(COUNTA('Field Survey'!BR21)=1,'Field Survey'!BR21,\"\")","v":""},{"$f":"IF(COUNTA('Field Survey'!BS21)=1,'Field Survey'!BS21,\"\")","v":""},{"$f":"IF(COUNTA('Field Survey'!BT21)=1,'Field Survey'!BT21,\"\")","v":""},{"$f":"IF(COUNTA('Field Survey'!BU21)=1,'Field Survey'!BU21,\"\")","v":""},{"$f":"IF(COUNTA('Field Survey'!BV21)=1,'Field Survey'!BV21,\"\")","v":""},{"$f":"IF(COUNTA('Field Survey'!BW21)=1,'Field Survey'!BW21,\"\")","v":""},{"$f":"IF(COUNTA('Field Survey'!BX21)=1,'Field Survey'!BX21,\"\")","v":""},{"$f":"IF(COUNTA('Field Survey'!BY21)=1,'Field Survey'!BY21,\"\")","v":""},{"$f":"IF(COUNTA('Field Survey'!BZ21)=1,'Field Survey'!BZ21,\"\")","v":""},{"$f":"IF(COUNTA('Field Survey'!CA21)=1,'Field Survey'!CA21,\"\")","v":""},{"$f":"IF(COUNTA('Field Survey'!CB21)=1,'Field Survey'!CB21,\"\")","v":""},{"$f":"IF(COUNTA('Field Survey'!CC21)=1,'Field Survey'!CC21,\"\")","v":""},{"$f":"IF(COUNTA('Field Survey'!CD21)=1,'Field Survey'!CD21,\"\")","v":""},{"$f":"IF(COUNTA('Field Survey'!CE21)=1,'Field Survey'!CE21,\"\")","v":""},{"$f":"IF(COUNTA('Field Survey'!CF21)=1,'Field Survey'!CF21,\"\")","v":""},{"$f":"IF(COUNTA('Field Survey'!CG21)=1,'Field Survey'!CG21,\"\")","v":""},{"$f":"IF(COUNTA('Field Survey'!CH21)=1,'Field Survey'!CH21,\"\")","v":""},{"$f":"IF(COUNTA('Field Survey'!CI21)=1,'Field Survey'!CI21,\"\")","v":""},{"$f":"IF(COUNTA('Field Survey'!CJ21)=1,'Field Survey'!CJ21,\"\")","v":""},{"$f":"IF(COUNTA('Field Survey'!CK21)=1,'Field Survey'!CK21,\"\")","v":""},{"$f":"IF(COUNTA('Field Survey'!CL21)=1,'Field Survey'!CL21,\"\")","v":""},{"$f":"IF(COUNTA('Field Survey'!CM21)=1,'Field Survey'!CM21,\"\")","v":""},{"$f":"IF(COUNTA('Field Survey'!CN21)=1,'Field Survey'!CN21,\"\")","v":""},{"$f":"IF(COUNTA('Field Survey'!CO21)=1,'Field Survey'!CO21,\"\")","v":""},{"$f":"IF(COUNTA('Field Survey'!CP21)=1,'Field Survey'!CP21,\"\")","v":""},{"$f":"IF(COUNTA('Field Survey'!CQ21)=1,'Field Survey'!CQ21,\"\")","v":""},{"$f":"IF(COUNTA('Field Survey'!CR21)=1,'Field Survey'!CR21,\"\")","v":""},{"$f":"IF(COUNTA('Field Survey'!CS21)=1,'Field Survey'!CS21,\"\")","v":""},{"$f":"IF(COUNTA('Field Survey'!CT21)=1,'Field Survey'!CT21,\"\")","v":""},{"$f":"IF(COUNTA('Field Survey'!CU21)=1,'Field Survey'!CU21,\"\")","v":""},{"$f":"IF(COUNTA('Field Survey'!CV21)=1,'Field Survey'!CV21,\"\")","v":""},{"$f":"IF(COUNTA('Field Survey'!CW21)=1,'Field Survey'!CW21,\"\")","v":""},{"$f":"IF(COUNTA('Field Survey'!CX21)=1,'Field Survey'!CX21,\"\")","v":""},{"$f":"IF(COUNTA('Field Survey'!CY21)=1,'Field Survey'!CY21,\"\")","v":""},{"$f":"IF(COUNTA('Field Survey'!CZ21)=1,'Field Survey'!CZ21,\"\")","v":""},{"$f":"IF(COUNTA('Field Survey'!DA21)=1,'Field Survey'!DA21,\"\")","v":""},{"$f":"IF(COUNTA('Field Survey'!DB21)=1,'Field Survey'!DB21,\"\")","v":""},{"$f":"IF(COUNTA('Field Survey'!DC21)=1,'Field Survey'!DC21,\"\")","v":""},{"$f":"IF(COUNTA('Field Survey'!DD21)=1,'Field Survey'!DD21,\"\")","v":""},{"$f":"IF(COUNTA('Field Survey'!DE21)=1,'Field Survey'!DE21,\"\")","v":""},{"$f":"IF(COUNTA('Field Survey'!DF21)=1,'Field Survey'!DF21,\"\")","v":""},{"$f":"IF(COUNTA('Field Survey'!DG21)=1,'Field Survey'!DG21,\"\")","v":""},{"$f":"IF(COUNTA('Field Survey'!DH21)=1,'Field Survey'!DH21,\"\")","v":""},{"$f":"IF(COUNTA('Field Survey'!DI21)=1,'Field Survey'!DI21,\"\")","v":""},{"$f":"IF(COUNTA('Field Survey'!DJ21)=1,'Field Survey'!DJ21,\"\")","v":""},{"$f":"IF(COUNTA('Field Survey'!DK21)=1,'Field Survey'!DK21,\"\")","v":""},{"$f":"IF(COUNTA('Field Survey'!DL21)=1,'Field Survey'!DL21,\"\")","v":""},{"$f":"IF(COUNTA('Field Survey'!DM21)=1,'Field Survey'!DM21,\"\")","v":""},{"$f":"IF(COUNTA('Field Survey'!DN21)=1,'Field Survey'!DN21,\"\")","v":""},{"$f":"IF(COUNTA('Field Survey'!DO21)=1,'Field Survey'!DO21,\"\")","v":""},{"$f":"IF(COUNTA('Field Survey'!DP21)=1,'Field Survey'!DP21,\"\")","v":""},{"$f":"IF(COUNTA('Field Survey'!DQ21)=1,'Field Survey'!DQ21,\"\")","v":""},{"$f":"IF(COUNTA('Field Survey'!DR21)=1,'Field Survey'!DR21,\"\")","v":""},{"$f":"IF(COUNTA('Field Survey'!DS21)=1,'Field Survey'!DS21,\"\")","v":""},{"$f":"IF(COUNTA('Field Survey'!DT21)=1,'Field Survey'!DT21,\"\")","v":""},{"$f":"IF(COUNTA('Field Survey'!DU21)=1,'Field Survey'!DU21,\"\")","v":""},{"$f":"IF(COUNTA('Field Survey'!DV21)=1,'Field Survey'!DV21,\"\")","v":""},{"$f":"IF(COUNTA('Field Survey'!DW21)=1,'Field Survey'!DW21,\"\")","v":""},{"$f":"IF(COUNTA('Field Survey'!DX21)=1,'Field Survey'!DX21,\"\")","v":""},{"$f":"IF(COUNTA('Field Survey'!DY21)=1,'Field Survey'!DY21,\"\")","v":""},{"$f":"IF(COUNTA('Field Survey'!DZ21)=1,'Field Survey'!DZ21,\"\")","v":""},{"$f":"IF(COUNTA('Field Survey'!EA21)=1,'Field Survey'!EA21,\"\")","v":""},{"$f":"IF(COUNTA('Field Survey'!EB21)=1,'Field Survey'!EB21,\"\")","v":""},{"$f":"IF(COUNTA('Field Survey'!EC21)=1,'Field Survey'!EC21,\"\")","v":""},{"$f":"IF(COUNTA('Field Survey'!ED21)=1,'Field Survey'!ED21,\"\")","v":""},{"$f":"IF(COUNTA('Field Survey'!EE21)=1,'Field Survey'!EE21,\"\")","v":""},{"$f":"IF(COUNTA('Field Survey'!EF21)=1,'Field Survey'!EF21,\"\")","v":""},{"$f":"IF(COUNTA('Field Survey'!EG21)=1,'Field Survey'!EG21,\"\")","v":""},{"$f":"IF(COUNTA('Field Survey'!EH21)=1,'Field Survey'!EH21,\"\")","v":""},{"$f":"IF(COUNTA('Field Survey'!EI21)=1,'Field Survey'!EI21,\"\")","v":""},{"$f":"IF(COUNTA('Field Survey'!EJ21)=1,'Field Survey'!EJ21,\"\")","v":""},{"$f":"IF(COUNTA('Field Survey'!EK21)=1,'Field Survey'!EK21,\"\")","v":""},{"$f":"IF(COUNTA('Field Survey'!EL21)=1,'Field Survey'!EL21,\"\")","v":""},{"$f":"IF(COUNTA('Field Survey'!EM21)=1,'Field Survey'!EM21,\"\")","v":""},{"$f":"IF(COUNTA('Field Survey'!EN21)=1,'Field Survey'!EN21,\"\")","v":""},{"$f":"IF(COUNTA('Field Survey'!EO21)=1,'Field Survey'!EO21,\"\")","v":""},{"$f":"IF(COUNTA('Field Survey'!EP21)=1,'Field Survey'!EP21,\"\")","v":""},{"$f":"IF(COUNTA('Field Survey'!EQ21)=1,'Field Survey'!EQ21,\"\")","v":""},{"$f":"IF(COUNTA('Field Survey'!ER21)=1,'Field Survey'!ER21,\"\")","v":""},{"$f":"IF(COUNTA('Field Survey'!ES21)=1,'Field Survey'!ES21,\"\")","v":""},{"$f":"IF(COUNTA('Field Survey'!ET21)=1,'Field Survey'!ET21,\"\")","v":""},{"$f":"IF(COUNTA('Field Survey'!EU21)=1,'Field Survey'!EU21,\"\")","v":""},{"$f":"IF(COUNTA('Field Survey'!EV21)=1,'Field Survey'!EV21,\"\")","v":""},{"$f":"IF(COUNTA('Field Survey'!EW21)=1,'Field Survey'!EW21,\"\")","v":""},{"$f":"IF(COUNTA('Field Survey'!EX21)=1,'Field Survey'!EX21,\"\")","v":""},{"$f":"IF(COUNTA('Field Survey'!EY21)=1,'Field Survey'!EY21,\"\")","v":""},{"$f":"IF(COUNTA('Field Survey'!EZ21)=1,'Field Survey'!EZ21,\"\")","v":""},{"$f":"IF(COUNTA('Field Survey'!FA21)=1,'Field Survey'!FA21,\"\")","v":""},{"$f":"IF(COUNTA('Field Survey'!FB21)=1,'Field Survey'!FB21,\"\")","v":""},{"$f":"IF(COUNTA('Field Survey'!FC21)=1,'Field Survey'!FC21,\"\")","v":""},{"$f":"IF(COUNTA('Field Survey'!FD21)=1,'Field Survey'!FD21,\"\")","v":""},{"$f":"IF(COUNTA('Field Survey'!FE21)=1,'Field Survey'!FE21,\"\")","v":""},{"$f":"IF(COUNTA('Field Survey'!FF21)=1,'Field Survey'!FF21,\"\")","v":""},{"$f":"IF(COUNTA('Field Survey'!FG21)=1,'Field Survey'!FG21,\"\")","v":""},{"$f":"IF(COUNTA('Field Survey'!FH21)=1,'Field Survey'!FH21,\"\")","v":""},{"$f":"IF(COUNTA('Field Survey'!FI21)=1,'Field Survey'!FI21,\"\")","v":""},{"$f":"IF(COUNTA('Field Survey'!FJ21)=1,'Field Survey'!FJ21,\"\")","v":""},{"$f":"IF(COUNTA('Field Survey'!FK21)=1,'Field Survey'!FK21,\"\")","v":""},{"$f":"IF(COUNTA('Field Survey'!FL21)=1,'Field Survey'!FL21,\"\")","v":""},{"$f":"IF(COUNTA('Field Survey'!FM21)=1,'Field Survey'!FM21,\"\")","v":""},{"$f":"IF(COUNTA('Field Survey'!FN21)=1,'Field Survey'!FN21,\"\")","v":""},{"$f":"IF(COUNTA('Field Survey'!FO21)=1,'Field Survey'!FO21,\"\")","v":""},{"$f":"IF(COUNTA('Field Survey'!FP21)=1,'Field Survey'!FP21,\"\")","v":""},{"$f":"IF(COUNTA('Field Survey'!FQ21)=1,'Field Survey'!FQ21,\"\")","v":""},{"$f":"IF(COUNTA('Field Survey'!FR21)=1,'Field Survey'!FR21,\"\")","v":""},{"$f":"IF(COUNTA('Field Survey'!FS21)=1,'Field Survey'!FS21,\"\")","v":""},{"$f":"IF(COUNTA('Field Survey'!FT21)=1,'Field Survey'!FT21,\"\")","v":""},{"$f":"IF(COUNTA('Field Survey'!FU21)=1,'Field Survey'!FU21,\"\")","v":""},{"$f":"IF(COUNTA('Field Survey'!FV21)=1,'Field Survey'!FV21,\"\")","v":""},{"$f":"IF(COUNTA('Field Survey'!FW21)=1,'Field Survey'!FW21,\"\")","v":""},{"$f":"IF(COUNTA('Field Survey'!FX21)=1,'Field Survey'!FX21,\"\")","v":""},{"$f":"IF(COUNTA('Field Survey'!FY21)=1,'Field Survey'!FY21,\"\")","v":""},{"$f":"IF(COUNTA('Field Survey'!FZ21)=1,'Field Survey'!FZ21,\"\")","v":""},{"$f":"IF(COUNTA('Field Survey'!GA21)=1,'Field Survey'!GA21,\"\")","v":""},{"$f":"IF(COUNTA('Field Survey'!GB21)=1,'Field Survey'!GB21,\"\")","v":""},{"$f":"IF(COUNTA('Field Survey'!GC21)=1,'Field Survey'!GC21,\"\")","v":""},{"$f":"IF(COUNTA('Field Survey'!GD21)=1,'Field Survey'!GD21,\"\")","v":""},{"$f":"IF(COUNTA('Field Survey'!GE21)=1,'Field Survey'!GE21,\"\")","v":""},{"$f":"IF(COUNTA('Field Survey'!GF21)=1,'Field Survey'!GF21,\"\")","v":""},{"$f":"IF(COUNTA('Field Survey'!GG21)=1,'Field Survey'!GG21,\"\")","v":""},{"$f":"IF(COUNTA('Field Survey'!GH21)=1,'Field Survey'!GH21,\"\")","v":""},{"$f":"IF(COUNTA('Field Survey'!GI21)=1,'Field Survey'!GI21,\"\")","v":""},{"$f":"IF(COUNTA('Field Survey'!GJ21)=1,'Field Survey'!GJ21,\"\")","v":""},{"$f":"IF(COUNTA('Field Survey'!GK21)=1,'Field Survey'!GK21,\"\")","v":""},{"$f":"IF(COUNTA('Field Survey'!GL21)=1,'Field Survey'!GL21,\"\")","v":""},{"$f":"IF(COUNTA('Field Survey'!GM21)=1,'Field Survey'!GM21,\"\")","v":""},{"$f":"IF(COUNTA('Field Survey'!GN21)=1,'Field Survey'!GN21,\"\")","v":""},{"$f":"IF(COUNTA('Field Survey'!GO21)=1,'Field Survey'!GO21,\"\")","v":""},{"$f":"IF(COUNTA('Field Survey'!GP21)=1,'Field Survey'!GP21,\"\")","v":""},{"$f":"IF(COUNTA('Field Survey'!GQ21)=1,'Field Survey'!GQ21,\"\")","v":""},{"$f":"IF(COUNTA('Field Survey'!GR21)=1,'Field Survey'!GR21,\"\")","v":""},{"$f":"IF(COUNTA('Field Survey'!GS21)=1,'Field Survey'!GS21,\"\")","v":""},{"$f":"IF(COUNTA('Field Survey'!GT21)=1,'Field Survey'!GT21,\"\")","v":""},{"$f":"IF(COUNTA('Field Survey'!GU21)=1,'Field Survey'!GU21,\"\")","v":""},{"$f":"IF(COUNTA('Field Survey'!GV21)=1,'Field Survey'!GV21,\"\")","v":""},{"$f":"IF(COUNTA('Field Survey'!GW21)=1,'Field Survey'!GW21,\"\")","v":""},{"$f":"IF(COUNTA('Field Survey'!GX21)=1,'Field Survey'!GX21,\"\")","v":""},{"$f":"IF(COUNTA('Field Survey'!GY21)=1,'Field Survey'!GY21,\"\")","v":""},{"$f":"IF(COUNTA('Field Survey'!GZ21)=1,'Field Survey'!GZ21,\"\")","v":""},{"$f":"IF(COUNTA('Field Survey'!HA21)=1,'Field Survey'!HA21,\"\")","v":""}]
[null,null,1]
[null,null,{"$f":"C40+1","v":2}]
[null,null,{"$f":"C41+1","v":3}]
[null,null,4]
[null,null,5]
[null,null,6]
[null,null,7]
[null,null,8]
[null,null,9]
[null,null,10]
[null,null,11]
[null,null,12]
[null,null,13]
[null,null,14]
[null,null,15]
[null,null,16]
[null,null,17]
[null,null,18]
[null,null,19]
[null,null,20]
[null,null,21]
[null,null,22]
[null,null,23]
[null,null,24]
[null,null,25]
[null,null,26]
[null,null,27]
[null,null,28]
[null,null,29]
[null,null,30]

{"sheet":"List","index":6,"n_rows":4,"n_cols":418,"rows_kept":4,"cut":false,"hidden":false,"merged":[]}
[]
[]
[1,2,3,4,5,6,7,8,9,10,11,12,13,14,15,16,17,18,19,20,21,22,23,24,25,26,27,28,29,30,31,32,33,34,35,36,37,38,39,40,41,42,43,44,45,46,47,48,49,50,51,52,53,54,55,56,57,58,59,60,61,62,63,64,65,66,67,68,69,70,71,72,73,74,75,76,77,78,79,80,81,82,83,84,85,86,87,88,89,90,91,92,93,94,95,96,97,98,99,100,101,102,103,104,105,106,107,108,109,110,111,112,113,114,115,116,117,118,119,120,121,122,123,124,125,126,127,128,129,130,131,132,133,134,135,136,137,138,139,140,141,142,143,144,145,146,147,148,149,150,151,152,153,154,155,156,157,158,159,160,161,162,163,164,165,166,167,168,169,170,171,172,173,174,175,176,177,178,179,180,181,182,183,184,185,186,187,188,189,190,191,192,193,194,195,196,197,198,199,200,201,202,203,204,205,206,207,208,209,210,211,212,213,214,215,216,217,218,219,220,221,222,223,224,225,226,227,228,229,230,231,232,233,234,235,236,237,238,239,240,241,242,243,244,245,246,247,248,249,250,251,252,253,254,255,256,257,258,259,260,261,262,263,264,265,266,267,268,269,270,271,272,273,274,275,276,277,278,279,280,281,282,283,284,285,286,287,288,289,290,291,292,293,294,295,296,297,298,299,300,301,302,303,304,305,306,307,308,309,310,311,312,313,314,315,316,317,318,319,320,321,322,323,324,325,326,327,328,329,330,331,332,333,334,335,336,337,338,339,340,341,342,343,344,345,346,347,348,349,350,351,352,353,354,355,356,357,358,359,360,361,362,363,364,365,366,367,368,369,370,371,372,373,374,375,376,377,378,379,380,381,382,383,384,385,386,387,388,389,390,391,392,393,394,395,396,397,398,399,400,401,402,403,404,405,406,407,408,409,410,411,412,413,414,415,416,417,418]
["Data ID","Data version","Release Date","Name","QC code of #0004","Location","QC code of #0006","Location code","Organization","QC code of #0009","Organization code","Cruise name","QC code of #0012","Reference","QC code of #0014","DOI","QC code of #0016","Creative commons license","QC code of #0018","Provide ID","QC Data grade","Processing level","Processing methods","Reference of data before processing","QC code of #0024","DOI of data before processing","QC code of #0026","Data ID of data before processing","Sample name/ ID","QC code of #0029","Time Diff (hours)","QC code of #0031","Sampling start Date","QC code of #0033","Sampling end Date","QC code of #0035","Sampling start time","QC code of #0037","Sampling end time","QC code of #0039","Season","QC code of #0041","Sampling Location","QC code of #0043","GPS_Lat Int","QC code of #0045","GPS_Lon Int","QC code of #0047","GPS_Lat Fin","QC code of #0049","GPS_Lon Fin","QC code of #0051","Ship name","QC code of #0053","Ship code","Equipment Type","QC code of #0056","Equipment Model","QC code of #0058","Shape of water intake","QC code of #0060","Intake Width (m)","QC code of #0062","Intake Height (m)","QC code of #0064","Intake Area (m2)","QC code of #0066","Net Length (m)","QC code of #0068","Mesh openings (mm)","QC code of #0070","Mesh Side or diagonal","QC code of #0072","Mesh Model","QC code of #0074","Sampling_Distance (m)","QC code of #0076","Method of #76","QC code of #0078","Calculation formula of #76","QC code of #0080","Sampling Area (m2)","QC code of #0082","Calculation formula of #82","QC code of #0084","Filtered Water Volume (m3)","QC code of #0086","Calculation formula of #86","QC code of #0088","Sampling duration","QC code of #0090","Vessel speed (knot/ relative to water)","QC code of #0092","Sampling gear position","QC code of #0094","Distance from vessel (m)","QC code of #0096","Lower end depth (m)","QC code of #0098","Lower end depth (%)","QC code of #0100","Lower end depth Change or not","QC code of #0102","Tow direction","QC code of #0104","Blank test: conducted or not","QC code of #0106","Results of the blank test","QC code of #0108","Wind direction (degrees)","QC code of #0110","Wind speed (m/s)","QC code of #0112","Significant wave height (m)","QC code of #0114","Beaufort scale ","QC code of #0116","Vessels movements","QC code of #0118","Sea surface temperature (degrees Celsius)","QC code of #0120","Sea surface salinity (-)","QC code of #0122","Water current direction","QC code of #0124","Water current speed (knot)","QC code of #0126","Other water quality data 1: ","QC code of #0128","Other water quality data 2: ","QC code of #0130","Other water quality data 3: ","QC code of #0132","Other water quality data 4: ","QC code of #0134","State of floating debris","QC code of #0136","Density separation conducted or not","QC code of #0138","Solution type for density separation","QC code of #0140","Concentration for density separation (%)","QC code of #0142","Processing Time (min)","QC code of #0144","Biological digestiion and chemical treat","QC code of #0146","Methods used for digesting","QC code of #0148","Temperature during processing  (degrees Celsius)","QC code of #0150","Reaction time (min)","QC code of #0152","Sample splitting conducted or not","QC code of #0154","Method or equipment of splitting","QC code of #0156","Estimated error range of splitting ","QC code of #0158","Pretreatment conducted or not","QC code of #0160","Type of pretreatment","QC code of #0162","Under stereomicroscope or not","QC code of #0164","Method of size fractionation","QC code of #0166","Composition analysis conducted or not","QC code of #0168","Method of composition analysis","QC code of #0170","Percentage to composition analysis (%)","QC code of #0172","Temperature of sample drying (degrees Celsius)","QC code of #0174","Humidity of sample drying (%)","QC code of #0176","Processing time of sample drying (min)","QC code of #0178","Methods of weight measurements","QC code of #0180","Blank tests _Conducted or not","QC code of #0182","Blank tests_Results","QC code of #0184","Spiked recovery tests_Conducted or not","QC code of #0186","Spiked recovery tests_Results (%)","QC code of #0188","Total Number of Particles (d<5mm)","QC code of #0190","Particle density_m3 (d<5mm)","QC code of #0192","Particle density_km2 (d<5mm)","QC code of #0194","Total weight_g (d<5mm)","QC code of #0196","Weight density_g/m3 (d<5mm)","QC code of #0198","Weight density_g/km2 (d<5mm)","QC code of #0200","Total Number of Particles (1-d<5mm)","QC code of #0202","Particle density_m3 (1-d<5mm)","QC code of #0204","Particle density_km2 (1-d<5mm)","QC code of #0206","Total weight_g (1-d<5mm)","QC code of #0208","Weight density_g/m3 (1-d<5mm)","QC code of #0210","Weight density_g/km2 (1-d<5mm)","QC code of #0212","Total Number of Particles (d<1mm)","QC code of #0214","Particle density_m3 (d<1mm)","QC code of #0216","Particle density_km2 (d<1mm)","QC code of #0218","Total weight_g (d<1mm)","QC code of #0220","Weight density_g/m3 (d<1mm)","QC code of #0222","Weight density_g/km2 (d<1mm)","QC code of #0224","Total Number of Particles (5mm-d)","QC code of #0226","Particle density_m3 (5mm-d)","QC code of #0228","Particle density_km2 (5mm-d)","QC code of #0230","Total weight_g (5mm-d)","QC code of #0232","Weight density_g/m3 (5mm-d)","QC code of #0234","Weight density_g/km2 (5mm-d)","QC code of #0236","Shape_category 1 (d<5mm)","QC code of #0238","Shape_percentage 1 (d<5mm)","QC code of #0240","Shape_category 2 (d<5mm)","QC code of #0242","Shape_percentage 2 (d<5mm)","QC code of #0244","Shape_category 3 (d<5mm)","QC code of #0246","Shape_percentage 3 (d<5mm)","QC code of #0248","Shape_category 4 (d<5mm)","QC code of #0250","Shape_percentage 4 (d<5mm)","QC code of #0252","Shape_category 5 (d<5mm)","QC code of #0254","Shape_percentage 5 (d<5mm)","QC code of #0256","Material_category 1 (d<5mm)","QC code of #0258","Material_percentage 1 (d<5mm)","QC code of #0260","Material_category 2 (d<5mm)","QC code of #0262","Material_percentage 2 (d<5mm)","QC code of #0264","Material_category 3 (d<5mm)","QC code of #0266","Material_percentage 3 (d<5mm)","QC code of #0268","Material_category 4 (d<5mm)","QC code of #0270","Material_percentage 4 (d<5mm)","QC code of #0272","Material_category 5 (d<5mm)","QC code of #0274","Material_percentage 5 (d<5mm)","QC code of #0276","Colour_category 1 (d<5mm)","QC code of #0278","Colour_percentage 1 (d<5mm)","QC code of #0280","Colour_category 2 (d<5mm)","QC code of #0282","Colour_percentage 2 (d<5mm)","QC code of #0284","Colour_category 3 (d<5mm)","QC code of #0286","Colour_percentage 3 (d<5mm)","QC code of #0288","Colour_category 4 (d<5mm)","QC code of #0290","Colour_percentage 4 (d<5mm)","QC code of #0292","Colour_category 5 (d<5mm)","QC code of #0294","Colour_percentage 5 (d<5mm)","QC code of #0296","Shape_category 1 (1-d<5mm)","QC code of #0298","Shape_percentage 1 (1-d<5mm)","QC code of #0300","Shape_category 2 (1-d<5mm)","QC code of #0302","Shape_percentage 2 (1-d<5mm)","QC code of #0304","Shape_category 3 (1-d<5mm)","QC code of #0306","Shape_percentage 3 (1-d<5mm)","QC code of #0308","Shape_category 4 (1-d<5mm)","QC code of #0310","Shape_percentage 4 (1-d<5mm)","QC code of #0312","Shape_category 5 (1-d<5mm)","QC code of #0314","Shape_percentage 5 (1-d<5mm)","QC code of #0316","Material_category 1 (1-d<5mm)","QC code of #0318","Material_percentage 1 (1-d<5mm)","QC code of #0320","Material_category 2 (1-d<5mm)","QC code of #0322","Material_percentage 2 (1-d<5mm)","QC code of #0324","Material_category 3 (1-d<5mm)","QC code of #0326","Material_percentage 3 (1-d<5mm)","QC code of #0328","Material_category 4 (1-d<5mm)","QC code of #0330","Material_percentage 4 (1-d<5mm)","QC code of #0332","Material_category 5 (1-d<5mm)","QC code of #0334","Material_percentage 5 (1-d<5mm)","QC code of #0336","Colour_category 1 (1-d<5mm)","QC code of #0338","Colour_percentage 1 (1-d<5mm)","QC code of #0340","Colour_category 2 (1-d<5mm)","QC code of #0342","Colour_percentage 2 (1-d<5mm)","QC code of #0344","Colour_category 3 (1-d<5mm)","QC code of #0346","Colour_percentage 3 (1-d<5mm)","QC code of #0348","Colour_category 4 (1-d<5mm)","QC code of #0350","Colour_percentage 4 (1-d<5mm)","QC code of #0352","Colour_category 5 (1-d<5mm)","QC code of #0354","Colour_percentage 5 (1-d<5mm)","QC code of #0356","Shape_category 1 (d<1mm)","QC code of #0358","Shape_percentage 1 (d<1mm)","QC code of #0360","Shape_category 2 (d<1mm)","QC code of #0362","Shape_percentage 2 (d<1mm)","QC code of #0364","Shape_category 3 (d<1mm)","QC code of #0366","Shape_percentage 3 (d<1mm)","QC code of #0368","Shape_category 4 (d<1mm)","QC code of #0370","Shape_percentage 4 (d<1mm)","QC code of #0372","Shape_category 5 (d<1mm)","QC code of #0374","Shape_percentage 5 (d<1mm)","QC code of #0376","Material_category 1 (d<1mm)","QC code of #0378","Material_percentage 1 (d<1mm)","QC code of #0380","Material_category 2 (d<1mm)","QC code of #0382","Material_percentage 2 (d<1mm)","QC code of #0384","Material_category 3 (d<1mm)","QC code of #0386","Material_percentage 3 (d<1mm)","QC code of #0388","Material_category 4 (d<1mm)","QC code of #0390","Material_percentage 4 (d<1mm)","QC code of #0392","Material_category 5 (d<1mm)","QC code of #0394","Material_percentage 5 (d<1mm)","QC code of #0396","Colour_category 1 (d<1mm)","QC code of #0398","Colour_percentage 1 (d<1mm)","QC code of #0400","Colour_category 2 (d<1mm)","QC code of #0402","Colour_percentage 2 (d<1mm)","QC code of #0404","Colour_category 3 (d<1mm)","QC code of #0406","Colour_percentage 3 (d<1mm)","QC code of #0408","Colour_category 4 (d<1mm)","QC code of #0410","Colour_percentage 4 (d<1mm)","QC code of #0412","Colour_category 5 (d<1mm)","QC code of #0414","Colour_percentage 5 (d<1mm)","QC code of #0416","Remarks"]

{"sheet":"Code","index":7,"n_rows":722,"n_cols":14,"rows_kept":722,"cut":false,"hidden":true,"merged":[]}
[1,{"$f":"A1+1","v":2},{"$f":"B1+1","v":3},4,5,6,7,8,9,10,11,12]
[null,"#0011","Type of Organization",null,null,null,null,null,null,"Grade 3",null,"Grade 4",null,"Code Subject"]
[null,null,"Type","Code",null,null,null,null,null,"Must",null,"Must"]
[null,null,null,null,null,null,null,null,null,33,null,31,null,4]
[null,null,"University","1",null,null,null,null,null,45,null,33,null,6]
[null,null,"Other research institution","2",null,null,null,null,null,47,null,35,null,9]
[null,null,"Government or International organisation","3",null,null,null,null,null,"any",null,37,null,12]
[null,null,"Non-university educational institution","4",null,null,null,null,null,192,null,39,null,14]
[null,null,"NPO/NGO","5",null,null,null,null,null,194,null,41,null,16]
[null,null,"Other","6",null,null,null,null,null,198,null,45,null,18]
[null,null,null,null,null,null,null,null,null,200,null,47,null,24]
[null,"#0006","Location of Organization (ISO 3166-1)",null,null,null,null,null,null,{"$f":"J8+12","v":204},null,49,null,26]
[null,null,"English short name (using title case)","Numeric code",null,null,null,null,null,{"$f":"J9+12","v":206},null,51,null,29]
[null,null,null,null,null,null,null,null,null,210,null,56,null,31]
[null,null,"Afghanistan","004",null,null,null,null,null,212,null,60,null,33]
[null,null,"Åland Islands","248",null,null,null,null,null,{"$f":"J12+12","v":216},null,62,null,35]
[null,null,"Albania","008",null,null,null,null,null,218,null,64,null,37]
[null,null,"Algeria","012",null,null,null,null,null,222,null,66,null,39]
[null,null,"American Samoa","016",null,null,null,null,null,224,null,68,null,41]
[null,null,"Andorra","020",null,null,null,null,null,null,null,70,null,43]
[null,null,"Angola","024",null,null,null,null,null,null,null,72,null,45]
[null,null,"Anguilla","660",null,null,null,null,null,null,null,76,null,47]
[null,null,"Antarctica","010",null,null,null,null,null,null,null,78,null,49]
[null,null,"Antigua and Barbuda","028",null,null,null,null,null,null,null,80,null,51]
[null,null,"Argentina","032",null,null,null,null,null,null,null,82,null,53]
[null,null,"Armenia","051",null,null,null,null,null,null,null,84,null,56]
[null,null,"Aruba","533",null,null,null,null,null,null,null,86,null,58]
[null,null,"Australia","036",null,null,null,null,null,null,null,88,null,60]
[null,null,"Austria","040",null,null,null,null,null,null,null,90,null,62]
[null,null,"Azerbaijan","031",null,null,null,null,null,null,null,92,null,64]
[null,null,"Bahamas","044",null,null,null,null,null,null,null,94,null,66]
[null,null,"Bahrain","048",null,null,null,null,null,null,null,96,null,68]
[null,null,"Bangladesh","050",null,null,null,null,null,null,null,98,null,70]
[null,null,"Barbados","052",null,null,null,null,null,null,null,104,null,72]
[null,null,"Belarus","112",null,null,null,null,null,null,null,106,null,74]
[null,null,"Belgium","056",null,null,null,null,null,null,null,108,null,76]
[null,null,"Belize","084",null,null,null,null,null,null,null,110,null,78]
[null,null,"Benin","204",null,null,null,null,null,null,null,112,null,80]
[null,null,"Bermuda","060",null,null,null,null,null,null,null,116,null,82]
[null,null,"Bhutan","064",null,null,null,null,null,null,null,118,null,84]
[null,null,"Bolivia (Plurinational State of)","068",null,null,null,null,null,null,null,120,null,86]
[null,null,"Bonaire, Sint Eustatius and Saba","535",null,null,null,null,null,null,null,122,null,88]
[null,null,"Bosnia and Herzegovina","070",null,null,null,null,null,null,null,136,null,90]
[null,null,"Botswana","072",null,null,null,null,null,null,null,138,null,92]
[null,null,"Bouvet Island","074",null,null,null,null,null,null,null,140,null,94]
[null,null,"Brazil","076",null,null,null,null,null,null,null,142,null,96]
[null,null,"British Indian Ocean Territory","086",null,null,null,null,null,null,null,146,null,98]
[null,null,"Brunei Darussalam","096",null,null,null,null,null,null,null,148,null,100]
[null,null,"Bulgaria","100",null,null,null,null,null,null,null,150,null,102]
[null,null,"Burkina Faso","854",null,null,null,null,null,null,null,152,null,104]
[null,null,"Burundi","108",null,null,null,null,null,null,null,154,null,106]
[null,null,"Cabo Verde","132",null,null,null,null,null,null,null,156,null,108]
[null,null,"Cambodia","116",null,null,null,null,null,null,null,160,null,110]
[null,null,"Cameroon","120",null,null,null,null,null,null,null,164,null,112]
[null,null,"Canada","124",null,null,null,null,null,null,null,166,null,114]
[null,null,"Cayman Islands","136",null,null,null,null,null,null,null,168,null,116]
[null,null,"Central African Republic","140",null,null,null,null,null,null,null,170,null,118]
[null,null,"Chad","148",null,null,null,null,null,null,null,172,null,120]
[null,null,"Chile","152",null,null,null,null,null,null,null,174,null,122]
[null,null,"China","156",null,null,null,null,null,null,null,178,null,124]
[null,null,"Christmas Island","162",null,null,null,null,null,null,null,180,null,126]
[null,null,"Cocos (Keeling) Islands","166",null,null,null,null,null,null,null,182,null,128]
[null,null,"Colombia","170",null,null,null,null,null,null,null,186,null,130]
[null,null,"Comoros","174",null,null,null,null,null,null,null,204,null,132]
[null,null,"Congo","178",null,null,null,null,null,null,null,206,null,134]
[null,null,"Congo, Democratic Republic of the","180",null,null,null,null,null,null,null,210,null,136]
[null,null,"Cook Islands","184",null,null,null,null,null,null,null,212,null,138]
[null,null,"Costa Rica","188",null,null,null,null,null,null,null,298,null,140]
[null,null,"Côte d'Ivoire","384",null,null,null,null,null,null,null,null,null,142]
[null,null,"Croatia","191",null,null,null,null,null,null,null,null,null,144]
[null,null,"Cuba","192",null,null,null,null,null,null,null,null,null,146]
[null,null,"Curaçao","531",null,null,null,null,null,null,null,null,null,148]
[null,null,"Cyprus","196",null,null,null,null,null,null,null,null,null,150]
[null,null,"Czechia","203",null,null,null,null,null,null,null,null,null,152]
[null,null,"Denmark","208",null,null,null,null,null,null,null,null,null,154]
[null,null,"Djibouti","262",null,null,null,null,null,null,null,null,null,156]
[null,null,"Dominica","212",null,null,null,null,null,null,null,null,null,158]
[null,null,"Dominican Republic","214",null,null,null,null,null,null,null,null,null,160]
[null,null,"Ecuador","218",null,null,null,null,null,null,null,null,null,162]
[null,null,"Egypt","818",null,null,null,null,null,null,null,null,null,164]
[null,null,"El Salvador","222",null,null,null,null,null,null,null,null,null,166]
[null,null,"Equatorial Guinea","226",null,null,null,null,null,null,null,null,null,168]
[null,null,"Eritrea","232",null,null,null,null,null,null,null,null,null,170]
[null,null,"Estonia","233",null,null,null,null,null,null,null,null,null,172]
[null,null,"Eswatini","748",null,null,null,null,null,null,null,null,null,174]
[null,null,"Ethiopia","231",null,null,null,null,null,null,null,null,null,176]
[null,null,"Falkland Islands (Malvinas)","238",null,null,null,null,null,null,null,null,null,178]
[null,null,"Faroe Islands","234",null,null,null,null,null,null,null,null,null,180]
[null,null,"Fiji","242",null,null,null,null,null,null,null,null,null,182]
[null,null,"Finland","246",null,null,null,null,null,null,null,null,null,184]
[null,null,"France","250",null,null,null,null,null,null,null,null,null,186]
[null,null,"French Guiana","254",null,null,null,null,null,null,null,null,null,188]
[null,null,"French Polynesia","258",null,null,null,null,null,null,null,null,null,190]
[null,null,"French Southern Territories","260",null,null,null,null,null,null,null,null,null,192]
[null,null,"Gabon","266",null,null,null,null,null,null,null,null,null,194]
[null,null,"Gambia","270",null,null,null,null,null,null,null,null,null,196]
[null,null,"Georgia","268",null,null,null,null,null,null,null,null,null,198]
[null,null,"Germany","276",null,null,null,null,null,null,null,null,null,200]
[null,null,"Ghana","288",null,null,null,null,null,null,null,null,null,202]
[null,null,"Gibraltar","292",null,null,null,null,null,null,null,null,null,204]
[null,null,"Greece","300",null,null,null,null,null,null,null,null,null,206]
[null,null,"Greenland","304",null,null,null,null,null,null,null,null,null,208]
[null,null,"Grenada","308",null,null,null,null,null,null,null,null,null,210]
[null,null,"Guadeloupe","312",null,null,null,null,null,null,null,null,null,212]
[null,null,"Guam","316",null,null,null,null,null,null,null,null,null,214]
[null,null,"Guatemala","320",null,null,null,null,null,null,null,null,null,216]
[null,null,"Guernsey","831",null,null,null,null,null,null,null,null,null,218]
[null,null,"Guinea","324",null,null,null,null,null,null,null,null,null,220]
[null,null,"Guinea-Bissau","624",null,null,null,null,null,null,null,null,null,222]
[null,null,"Guyana","328",null,null,null,null,null,null,null,null,null,224]
[null,null,"Haiti","332",null,null,null,null,null,null,null,null,null,226]
[null,null,"Heard Island and McDonald Islands","334",null,null,null,null,null,null,null,null,null,228]
[null,null,"Holy See","336",null,null,null,null,null,null,null,null,null,230]
[null,null,"Honduras","340",null,null,null,null,null,null,null,null,null,232]
[null,null,"Hong Kong","344",null,null,null,null,null,null,null,null,null,234]
[null,null,"Hungary","348",null,null,null,null,null,null,null,null,null,236]
[null,null,"Iceland","352",null,null,null,null,null,null,null,null,null,238]
[null,null,"India","356",null,null,null,null,null,null,null,null,null,240]
[null,null,"Indonesia","360",null,null,null,null,null,null,null,null,null,242]
[null,null,"Iran (Islamic Republic of)","364",null,null,null,null,null,null,null,null,null,244]
[null,null,"Iraq","368",null,null,null,null,null,null,null,null,null,246]
[null,null,"Ireland","372",null,null,null,null,null,null,null,null,null,248]
[null,null,"Isle of Man","833",null,null,null,null,null,null,null,null,null,250]
[null,null,"Israel","376",null,null,null,null,null,null,null,null,null,252]
[null,null,"Italy","380",null,null,null,null,null,null,null,null,null,254]
[null,null,"Jamaica","388",null,null,null,null,null,null,null,null,null,256]
[null,null,"Japan","392",null,null,null,null,null,null,null,null,null,258]
[null,null,"Jersey","832",null,null,null,null,null,null,null,null,null,260]
[null,null,"Jordan","400",null,null,null,null,null,null,null,null,null,262]
[null,null,"Kazakhstan","398",null,null,null,null,null,null,null,null,null,264]
[null,null,"Kenya","404",null,null,null,null,null,null,null,null,null,266]
[null,null,"Kiribati","296",null,null,null,null,null,null,null,null,null,268]
[null,null,"Korea (Democratic People's Republic of)","408",null,null,null,null,null,null,null,null,null,270]
[null,null,"Korea, Republic of","410",null,null,null,null,null,null,null,null,null,272]
[null,null,"Kuwait","414",null,null,null,null,null,null,null,null,null,274]
[null,null,"Kyrgyzstan","417",null,null,null,null,null,null,null,null,null,276]
[null,null,"Lao People's Democratic Republic","418",null,null,null,null,null,null,null,null,null,278]
[null,null,"Latvia","428",null,null,null,null,null,null,null,null,null,280]
[null,null,"Lebanon","422",null,null,null,null,null,null,null,null,null,282]
[null,null,"Lesotho","426",null,null,null,null,null,null,null,null,null,284]
[null,null,"Liberia","430",null,null,null,null,null,null,null,null,null,286]
[null,null,"Libya","434",null,null,null,null,null,null,null,null,null,288]
[null,null,"Liechtenstein","438",null,null,null,null,null,null,null,null,null,290]
[null,null,"Lithuania","440",null,null,null,null,null,null,null,null,null,292]
[null,null,"Luxembourg","442",null,null,null,null,null,null,null,null,null,294]
[null,null,"Macao","446",null,null,null,null,null,null,null,null,null,296]
[null,null,"Madagascar","450",null,null,null,null,null,null,null,null,null,298]
[null,null,"Malawi","454",null,null,null,null,null,null,null,null,null,300]
[null,null,"Malaysia","458",null,null,null,null,null,null,null,null,null,302]
[null,null,"Maldives","462",null,null,null,null,null,null,null,null,null,304]
[null,null,"Mali","466",null,null,null,null,null,null,null,null,null,306]
[null,null,"Malta","470",null,null,null,null,null,null,null,null,null,308]
[null,null,"Marshall Islands","584",null,null,null,null,null,null,null,null,null,310]
[null,null,"Martinique","474",null,null,null,null,null,null,null,null,null,312]
[null,null,"Mauritania","478",null,null,null,null,null,null,null,null,null,314]
[null,null,"Mauritius","480",null,null,null,null,null,null,null,null,null,316]
[null,null,"Mayotte","175",null,null,null,null,null,null,null,null,null,318]
[null,null,"Mexico","484",null,null,null,null,null,null,null,null,null,320]
[null,null,"Micronesia (Federated States of)","583",null,null,null,null,null,null,null,null,null,322]
[null,null,"Moldova, Republic of","498",null,null,null,null,null,null,null,null,null,324]
[null,null,"Monaco","492",null,null,null,null,null,null,null,null,null,326]
[null,null,"Mongolia","496",null,null,null,null,null,null,null,null,null,328]
[null,null,"Montenegro","499",null,null,null,null,null,null,null,null,null,330]
[null,null,"Montserrat","500",null,null,null,null,null,null,null,null,null,332]
[null,null,"Morocco","504",null,null,null,null,null,null,null,null,null,334]
[null,null,"Mozambique","508",null,null,null,null,null,null,null,null,null,336]
[null,null,"Myanmar","104",null,null,null,null,null,null,null,null,null,338]
[null,null,"Namibia","516",null,null,null,null,null,null,null,null,null,340]
[null,null,"Nauru","520",null,null,null,null,null,null,null,null,null,342]
[null,null,"Nepal","524",null,null,null,null,null,null,null,null,null,344]
[null,null,"Netherlands","528",null,null,null,null,null,null,null,null,null,346]
[null,null,"New Caledonia","540",null,null,null,null,null,null,null,null,null,348]
[null,null,"New Zealand","554",null,null,null,null,null,null,null,null,null,350]
[null,null,"Nicaragua","558",null,null,null,null,null,null,null,null,null,352]
[null,null,"Niger","562",null,null,null,null,null,null,null,null,null,354]
[null,null,"Nigeria","566",null,null,null,null,null,null,null,null,null,356]
[null,null,"Niue","570",null,null,null,null,null,null,null,null,null,358]
[null,null,"Norfolk Island","574",null,null,null,null,null,null,null,null,null,360]
[null,null,"North Macedonia","807",null,null,null,null,null,null,null,null,null,362]
[null,null,"Northern Mariana Islands","580",null,null,null,null,null,null,null,null,null,364]
[null,null,"Norway","578",null,null,null,null,null,null,null,null,null,366]
[null,null,"Oman","512",null,null,null,null,null,null,null,null,null,368]
[null,null,"Pakistan","586",null,null,null,null,null,null,null,null,null,370]
[null,null,"Palau","585",null,null,null,null,null,null,null,null,null,372]
[null,null,"Palestine, State of","275",null,null,null,null,null,null,null,null,null,374]
[null,null,"Panama","591",null,null,null,null,null,null,null,null,null,376]
[null,null,"Papua New Guinea","598",null,null,null,null,null,null,null,null,null,378]
[null,null,"Paraguay","600",null,null,null,null,null,null,null,null,null,380]
[null,null,"Peru","604",null,null,null,null,null,null,null,null,null,382]
[null,null,"Philippines","608",null,null,null,null,null,null,null,null,null,384]
[null,null,"Pitcairn","612",null,null,null,null,null,null,null,null,null,386]
[null,null,"Poland","616",null,null,null,null,null,null,null,null,null,388]
[null,null,"Portugal","620",null,null,null,null,null,null,null,null,null,390]
[null,null,"Puerto Rico","630",null,null,null,null,null,null,null,null,null,392]
[null,null,"Qatar","634",null,null,null,null,null,null,null,null,null,394]
[null,null,"Réunion","638",null,null,null,null,null,null,null,null,null,396]
[null,null,"Romania","642",null,null,null,null,null,null,null,null,null,398]
[null,null,"Russian Federation","643",null,null,null,null,null,null,null,null,null,400]
[null,null,"Rwanda","646",null,null,null,null,null,null,null,null,null,402]
[null,null,"Saint Barthélemy","652",null,null,null,null,null,null,null,null,null,404]
[null,null,"Saint Helena, Ascension and Tristan da Cunha","654",null,null,null,null,null,null,null,null,null,406]
[null,null,"Saint Kitts and Nevis","659",null,null,null,null,null,null,null,null,null,408]
[null,null,"Saint Lucia","662",null,null,null,null,null,null,null,null,null,410]
[null,null,"Saint Martin (French part)","663",null,null,null,null,null,null,null,null,null,412]
[null,null,"Saint Pierre and Miquelon","666",null,null,null,null,null,null,null,null,null,414]
[null,null,"Saint Vincent and the Grenadines","670",null,null,null,null,null,null,null,null,null,416]
[null,null,"Samoa","882"]
[null,null,"San Marino","674"]
[null,null,"Sao Tome and Principe","678"]
[null,null,"Saudi Arabia","682"]
[null,null,"Senegal","686"]
[null,null,"Serbia","688"]
[null,null,"Seychelles","690"]
[null,null,"Sierra Leone","694"]
[null,null,"Singapore","702"]
[null,null,"Sint Maarten (Dutch part)","534"]
[null,null,"Slovakia","703"]
[null,null,"Slovenia","705"]
[null,null,"Solomon Islands","090"]
[null,null,"Somalia","706"]
[null,null,"South Africa","710"]
[null,null,"South Georgia and the South Sandwich Islands","239"]
[null,null,"South Sudan","728"]
[null,null,"Spain","724"]
[null,null,"Sri Lanka","144"]
[null,null,"Sudan","729"]
[null,null,"Suriname","740"]
[null,null,"Svalbard and Jan Mayen","744"]
[null,null,"Sweden","752"]
[null,null,"Switzerland","756"]
[null,null,"Syrian Arab Republic","760"]
[null,null,"Taiwan, Province of China","158"]
[null,null,"Tajikistan","762"]
[null,null,"Tanzania, United Republic of","834"]
[null,null,"Thailand","764"]
[null,null,"Timor-Leste","626"]
[null,null,"Togo","768"]
[null,null,"Tokelau","772"]
[null,null,"Tonga","776"]
[null,null,"Trinidad and Tobago","780"]
[null,null,"Tunisia","788"]
[null,null,"Turkey","792"]
[null,null,"Turkmenistan","795"]
[null,null,"Turks and Caicos Islands","796"]
[null,null,"Tuvalu","798"]
[null,null,"Uganda","800"]
[null,null,"Ukraine","804"]
[null,null,"United Arab Emirates","784"]
[null,null,"United Kingdom of Great Britain and Northern Ireland","826"]
[null,null,"United States of America","840"]
[null,null,"United States Minor Outlying Islands","581"]
[null,null,"Uruguay","858"]
[null,null,"Uzbekistan","860"]
[null,null,"Vanuatu","548"]
[null,null,"Venezuela (Bolivarian Republic of)","862"]
[null,null,"Viet Nam","704"]
[null,null,"Virgin Islands (British)","092"]
[null,null,"Virgin Islands (U.S.)","850"]
[null,null,"Wallis and Futuna","876"]
[null,null,"Western Sahara","732"]
[null,null,"Yemen","887"]
[null,null,"Zambia","894"]
[null,null,"Zimbabwe","716"]
[]
[null,"#0031","Time difference from GMT"]
[]
[null,null,"The above times -  12 h = GMT",-12]
[null,null,"The above times -  11.5 h = GMT",-11.5]
[null,null,"The above times -  11 h = GMT",-11]
[null,null,"The above times -  10.5 h = GMT",-10.5]
[null,null,"The above times -  10 h = GMT",-10]
[null,null,"The above times -  9.5 h = GMT",-9.5]
[null,null,"The above times -  9 h = GMT",-9]
[null,null,"The above times -  8.5 h = GMT",-8.5]
[null,null,"The above times -  8 h = GMT",-8]
[null,null,"The above times -  7.5 h = GMT",-7.5]
[null,null,"The above times -  7 h = GMT",-7]
[null,null,"The above times -  6.5 h = GMT",-6.5]
[null,null,"The above times -  6 h = GMT",-6]
[null,null,"The above times -  5.5 h = GMT",-5.5]
[null,null,"The above times -  5 h = GMT",-5]
[null,null,"The above times -  4.5 h = GMT",-4.5]
[null,null,"The above times -  4 h = GMT",-4]
[null,null,"The above times -  3.5 h = GMT",-3.5]
[null,null,"The above times -  3 h = GMT",-3]
[null,null,"The above times -  2.5 h = GMT",-2.5]
[null,null,"The above times -  2 h = GMT",-2]
[null,null,"The above times -  1.5 h = GMT",-1.5]
[null,null,"The above times -  1 h = GMT",-1]
[null,null,"The above times -  0.5 h = GMT",-0.5]
[null,null,"The above times = GMT",0]
[null,null,"The above times +  0.5 h = GMT",0.5]
[null,null,"The above times +  1 h = GMT",1]
[null,null,"The above times +  1.5 h = GMT",1.5]
[null,null,"The above times +  2 h = GMT",2]
[null,null,"The above times +  2.5 h = GMT",2.5]
[null,null,"The above times +  3 h = GMT",3]
[null,null,"The above times +  3.5 h = GMT",3.5]
[null,null,"The above times +  4 h = GMT",4]
[null,null,"The above times +  4.5 h = GMT",4.5]
[null,null,"The above times +  5 h = GMT",5]
[null,null,"The above times +  5.5 h = GMT",5.5]
[null,null,"The above times +  6 h = GMT",6]
[null,null,"The above times +  6.5 h = GMT",6.5]
[null,null,"The above times +  7 h = GMT",7]
[null,null,"The above times +  7.5 h = GMT",7.5]
[null,null,"The above times +  8 h = GMT",8]
[null,null,"The above times +  8.5 h = GMT",8.5]
[null,null,"The above times +  9 h = GMT",9]
[null,null,"The above times +  9.5 h = GMT",9.5]
[null,null,"The above times +  10 h = GMT",10]
[null,null,"The above times +  10.5 h = GMT",10.5]
[null,null,"The above times +  11 h = GMT",11]
[null,null,"The above times +  11.5 h = GMT",11.5]
[null,null,"The above times +  12 h = GMT",12]
[null,null,"The above times +  12.5 h = GMT",12.5]
[null,null,"The above times +  13 h = GMT",13]
[null,null,"The above times +  13.5 h = GMT",13.5]
[null,null,"The above times +  14 h = GMT",14]
[]
[null,"#0056","Type of equipment"]
[]
[null,null,"Manta net",0]
[null,null,"Neuston net",0]
[null,null,"Nets except Manta and Neuston",0]
[null,null,"Pump sampling",0]
[null,null,"Bulk sampling",0]
[null,null,"Others",0]
[]
[null,"#0060","Shape of water intake"]
[]
[null,null,"Rectangular",0]
[null,null,"Square",0]
[null,null,"Circular",0]
[null,null,"Others",0]
[]
[null,"#0072","Measurement point of 'Mesh openings size'"]
[]
[null,null,"One side",0]
[null,null,"Diagonal",0]
[]
[null,"#0078","Measuring method of distance"]
[]
[null,null,"Flow meter",0]
[null,null,"Log speed",0]
[null,null,"GPS",0]
[null,null,"Others",0]
[]
[null,"#0094","Sampling gear position"]
[]
[null,null,"Side",0]
[null,null,"Stern",0]
[null,null,"Others",0]
[]
[null,"#0102","Whether or not there was any change in the lower end depth during sampling"]
[]
[null,null,"Changed",0]
[null,null,"Not changed",0]
[]
[null,"#0106","Whether or not blank tests were conducted",106,"Field Survey"]
[null,"#0138","Whether or not density separation was conducted",138,"Laboratory analysis"]
[null,"#0146","Whether or not biological digestion or chemical treatment was conducted",146,"Laboratory analysis"]
[null,"#0154","Whether or not sample splitting was conducted",154,"Laboratory analysis"]
[null,"#0160","Whether or not pretreatment before particle isolation was conducted",160,"Laboratory analysis"]
[null,"#0168","Whether or not composition analysis was conducted",168,"Laboratory analysis"]
[null,"#0182","Whether or not blank tests were conducted",182,"Laboratory analysis"]
[null,"#0186","Whether or not spiked recovery tests were conducted",186,"Laboratory analysis"]
[]
[null,null,"Conducted",0]
[null,null,"Not conducted",0]
[]
[null,"#0164","Whether or not picking was conducted under stereomicroscope"]
[]
[null,null,"Used",0]
[null,null,"Not used",0]
[]
[null,"#0166","Method of size fractionation"]
[]
[null,null,"Measured maximum diameter"]
[null,null,"Used sieves"]
[null,null,"Others"]
[]
[null,null,"Shape category"]
[]
[null,null,"Fragments"]
[null,null,"Film"]
[null,null,"Beads"]
[null,null,"Foam"]
[null,null,"Pellets "]
[null,null,"Fibers"]
[null,null,"Others"]
[null,null,"Uncategorized"]
[]
[null,null,"Material category"]
[]
[null,null,"PP","Polypropylene"]
[null,null,"HDPE","High density polyethylene"]
[null,null,"LDPE","Low density polyethylene"]
[null,null,"PE","Polyethylene"]
[null,null,"PS","Polystyrene"]
[null,null,"PET","Polyethylene terephthalate"]
[null,null,"PVC","Polyvinyl chloride"]
[null,null,"PUR","Polyurethane"]
[null,null,"Others"]
[null,null,"Uncategorized"]
[]
[null,null,"Colour category"]
[]
[null,null,"Transparent"]
[null,null,"White"]
[null,null,"Red"]
[null,null,"Orange"]
[null,null,"Yellow"]
[null,null,"Green"]
[null,null,"Blue"]
[null,null,"Violet"]
[null,null,"Black"]
[null,null,"Multicolors"]
[null,null,"Others"]
[null,null,"Uncategorized"]
[]
[null,null,null,"Item ID","Number of decimal places"]
[null,null,45,45,4]
[null,null,null,{"$f":"D423+2","v":47},4]
[null,null,null,{"$f":"D424+2","v":49},4]
[null,null,null,{"$f":"D425+2","v":51},4]
[null,null,null,62,3]
[null,null,null,64,3]
[null,null,null,66,6]
[null,null,null,68,3]
[null,null,null,70,3]
[null,null,null,76,3]
[null,null,null,82,3]
[null,null,null,86,3]
[null,null,null,92,2]
[null,null,null,96,3]
[null,null,null,98,3]
[null,null,null,100,3]
[null,null,null,112,1]
[null,null,null,114,1]
[null,null,null,120,1]
[null,null,null,122,2]
[null,null,null,142,3]
[null,null,null,190,0]
[null,null,null,192,4]
[null,null,null,194,-2]
[null,null,null,196,4]
[null,null,null,198,8]
[null,null,null,200,2]
[null,null,null,202,0]
[null,null,null,204,4]
[null,null,null,206,-2]
[null,null,null,208,4]
[null,null,null,210,8]
[null,null,null,212,2]
[null,null,null,214,0]
[null,null,null,216,4]
[null,null,null,218,-2]
[null,null,null,220,4]
[null,null,null,222,8]
[null,null,null,224,2]
[null,null,null,226,0]
[null,null,null,228,4]
[null,null,null,230,-2]
[null,null,null,232,4]
[null,null,null,234,8]
[null,null,null,236,2]
[null,null,null,240,1]
[null,null,null,{"$f":"D468+4","v":244},1]
[null,null,null,{"$f":"D469+4","v":248},1]
[null,null,null,252,1]
[null,null,null,256,1]
[null,null,null,260,1]
[null,null,null,264,1]
[null,null,null,268,1]
[null,null,null,272,1]
[null,null,null,276,1]
[null,null,null,280,1]
[null,null,null,284,1]
[null,null,null,288,1]
[null,null,null,292,1]
[null,null,null,296,1]
[null,null,null,300,1]
[null,null,null,304,1]
[null,null,null,308,1]
[null,null,null,312,1]
[null,null,null,316,1]
[null,null,null,320,1]
[null,null,null,324,1]
[null,null,null,328,1]
[null,null,null,332,1]
[null,null,null,336,1]
[null,null,null,340,1]
[null,null,null,344,1]
[null,null,null,348,1]
[null,null,null,352,1]
[null,null,null,356,1]
[null,null,null,360,1]
[null,null,null,364,1]
[null,null,null,368,1]
[null,null,null,372,1]
[null,null,null,376,1]
[null,null,null,380,1]
[null,null,null,384,1]
[null,null,null,388,1]
[null,null,null,392,1]
[null,null,null,396,1]
[null,null,null,400,1]
[null,null,null,404,1]
[null,null,null,408,1]
[null,null,null,412,1]
[null,null,null,416,1]
[]
[]
[]
[]
[]
[]
[null,null,null,"ID","Max "]
[null,null,null,4,255]
[null,null,null,6,255]
[null,null,null,9,255]
[null,null,null,12,255]
[null,null,null,14,65535]
[null,null,null,16,255]
[null,null,null,18,255]
[null,null,null,26,255]
[null,null,null,29,255]
[null,null,null,31,255]
[null,null,null,33,255]
[null,null,null,35,255]
[null,null,null,37,255]
[null,null,null,39,255]
[null,null,null,41,255]
[null,null,null,43,255]
[null,null,null,45,255]
[null,null,null,47,255]
[null,null,null,49,255]
[null,null,null,51,255]
[null,null,null,53,255]
[null,null,null,56,255]
[null,null,null,58,255]
[null,null,null,60,255]
[null,null,null,62,255]
[null,null,null,64,255]
[null,null,null,66,255]
[null,null,null,68,255]
[null,null,null,70,255]
[null,null,null,72,255]
[null,null,null,74,255]
[null,null,null,76,255]
[null,null,null,78,255]
[null,null,null,80,255]
[null,null,null,82,255]
[null,null,null,84,255]
[null,null,null,86,255]
[null,null,null,88,255]
[null,null,null,90,255]
[null,null,null,92,255]
[null,null,null,94,255]
[null,null,null,96,255]
[null,null,null,98,255]
[null,null,null,100,255]
[null,null,null,102,255]
[null,null,null,104,255]
[null,null,null,106,255]
[null,null,null,108,255]
[null,null,null,110,255]
[null,null,null,112,255]
[null,null,null,114,255]
[null,null,null,116,255]
[null,null,null,118,255]
[null,null,null,120,255]
[null,null,null,122,255]
[null,null,null,124,255]
[null,null,null,126,255]
[null,null,null,128,255]
[null,null,null,130,255]
[null,null,null,132,255]
[null,null,null,134,255]
[null,null,null,136,255]
[null,null,null,138,255]
[null,null,null,140,255]
[null,null,null,142,255]
[null,null,null,144,255]
[null,null,null,146,255]
[null,null,null,148,255]
[null,null,null,150,255]
[null,null,null,152,255]
[null,null,null,154,255]
[null,null,null,156,255]
[null,null,null,158,255]
[null,null,null,160,255]
[null,null,null,162,255]
[null,null,null,164,255]
[null,null,null,166,255]
[null,null,null,168,255]
[null,null,null,170,255]
[null,null,null,172,255]
[null,null,null,174,255]
[null,null,null,176,255]
[null,null,null,178,255]
[null,null,null,180,255]
[null,null,null,182,255]
[null,null,null,184,255]
[null,null,null,186,255]
[null,null,null,188,255]
[null,null,null,190,255]
[null,null,null,192,255]
[null,null,null,194,255]
[null,null,null,196,255]
[null,null,null,198,255]
[null,null,null,200,255]
[null,null,null,202,255]
[null,null,null,204,255]
[null,null,null,206,255]
[null,null,null,208,255]
[null,null,null,210,255]
[null,null,null,212,255]
[null,null,null,214,255]
[null,null,null,216,255]
[null,null,null,218,255]
[null,null,null,220,255]
[null,null,null,222,255]
[null,null,null,224,255]
[null,null,null,226,255]
[null,null,null,228,255]
[null,null,null,230,255]
[null,null,null,232,255]
[null,null,null,234,255]
[null,null,null,236,255]
[null,null,null,238,255]
[null,null,null,240,255]
[null,null,null,242,255]
[null,null,null,244,255]
[null,null,null,246,255]
[null,null,null,248,255]
[null,null,null,250,255]
[null,null,null,252,255]
[null,null,null,254,255]
[null,null,null,256,255]
[null,null,null,258,255]
[null,null,null,260,255]
[null,null,null,262,255]
[null,null,null,264,255]
[null,null,null,266,255]
[null,null,null,268,255]
[null,null,null,270,255]
[null,null,null,272,255]
[null,null,null,274,255]
[null,null,null,276,255]
[null,null,null,278,255]
[null,null,null,280,255]
[null,null,null,282,255]
[null,null,null,284,255]
[null,null,null,286,255]
[null,null,null,288,255]
[null,null,null,290,255]
[null,null,null,292,255]
[null,null,null,294,255]
[null,null,null,296,255]
[null,null,null,298,255]
[null,null,null,300,255]
[null,null,null,302,255]
[null,null,null,304,255]
[null,null,null,306,255]
[null,null,null,308,255]
[null,null,null,310,255]
[null,null,null,312,255]
[null,null,null,314,255]
[null,null,null,316,255]
[null,null,null,318,255]
[null,null,null,320,255]
[null,null,null,322,255]
[null,null,null,324,255]
[null,null,null,326,255]
[null,null,null,328,255]
[null,null,null,330,255]
[null,null,null,332,255]
[null,null,null,334,255]
[null,null,null,336,255]
[null,null,null,338,255]
[null,null,null,340,255]
[null,null,null,342,255]
[null,null,null,344,255]
[null,null,null,346,255]
[null,null,null,348,255]
[null,null,null,350,255]
[null,null,null,352,255]
[null,null,null,354,255]
[null,null,null,356,255]
[null,null,null,358,255]
[null,null,null,360,255]
[null,null,null,362,255]
[null,null,null,364,255]
[null,null,null,366,255]
[null,null,null,368,255]
[null,null,null,370,255]
[null,null,null,372,255]
[null,null,null,374,255]
[null,null,null,376,255]
[null,null,null,378,255]
[null,null,null,380,255]
[null,null,null,382,255]
[null,null,null,384,255]
[null,null,null,386,255]
[null,null,null,388,255]
[null,null,null,390,255]
[null,null,null,392,255]
[null,null,null,394,255]
[null,null,null,396,255]
[null,null,null,398,255]
[null,null,null,400,255]
[null,null,null,402,255]
[null,null,null,404,255]
[null,null,null,406,255]
[null,null,null,408,255]
[null,null,null,410,255]
[null,null,null,412,255]
[null,null,null,414,255]
[null,null,null,416,255]
[null,null,null,418,65535]

{"sheet":"Check(Macro programs)","index":8,"n_rows":4,"n_cols":7,"rows_kept":4,"cut":false,"hidden":false,"merged":[]}
["Result of data checking by macro programs \"Data Check 1\" and \"Data Check 2\""]
[1355]
[]
["No.","Sheet","Sample ID","Item Name","Item ID","QC code","Suggestion"]

{"sheet":"Check(Manual)","index":9,"n_rows":4,"n_cols":7,"rows_kept":4,"cut":false,"hidden":false,"merged":[]}
["Result of data check manually by operator "]
[]
[]
["No.","Sheet","Sample ID","Item Name","Item ID","QC code","Suggestion"]

{"sheet":"CheckData","index":10,"n_rows":207,"n_cols":48,"rows_kept":207,"cut":false,"hidden":true,"merged":[]}
[1,{"$f":"A1+1","v":2},{"$f":"B1+1","v":3},4,5,6,7,8,9,10,11,12,13,14,15,16,17,18,19,20,21,22,23,24,25,26,27,28,29,30,31,32,33,34,35,36,{"$f":"AJ1+1","v":37},38,39,40,41,42,43,44,45,46,47,48]
[null,null,null,null,null,null,null,null,null,null,null,null,null,null,null,null,null,null,null,null,null,null,null,null,null,null,null,null,null,null,null,null,null,null,null,null,null,null,null,null,null,null,null,"Grade 3",null,"Grade 4",null,"QC Code Subject"]
[null,"Must be entered.",null,null,null,"QC codeの消去",null,null,null,"あることが望ましいデータ",null,null,null,null,null,"一定範囲以上だと警告",null,null,null,null,null,null,"一定範囲以下だと警告",null,null,null,null,null,null,"入力が可能だと考えられるデータ",null,null,null,null,null,null,null,null,null,null,null,null,null,"Must",null,"Must"]
[null,"QC code","ID","Sheet","Item",null,"ID",null,null,"QC code","ID","Sheet","Item","Suggestion",null,"QC code","ID","Sheet","Item","閾値","Suggestion",null,"QC code","ID","Sheet","Item",null,"Suggestion",null,"QC code","ID","Sheet","Item","ID","Sheet","Item",null,null,null,null,null,null,null,33,null,31,null,4]
[null,1,4,"Data set info.",null,0,5,"QC code of #0004",null,6,18,"Data set info.","Creative Commons licence","Please state your copyright under a 'Creative Commons licence.",null,1,31,"Field Survey","Time Diff",14,"Time Diff must be from -12 to 14.\"",null,1,31,"Field Survey","Time Diff",-12,"Time Diff must be from -12 to 14.\"",null,6,76,"Field Survey","Sampling_Distance",62,"Field Survey","Intake Width",null,null,240,300,360,"Sum of 'Shape percentages' was more than 100%.",null,45,null,33,null,6]
[null,1,33,"Field Survey",null,0,7,"QC code of #0006",null,6,29,"Field Survey","Sample name/ID","Sample name/ID' should be entered to distinguish it from other data.",null,3,76,"Field Survey","Sampling_Distance",10000,"Sampling Distance' is more than 10 km, too long?.",null,1,45,"Field Survey","GPS_Lat Int",-90,"GPS_Lat' must be from -90 to 90.",null,6,76,"Field Survey","Sampling_Distance",82,"Field Survey","Sampling Area",null,null,260,320,380,"Sum of 'Material percentages' was more than 100%.",null,47,null,35,null,9]
[null,1,45,"Field Survey",null,0,10,"QC code of #0009",null,6,31,"Field Survey","Time Diff","Time Diff' should be entered to match e.g. meteorological data.",null,1,45,"Field Survey","GPS_Lat Int",90,"GPS_Lat' must be from -90 to 90.",null,1,47,"Field Survey","GPS_Lon Int",-180,"GPS_Lon' must be from -180 to 180.",null,6,82,"Field Survey","Sampling Area",62,"Field Survey","Intake Width",null,null,280,340,400,"Sum of 'Colour percentages' was more than 100%.",null,"any",null,37,null,12]
[null,1,47,"Field Survey",null,0,13,"QC code of #0012",null,6,37,"Field Survey","Sampling start time","Sampling start time' should be entered to match e.g. meteorological data.",null,1,47,"Field Survey","GPS_Lon Int",180,"GPS_Lon' must be from -180 to 180.",null,1,49,"Field Survey","GPS_Lat Fin",-90,"GPS_Lat' must be from -90 to 90.",null,6,82,"Field Survey","Sampling Area",76,"Field Survey","Sampling_Distance",null,null,null,null,null,null,null,192,null,39,null,14]
[null,null,null,null,null,0,15,"QC code of #0014",null,6,41,"Field Survey","Season","Season' should be entered to understand the sea conditions.",null,1,49,"Field Survey","GPS_Lat Fin",90,"GPS_Lat' must be from -90 to 90.",null,1,51,"Field Survey","GPS_Lon Fin",-180,"GPS_Lon' must be from -180 to 180.",null,6,98,"Field Survey","Lower end depth",64,"Field Survey","Intake Height",null,null,null,null,null,null,null,194,null,41,null,16]
[null,null,null,null,null,0,17,"QC code of #0016",null,null,null,null,null,null,null,1,51,"Field Survey","GPS_Lon Fin",180,"GPS_Lon' must be from -180 to 180.",null,1,116,"Field Survey","Beaufort scale",0,"Beaufort scale' must be an integer between 0 and 12.",null,6,98,"Field Survey","Lower end depth (m)",100,"Field Survey","Lower end depth (%)",null,null,null,null,null,null,null,198,null,45,null,18]
[null,null,null,null,null,0,19,"QC code of #0018",null,null,null,null,null,null,null,3,62,"Field Survey","Intake Width",2,"Intake Width' is more than 2 m, too long?",null,1,120,"Field Survey","Sea surface temperature",0,"Sea surface temperature' is must from 0 to 100 degree Celsius.",null,6,100,"Field Survey","Lower end depth (%)",64,"Field Survey","Intake Height",null,null,null,null,null,null,null,200,null,47,null,24]
[null,null,null,null,null,0,25,"QC code of #0024",null,null,null,null,null,null,null,3,64,"Field Survey","Intake Height",2,"Intake Height' is more than 2 m, too long?",null,null,null,null,null,null,null,null,6,100,"Field Survey","Lower end depth (%)",98,"Field Survey","Lower end depth (m)",null,null,null,null,null,null,null,{"$f":"AR8+12","v":204},null,49,null,26]
[null,null,null,null,null,0,27,"QC code of #0026",null,null,null,null,null,null,null,3,66,"Field Survey","Intake Area",4,"Intake Area' is more than 4 m2, too large?",null,null,null,null,null,null,null,null,6,86,"Field Survey","Filtered Water Volume",66,"Field Survey","Intake Area",null,null,null,null,null,null,null,{"$f":"AR9+12","v":206},null,51,null,29]
[null,null,null,null,null,0,30,"QC code of #0029",null,null,null,null,null,null,null,3,68,"Field Survey","Net Length",10,"Net Length' is more than 10 m, too long?",null,null,null,null,null,null,null,null,6,86,"Field Survey","Filtered Water Volume",76,"Field Survey","Sampling_Distance",null,null,null,null,null,null,null,210,null,56,null,31]
[null,null,null,null,null,0,32,"QC code of #0031",null,null,null,null,null,null,null,3,70,"Field Survey","Mesh openings",2,"Mesh openings' is more than 2 mm, too wide?",null,null,null,null,null,null,null,null,6,86,"Field Survey","Filtered Water Volume",100,"Field Survey","Lower end depth (%)",null,null,"The percentage must not exceed 100 %.",null,null,null,null,212,null,60,null,33]
[null,null,null,null,null,0,34,"QC code of #0033",null,null,null,null,null,null,null,3,92,"Field Survey","Vessel speed",10,"Vessel speed' is more than 10 knot, too fast?",null,null,null,null,null,null,null,null,null,null,null,null,null,null,null,null,null,null,null,null,null,null,{"$f":"AR12+12","v":216},null,62,null,35]
[null,null,null,null,null,0,36,"QC code of #0035",null,null,null,null,null,null,null,3,112,"Field Survey","Wind speed",30,"Wind speed' is more than 30 m/s, too fast?",null,null,null,null,null,null,null,null,null,null,null,null,null,null,null,null,null,null,null,null,null,null,218,null,64,null,37]
[null,null,null,null,null,0,38,"QC code of #0037",null,null,null,null,null,null,null,3,114,"Field Survey","Significant wave height",10,"Significant wave height' is more than 10 m, too high?",null,null,null,null,null,null,null,null,null,null,null,null,null,null,null,null,null,null,null,null,null,null,222,null,66,null,39]
[null,null,null,null,null,0,40,"QC code of #0039",null,null,null,null,null,null,null,1,116,"Field Survey","Beaufort scale",12,"Beaufort scale' must be an integer between 0 and 12.",null,null,null,null,null,null,null,null,null,null,null,null,null,null,null,null,null,null,null,null,null,null,224,null,68,null,41]
[null,null,null,null,null,0,42,"QC code of #0041",null,null,null,null,null,null,null,1,120,"Field Survey","Sea surface temperature",100,"Sea surface temperature' is must from 0 to 100 degree Celsius.",null,null,null,null,null,null,null,null,null,null,null,null,null,null,null,null,null,null,null,null,null,null,null,null,70,null,43]
[null,null,null,null,null,0,44,"QC code of #0043",null,null,null,null,null,null,null,3,120,"Field Survey","Sea surface temperature",40,"Sea surface temperature' is over 40 degree Celsius, too high?",null,null,null,null,null,null,null,null,null,null,null,null,null,null,null,null,null,null,null,null,null,null,null,null,72,null,45]
[null,null,null,null,null,0,46,"QC code of #0045",null,null,null,null,null,null,null,3,122,"Field Survey","Sea surface salinity",40,"Sea surface salinity' is more than 40, too high?",null,null,null,null,null,null,null,null,null,null,null,null,null,null,null,null,null,null,null,null,null,null,null,null,76,null,47]
[null,null,null,null,null,0,48,"QC code of #0047",null,null,null,null,null,null,null,3,126,"Field Survey","Water current speed",10,"Water current speed' is more than 10 knot, too fast?",null,null,null,null,null,null,null,null,null,null,null,null,null,null,null,null,null,null,null,null,null,null,null,null,78,null,49]
[null,null,null,null,null,0,50,"QC code of #0049",null,null,null,null,null,null,null,null,null,null,null,null,null,null,null,null,null,null,null,null,null,null,null,null,null,null,null,null,null,null,null,null,null,null,null,null,null,80,null,51]
[null,null,null,null,null,0,52,"QC code of #0051",null,null,null,null,null,null,null,null,null,null,null,null,null,null,null,null,null,null,null,null,null,null,null,null,null,null,null,null,null,null,null,null,null,null,null,null,null,82,null,53]
[null,null,null,null,null,0,54,"QC code of #0053",null,null,null,null,null,null,null,null,null,null,null,null,null,null,null,null,null,null,null,null,null,null,null,null,null,null,null,null,null,null,null,null,null,null,null,null,null,84,null,56]
[null,null,null,null,null,0,57,"QC code of #0056",null,null,null,null,null,null,null,null,null,null,null,null,null,null,null,null,null,null,null,null,null,null,null,null,null,null,null,null,null,null,null,null,null,null,null,null,null,86,null,58]
[null,null,null,null,null,0,59,"QC code of #0058",null,null,null,null,null,null,null,null,null,null,null,null,null,null,null,null,null,null,null,null,null,null,null,null,null,null,null,null,null,null,null,null,null,null,null,null,null,88,null,60]
[null,null,null,null,null,0,61,"QC code of #0060",null,null,null,null,null,null,null,null,null,null,null,null,null,null,null,null,null,null,null,null,null,null,null,null,null,null,null,null,null,null,null,null,null,null,null,null,null,90,null,62]
[null,null,null,null,null,0,63,"QC code of #0062",null,null,null,null,null,null,null,null,null,null,null,null,null,null,null,null,null,null,null,null,null,null,null,null,null,null,null,null,null,null,null,null,null,null,null,null,null,92,null,64]
[null,null,null,null,null,0,65,"QC code of #0064",null,null,null,null,null,null,null,null,null,null,null,null,null,null,null,null,null,null,null,null,null,null,null,null,null,null,null,null,null,null,null,null,null,null,null,null,null,94,null,66]
[null,null,null,null,null,0,67,"QC code of #0066",null,null,null,null,null,null,null,null,null,null,null,null,null,null,null,null,null,null,null,null,null,null,null,null,null,null,null,null,null,null,null,null,null,null,null,null,null,96,null,68]
[null,null,null,null,null,0,69,"QC code of #0068",null,null,null,null,null,null,null,null,null,null,null,null,null,null,null,null,null,null,null,null,null,null,null,null,null,null,null,null,null,null,null,null,null,null,null,null,null,98,null,70]
[null,null,null,null,null,0,71,"QC code of #0070",null,null,null,null,null,null,null,null,null,null,null,null,null,null,null,null,null,null,null,null,null,null,null,null,null,null,null,null,null,null,null,null,null,null,null,null,null,104,null,72]
[null,null,null,null,null,0,73,"QC code of #0072",null,null,null,null,null,null,null,null,null,null,null,null,null,null,null,null,null,null,null,null,null,null,null,null,null,null,null,null,null,null,null,null,null,null,null,null,null,106,null,74]
[null,null,null,null,null,0,75,"QC code of #0074",null,null,null,null,null,null,null,null,null,null,null,null,null,null,null,null,null,null,null,null,null,null,null,null,null,null,null,null,null,null,null,null,null,null,null,null,null,108,null,76]
[null,null,null,null,null,0,77,"QC code of #0076",null,null,null,null,null,null,null,null,null,null,null,null,null,null,null,null,null,null,null,null,null,null,null,null,null,null,null,null,null,null,null,null,null,null,null,null,null,110,null,78]
[null,null,null,null,null,0,79,"QC code of #0078",null,null,null,null,null,null,null,null,null,null,null,null,null,null,null,null,null,null,null,null,null,null,null,null,null,null,null,null,null,null,null,null,null,null,null,null,null,112,null,80]
[null,null,null,null,null,0,81,"QC code of #0080",null,null,null,null,null,null,null,null,null,null,null,null,null,null,null,null,null,null,null,null,null,null,null,null,null,null,null,null,null,null,null,null,null,null,null,null,null,116,null,82]
[null,null,null,null,null,0,83,"QC code of #0082",null,null,null,null,null,null,null,null,null,null,null,null,null,null,null,null,null,null,null,null,null,null,null,null,null,null,null,null,null,null,null,null,null,null,null,null,null,118,null,84]
[null,null,null,null,null,0,85,"QC code of #0084",null,null,null,null,null,null,null,null,null,null,null,null,null,null,null,null,null,null,null,null,null,null,null,null,null,null,null,null,null,null,null,null,null,null,null,null,null,120,null,86]
[null,null,null,null,null,0,87,"QC code of #0086",null,null,null,null,null,null,null,null,null,null,null,null,null,null,null,null,null,null,null,null,null,null,null,null,null,null,null,null,null,null,null,null,null,null,null,null,null,122,null,88]
[null,null,null,null,null,0,89,"QC code of #0088",null,null,null,null,null,null,null,null,null,null,null,null,null,null,null,null,null,null,null,null,null,null,null,null,null,null,null,null,null,null,null,null,null,null,null,null,null,136,null,90]
[null,null,null,null,null,0,91,"QC code of #0090",null,null,null,null,null,null,null,null,null,null,null,null,null,null,null,null,null,null,null,null,null,null,null,null,null,null,null,null,null,null,null,null,null,null,null,null,null,138,null,92]
[null,null,null,null,null,0,93,"QC code of #0092",null,null,null,null,null,null,null,null,null,null,null,null,null,null,null,null,null,null,null,null,null,null,null,null,null,null,null,null,null,null,null,null,null,null,null,null,null,140,null,94]
[null,null,null,null,null,0,95,"QC code of #0094",null,null,null,null,null,null,null,null,null,null,null,null,null,null,null,null,null,null,null,null,null,null,null,null,null,null,null,null,null,null,null,null,null,null,null,null,null,142,null,96]
[null,null,null,null,null,0,97,"QC code of #0096",null,null,null,null,null,null,null,null,null,null,null,null,null,null,null,null,null,null,null,null,null,null,null,null,null,null,null,null,null,null,null,null,null,null,null,null,null,146,null,98]
[null,null,null,null,null,0,99,"QC code of #0098",null,null,null,null,null,null,null,null,null,null,null,null,null,null,null,null,null,null,null,null,null,null,null,null,null,null,null,null,null,null,null,null,null,null,null,null,null,148,null,100]
[null,null,null,null,null,0,101,"QC code of #0100",null,null,null,null,null,null,null,null,null,null,null,null,null,null,null,null,null,null,null,null,null,null,null,null,null,null,null,null,null,null,null,null,null,null,null,null,null,150,null,102]
[null,null,null,null,null,0,103,"QC code of #0102",null,null,null,null,null,null,null,null,null,null,null,null,null,null,null,null,null,null,null,null,null,null,null,null,null,null,null,null,null,null,null,null,null,null,null,null,null,152,null,104]
[null,null,null,null,null,0,105,"QC code of #0104",null,null,null,null,null,null,null,null,null,null,null,null,null,null,null,null,null,null,null,null,null,null,null,null,null,null,null,null,null,null,null,null,null,null,null,null,null,154,null,106]
[null,null,null,null,null,0,107,"QC code of #0106",null,null,null,null,null,null,null,null,null,null,null,null,null,null,null,null,null,null,null,null,null,null,null,null,null,null,null,null,null,null,null,null,null,null,null,null,null,156,null,108]
[null,null,null,null,null,0,109,"QC code of #0108",null,null,null,null,null,null,null,null,null,null,null,null,null,null,null,null,null,null,null,null,null,null,null,null,null,null,null,null,null,null,null,null,null,null,null,null,null,160,null,110]
[null,null,null,null,null,0,111,"QC code of #0110",null,null,null,null,null,null,null,null,null,null,null,null,null,null,null,null,null,null,null,null,null,null,null,null,null,null,null,null,null,null,null,null,null,null,null,null,null,164,null,112]
[null,null,null,null,null,0,113,"QC code of #0112",null,null,null,null,null,null,null,null,null,null,null,null,null,null,null,null,null,null,null,null,null,null,null,null,null,null,null,null,null,null,null,null,null,null,null,null,null,166,null,114]
[null,null,null,null,null,0,115,"QC code of #0114",null,null,null,null,null,null,null,null,null,null,null,null,null,null,null,null,null,null,null,null,null,null,null,null,null,null,null,null,null,null,null,null,null,null,null,null,null,168,null,116]
[null,null,null,null,null,0,117,"QC code of #0116",null,null,null,null,null,null,null,null,null,null,null,null,null,null,null,null,null,null,null,null,null,null,null,null,null,null,null,null,null,null,null,null,null,null,null,null,null,170,null,118]
[null,null,null,null,null,0,119,"QC code of #0118",null,null,null,null,null,null,null,null,null,null,null,null,null,null,null,null,null,null,null,null,null,null,null,null,null,null,null,null,null,null,null,null,null,null,null,null,null,172,null,120]
[null,null,null,null,null,0,121,"QC code of #0120",null,null,null,null,null,null,null,null,null,null,null,null,null,null,null,null,null,null,null,null,null,null,null,null,null,null,null,null,null,null,null,null,null,null,null,null,null,174,null,122]
[null,null,null,null,null,0,123,"QC code of #0122",null,null,null,null,null,null,null,null,null,null,null,null,null,null,null,null,null,null,null,null,null,null,null,null,null,null,null,null,null,null,null,null,null,null,null,null,null,178,null,124]
[null,null,null,null,null,0,125,"QC code of #0124",null,null,null,null,null,null,null,null,null,null,null,null,null,null,null,null,null,null,null,null,null,null,null,null,null,null,null,null,null,null,null,null,null,null,null,null,null,180,null,126]
[null,null,null,null,null,0,127,"QC code of #0126",null,null,null,null,null,null,null,null,null,null,null,null,null,null,null,null,null,null,null,null,null,null,null,null,null,null,null,null,null,null,null,null,null,null,null,null,null,182,null,128]
[null,null,null,null,null,0,129,"QC code of #0128",null,null,null,null,null,null,null,null,null,null,null,null,null,null,null,null,null,null,null,null,null,null,null,null,null,null,null,null,null,null,null,null,null,null,null,null,null,186,null,130]
[null,null,null,null,null,0,131,"QC code of #0130",null,null,null,null,null,null,null,null,null,null,null,null,null,null,null,null,null,null,null,null,null,null,null,null,null,null,null,null,null,null,null,null,null,null,null,null,null,204,null,132]
[null,null,null,null,null,0,133,"QC code of #0132",null,null,null,null,null,null,null,null,null,null,null,null,null,null,null,null,null,null,null,null,null,null,null,null,null,null,null,null,null,null,null,null,null,null,null,null,null,206,null,134]
[null,null,null,null,null,0,135,"QC code of #0134",null,null,null,null,null,null,null,null,null,null,null,null,null,null,null,null,null,null,null,null,null,null,null,null,null,null,null,null,null,null,null,null,null,null,null,null,null,210,null,136]
[null,null,null,null,null,0,137,"QC code of #0136",null,null,null,null,null,null,null,null,null,null,null,null,null,null,null,null,null,null,null,null,null,null,null,null,null,null,null,null,null,null,null,null,null,null,null,null,null,212,null,138]
[null,null,null,null,null,0,139,"QC code of #0138",null,null,null,null,null,null,null,null,null,null,null,null,null,null,null,null,null,null,null,null,null,null,null,null,null,null,null,null,null,null,null,null,null,null,null,null,null,298,null,140]
[null,null,null,null,null,0,141,"QC code of #0140",null,null,null,null,null,null,null,null,null,null,null,null,null,null,null,null,null,null,null,null,null,null,null,null,null,null,null,null,null,null,null,null,null,null,null,null,null,null,null,142]
[null,null,null,null,null,0,143,"QC code of #0142",null,null,null,null,null,null,null,null,null,null,null,null,null,null,null,null,null,null,null,null,null,null,null,null,null,null,null,null,null,null,null,null,null,null,null,null,null,null,null,144]
[null,null,null,null,null,0,145,"QC code of #0144",null,null,null,null,null,null,null,null,null,null,null,null,null,null,null,null,null,null,null,null,null,null,null,null,null,null,null,null,null,null,null,null,null,null,null,null,null,null,null,146]
[null,null,null,null,null,0,147,"QC code of #0146",null,null,null,null,null,null,null,null,null,null,null,null,null,null,null,null,null,null,null,null,null,null,null,null,null,null,null,null,null,null,null,null,null,null,null,null,null,null,null,148]
[null,null,null,null,null,0,149,"QC code of #0148",null,null,null,null,null,null,null,null,null,null,null,null,null,null,null,null,null,null,null,null,null,null,null,null,null,null,null,null,null,null,null,null,null,null,null,null,null,null,null,150]
[null,null,null,null,null,0,151,"QC code of #0150",null,null,null,null,null,null,null,null,null,null,null,null,null,null,null,null,null,null,null,null,null,null,null,null,null,null,null,null,null,null,null,null,null,null,null,null,null,null,null,152]
[null,null,null,null,null,0,153,"QC code of #0152",null,null,null,null,null,null,null,null,null,null,null,null,null,null,null,null,null,null,null,null,null,null,null,null,null,null,null,null,null,null,null,null,null,null,null,null,null,null,null,154]
[null,null,null,null,null,0,155,"QC code of #0154",null,null,null,null,null,null,null,null,null,null,null,null,null,null,null,null,null,null,null,null,null,null,null,null,null,null,null,null,null,null,null,null,null,null,null,null,null,null,null,156]
[null,null,null,null,null,0,157,"QC code of #0156",null,null,null,null,null,null,null,null,null,null,null,null,null,null,null,null,null,null,null,null,null,null,null,null,null,null,null,null,null,null,null,null,null,null,null,null,null,null,null,158]
[null,null,null,null,null,0,159,"QC code of #0158",null,null,null,null,null,null,null,null,null,null,null,null,null,null,null,null,null,null,null,null,null,null,null,null,null,null,null,null,null,null,null,null,null,null,null,null,null,null,null,160]
[null,null,null,null,null,0,161,"QC code of #0160",null,null,null,null,null,null,null,null,null,null,null,null,null,null,null,null,null,null,null,null,null,null,null,null,null,null,null,null,null,null,null,null,null,null,null,null,null,null,null,162]
[null,null,null,null,null,0,163,"QC code of #0162",null,null,null,null,null,null,null,null,null,null,null,null,null,null,null,null,null,null,null,null,null,null,null,null,null,null,null,null,null,null,null,null,null,null,null,null,null,null,null,164]
[null,null,null,null,null,0,165,"QC code of #0164",null,null,null,null,null,null,null,null,null,null,null,null,null,null,null,null,null,null,null,null,null,null,null,null,null,null,null,null,null,null,null,null,null,null,null,null,null,null,null,166]
[null,null,null,null,null,0,167,"QC code of #0166",null,null,null,null,null,null,null,null,null,null,null,null,null,null,null,null,null,null,null,null,null,null,null,null,null,null,null,null,null,null,null,null,null,null,null,null,null,null,null,168]
[null,null,null,null,null,0,169,"QC code of #0168",null,null,null,null,null,null,null,null,null,null,null,null,null,null,null,null,null,null,null,null,null,null,null,null,null,null,null,null,null,null,null,null,null,null,null,null,null,null,null,170]
[null,null,null,null,null,0,171,"QC code of #0170",null,null,null,null,null,null,null,null,null,null,null,null,null,null,null,null,null,null,null,null,null,null,null,null,null,null,null,null,null,null,null,null,null,null,null,null,null,null,null,172]
[null,null,null,null,null,0,173,"QC code of #0172",null,null,null,null,null,null,null,null,null,null,null,null,null,null,null,null,null,null,null,null,null,null,null,null,null,null,null,null,null,null,null,null,null,null,null,null,null,null,null,174]
[null,null,null,null,null,0,175,"QC code of #0174",null,null,null,null,null,null,null,null,null,null,null,null,null,null,null,null,null,null,null,null,null,null,null,null,null,null,null,null,null,null,null,null,null,null,null,null,null,null,null,176]
[null,null,null,null,null,0,177,"QC code of #0176",null,null,null,null,null,null,null,null,null,null,null,null,null,null,null,null,null,null,null,null,null,null,null,null,null,null,null,null,null,null,null,null,null,null,null,null,null,null,null,178]
[null,null,null,null,null,0,179,"QC code of #0178",null,null,null,null,null,null,null,null,null,null,null,null,null,null,null,null,null,null,null,null,null,null,null,null,null,null,null,null,null,null,null,null,null,null,null,null,null,null,null,180]
[null,null,null,null,null,0,181,"QC code of #0180",null,null,null,null,null,null,null,null,null,null,null,null,null,null,null,null,null,null,null,null,null,null,null,null,null,null,null,null,null,null,null,null,null,null,null,null,null,null,null,182]
[null,null,null,null,null,0,183,"QC code of #0182",null,null,null,null,null,null,null,null,null,null,null,null,null,null,null,null,null,null,null,null,null,null,null,null,null,null,null,null,null,null,null,null,null,null,null,null,null,null,null,184]
[null,null,null,null,null,0,185,"QC code of #0184",null,null,null,null,null,null,null,null,null,null,null,null,null,null,null,null,null,null,null,null,null,null,null,null,null,null,null,null,null,null,null,null,null,null,null,null,null,null,null,186]
[null,null,null,null,null,0,187,"QC code of #0186",null,null,null,null,null,null,null,null,null,null,null,null,null,null,null,null,null,null,null,null,null,null,null,null,null,null,null,null,null,null,null,null,null,null,null,null,null,null,null,188]
[null,null,null,null,null,0,189,"QC code of #0188",null,null,null,null,null,null,null,null,null,null,null,null,null,null,null,null,null,null,null,null,null,null,null,null,null,null,null,null,null,null,null,null,null,null,null,null,null,null,null,190]
[null,null,null,null,null,0,191,"QC code of #0190",null,null,null,null,null,null,null,null,null,null,null,null,null,null,null,null,null,null,null,null,null,null,null,null,null,null,null,null,null,null,null,null,null,null,null,null,null,null,null,192]
[null,null,null,null,null,0,193,"QC code of #0192",null,null,null,null,null,null,null,null,null,null,null,null,null,null,null,null,null,null,null,null,null,null,null,null,null,null,null,null,null,null,null,null,null,null,null,null,null,null,null,194]
[null,null,null,null,null,0,195,"QC code of #0194",null,null,null,null,null,null,null,null,null,null,null,null,null,null,null,null,null,null,null,null,null,null,null,null,null,null,null,null,null,null,null,null,null,null,null,null,null,null,null,196]
[null,null,null,null,null,0,197,"QC code of #0196",null,null,null,null,null,null,null,null,null,null,null,null,null,null,null,null,null,null,null,null,null,null,null,null,null,null,null,null,null,null,null,null,null,null,null,null,null,null,null,198]
[null,null,null,null,null,0,199,"QC code of #0198",null,null,null,null,null,null,null,null,null,null,null,null,null,null,null,null,null,null,null,null,null,null,null,null,null,null,null,null,null,null,null,null,null,null,null,null,null,null,null,200]
[null,null,null,null,null,0,201,"QC code of #0200",null,null,null,null,null,null,null,null,null,null,null,null,null,null,null,null,null,null,null,null,null,null,null,null,null,null,null,null,null,null,null,null,null,null,null,null,null,null,null,202]
[null,null,null,null,null,0,203,"QC code of #0202",null,null,null,null,null,null,null,null,null,null,null,null,null,null,null,null,null,null,null,null,null,null,null,null,null,null,null,null,null,null,null,null,null,null,null,null,null,null,null,204]
[null,null,null,null,null,0,205,"QC code of #0204",null,null,null,null,null,null,null,null,null,null,null,null,null,null,null,null,null,null,null,null,null,null,null,null,null,null,null,null,null,null,null,null,null,null,null,null,null,null,null,206]
[null,null,null,null,null,0,207,"QC code of #0206",null,null,null,null,null,null,null,null,null,null,null,null,null,null,null,null,null,null,null,null,null,null,null,null,null,null,null,null,null,null,null,null,null,null,null,null,null,null,null,208]
[null,null,null,null,null,0,209,"QC code of #0208",null,null,null,null,null,null,null,null,null,null,null,null,null,null,null,null,null,null,null,null,null,null,null,null,null,null,null,null,null,null,null,null,null,null,null,null,null,null,null,210]
[null,null,null,null,null,0,211,"QC code of #0210",null,null,null,null,null,null,null,null,null,null,null,null,null,null,null,null,null,null,null,null,null,null,null,null,null,null,null,null,null,null,null,null,null,null,null,null,null,null,null,212]
[null,null,null,null,null,0,213,"QC code of #0212",null,null,null,null,null,null,null,null,null,null,null,null,null,null,null,null,null,null,null,null,null,null,null,null,null,null,null,null,null,null,null,null,null,null,null,null,null,null,null,214]
[null,null,null,null,null,0,215,"QC code of #0214",null,null,null,null,null,null,null,null,null,null,null,null,null,null,null,null,null,null,null,null,null,null,null,null,null,null,null,null,null,null,null,null,null,null,null,null,null,null,null,216]
[null,null,null,null,null,0,217,"QC code of #0216",null,null,null,null,null,null,null,null,null,null,null,null,null,null,null,null,null,null,null,null,null,null,null,null,null,null,null,null,null,null,null,null,null,null,null,null,null,null,null,218]
[null,null,null,null,null,0,219,"QC code of #0218",null,null,null,null,null,null,null,null,null,null,null,null,null,null,null,null,null,null,null,null,null,null,null,null,null,null,null,null,null,null,null,null,null,null,null,null,null,null,null,220]
[null,null,null,null,null,0,221,"QC code of #0220",null,null,null,null,null,null,null,null,null,null,null,null,null,null,null,null,null,null,null,null,null,null,null,null,null,null,null,null,null,null,null,null,null,null,null,null,null,null,null,222]
[null,null,null,null,null,0,223,"QC code of #0222",null,null,null,null,null,null,null,null,null,null,null,null,null,null,null,null,null,null,null,null,null,null,null,null,null,null,null,null,null,null,null,null,null,null,null,null,null,null,null,224]
[null,null,null,null,null,0,225,"QC code of #0224",null,null,null,null,null,null,null,null,null,null,null,null,null,null,null,null,null,null,null,null,null,null,null,null,null,null,null,null,null,null,null,null,null,null,null,null,null,null,null,226]
[null,null,null,null,null,0,227,"QC code of #0226",null,null,null,null,null,null,null,null,null,null,null,null,null,null,null,null,null,null,null,null,null,null,null,null,null,null,null,null,null,null,null,null,null,null,null,null,null,null,null,228]
[null,null,null,null,null,0,229,"QC code of #0228",null,null,null,null,null,null,null,null,null,null,null,null,null,null,null,null,null,null,null,null,null,null,null,null,null,null,null,null,null,null,null,null,null,null,null,null,null,null,null,230]
[null,null,null,null,null,0,231,"QC code of #0230",null,null,null,null,null,null,null,null,null,null,null,null,null,null,null,null,null,null,null,null,null,null,null,null,null,null,null,null,null,null,null,null,null,null,null,null,null,null,null,232]
[null,null,null,null,null,0,233,"QC code of #0232",null,null,null,null,null,null,null,null,null,null,null,null,null,null,null,null,null,null,null,null,null,null,null,null,null,null,null,null,null,null,null,null,null,null,null,null,null,null,null,234]
[null,null,null,null,null,0,235,"QC code of #0234",null,null,null,null,null,null,null,null,null,null,null,null,null,null,null,null,null,null,null,null,null,null,null,null,null,null,null,null,null,null,null,null,null,null,null,null,null,null,null,236]
[null,null,null,null,null,0,237,"QC code of #0236",null,null,null,null,null,null,null,null,null,null,null,null,null,null,null,null,null,null,null,null,null,null,null,null,null,null,null,null,null,null,null,null,null,null,null,null,null,null,null,238]
[null,null,null,null,null,0,239,"QC code of #0238",null,null,null,null,null,null,null,null,null,null,null,null,null,null,null,null,null,null,null,null,null,null,null,null,null,null,null,null,null,null,null,null,null,null,null,null,null,null,null,240]
[null,null,null,null,null,0,241,"QC code of #0240",null,null,null,null,null,null,null,null,null,null,null,null,null,null,null,null,null,null,null,null,null,null,null,null,null,null,null,null,null,null,null,null,null,null,null,null,null,null,null,242]
[null,null,null,null,null,0,243,"QC code of #0242",null,null,null,null,null,null,null,null,null,null,null,null,null,null,null,null,null,null,null,null,null,null,null,null,null,null,null,null,null,null,null,null,null,null,null,null,null,null,null,244]
[null,null,null,null,null,0,245,"QC code of #0244",null,null,null,null,null,null,null,null,null,null,null,null,null,null,null,null,null,null,null,null,null,null,null,null,null,null,null,null,null,null,null,null,null,null,null,null,null,null,null,246]
[null,null,null,null,null,0,247,"QC code of #0246",null,null,null,null,null,null,null,null,null,null,null,null,null,null,null,null,null,null,null,null,null,null,null,null,null,null,null,null,null,null,null,null,null,null,null,null,null,null,null,248]
[null,null,null,null,null,0,249,"QC code of #0248",null,null,null,null,null,null,null,null,null,null,null,null,null,null,null,null,null,null,null,null,null,null,null,null,null,null,null,null,null,null,null,null,null,null,null,null,null,null,null,250]
[null,null,null,null,null,0,251,"QC code of #0250",null,null,null,null,null,null,null,null,null,null,null,null,null,null,null,null,null,null,null,null,null,null,null,null,null,null,null,null,null,null,null,null,null,null,null,null,null,null,null,252]
[null,null,null,null,null,0,253,"QC code of #0252",null,null,null,null,null,null,null,null,null,null,null,null,null,null,null,null,null,null,null,null,null,null,null,null,null,null,null,null,null,null,null,null,null,null,null,null,null,null,null,254]
[null,null,null,null,null,0,255,"QC code of #0254",null,null,null,null,null,null,null,null,null,null,null,null,null,null,null,null,null,null,null,null,null,null,null,null,null,null,null,null,null,null,null,null,null,null,null,null,null,null,null,256]
[null,null,null,null,null,0,257,"QC code of #0256",null,null,null,null,null,null,null,null,null,null,null,null,null,null,null,null,null,null,null,null,null,null,null,null,null,null,null,null,null,null,null,null,null,null,null,null,null,null,null,258]
[null,null,null,null,null,0,259,"QC code of #0258",null,null,null,null,null,null,null,null,null,null,null,null,null,null,null,null,null,null,null,null,null,null,null,null,null,null,null,null,null,null,null,null,null,null,null,null,null,null,null,260]
[null,null,null,null,null,0,261,"QC code of #0260",null,null,null,null,null,null,null,null,null,null,null,null,null,null,null,null,null,null,null,null,null,null,null,null,null,null,null,null,null,null,null,null,null,null,null,null,null,null,null,262]
[null,null,null,null,null,0,263,"QC code of #0262",null,null,null,null,null,null,null,null,null,null,null,null,null,null,null,null,null,null,null,null,null,null,null,null,null,null,null,null,null,null,null,null,null,null,null,null,null,null,null,264]
[null,null,null,null,null,0,265,"QC code of #0264",null,null,null,null,null,null,null,null,null,null,null,null,null,null,null,null,null,null,null,null,null,null,null,null,null,null,null,null,null,null,null,null,null,null,null,null,null,null,null,266]
[null,null,null,null,null,0,267,"QC code of #0266",null,null,null,null,null,null,null,null,null,null,null,null,null,null,null,null,null,null,null,null,null,null,null,null,null,null,null,null,null,null,null,null,null,null,null,null,null,null,null,268]
[null,null,null,null,null,0,269,"QC code of #0268",null,null,null,null,null,null,null,null,null,null,null,null,null,null,null,null,null,null,null,null,null,null,null,null,null,null,null,null,null,null,null,null,null,null,null,null,null,null,null,270]
[null,null,null,null,null,0,271,"QC code of #0270",null,null,null,null,null,null,null,null,null,null,null,null,null,null,null,null,null,null,null,null,null,null,null,null,null,null,null,null,null,null,null,null,null,null,null,null,null,null,null,272]
[null,null,null,null,null,0,273,"QC code of #0272",null,null,null,null,null,null,null,null,null,null,null,null,null,null,null,null,null,null,null,null,null,null,null,null,null,null,null,null,null,null,null,null,null,null,null,null,null,null,null,274]
[null,null,null,null,null,0,275,"QC code of #0274",null,null,null,null,null,null,null,null,null,null,null,null,null,null,null,null,null,null,null,null,null,null,null,null,null,null,null,null,null,null,null,null,null,null,null,null,null,null,null,276]
[null,null,null,null,null,0,277,"QC code of #0276",null,null,null,null,null,null,null,null,null,null,null,null,null,null,null,null,null,null,null,null,null,null,null,null,null,null,null,null,null,null,null,null,null,null,null,null,null,null,null,278]
[null,null,null,null,null,0,279,"QC code of #0278",null,null,null,null,null,null,null,null,null,null,null,null,null,null,null,null,null,null,null,null,null,null,null,null,null,null,null,null,null,null,null,null,null,null,null,null,null,null,null,280]
[null,null,null,null,null,0,281,"QC code of #0280",null,null,null,null,null,null,null,null,null,null,null,null,null,null,null,null,null,null,null,null,null,null,null,null,null,null,null,null,null,null,null,null,null,null,null,null,null,null,null,282]
[null,null,null,null,null,0,283,"QC code of #0282",null,null,null,null,null,null,null,null,null,null,null,null,null,null,null,null,null,null,null,null,null,null,null,null,null,null,null,null,null,null,null,null,null,null,null,null,null,null,null,284]
[null,null,null,null,null,0,285,"QC code of #0284",null,null,null,null,null,null,null,null,null,null,null,null,null,null,null,null,null,null,null,null,null,null,null,null,null,null,null,null,null,null,null,null,null,null,null,null,null,null,null,286]
[null,null,null,null,null,0,287,"QC code of #0286",null,null,null,null,null,null,null,null,null,null,null,null,null,null,null,null,null,null,null,null,null,null,null,null,null,null,null,null,null,null,null,null,null,null,null,null,null,null,null,288]
[null,null,null,null,null,0,289,"QC code of #0288",null,null,null,null,null,null,null,null,null,null,null,null,null,null,null,null,null,null,null,null,null,null,null,null,null,null,null,null,null,null,null,null,null,null,null,null,null,null,null,290]
[null,null,null,null,null,0,291,"QC code of #0290",null,null,null,null,null,null,null,null,null,null,null,null,null,null,null,null,null,null,null,null,null,null,null,null,null,null,null,null,null,null,null,null,null,null,null,null,null,null,null,292]
[null,null,null,null,null,0,293,"QC code of #0292",null,null,null,null,null,null,null,null,null,null,null,null,null,null,null,null,null,null,null,null,null,null,null,null,null,null,null,null,null,null,null,null,null,null,null,null,null,null,null,294]
[null,null,null,null,null,0,295,"QC code of #0294",null,null,null,null,null,null,null,null,null,null,null,null,null,null,null,null,null,null,null,null,null,null,null,null,null,null,null,null,null,null,null,null,null,null,null,null,null,null,null,296]
[null,null,null,null,null,0,297,"QC code of #0296",null,null,null,null,null,null,null,null,null,null,null,null,null,null,null,null,null,null,null,null,null,null,null,null,null,null,null,null,null,null,null,null,null,null,null,null,null,null,null,298]
[null,null,null,null,null,0,299,"QC code of #0298",null,null,null,null,null,null,null,null,null,null,null,null,null,null,null,null,null,null,null,null,null,null,null,null,null,null,null,null,null,null,null,null,null,null,null,null,null,null,null,300]
[null,null,null,null,null,0,301,"QC code of #0300",null,null,null,null,null,null,null,null,null,null,null,null,null,null,null,null,null,null,null,null,null,null,null,null,null,null,null,null,null,null,null,null,null,null,null,null,null,null,null,302]
[null,null,null,null,null,0,303,"QC code of #0302",null,null,null,null,null,null,null,null,null,null,null,null,null,null,null,null,null,null,null,null,null,null,null,null,null,null,null,null,null,null,null,null,null,null,null,null,null,null,null,304]
[null,null,null,null,null,0,305,"QC code of #0304",null,null,null,null,null,null,null,null,null,null,null,null,null,null,null,null,null,null,null,null,null,null,null,null,null,null,null,null,null,null,null,null,null,null,null,null,null,null,null,306]
[null,null,null,null,null,0,307,"QC code of #0306",null,null,null,null,null,null,null,null,null,null,null,null,null,null,null,null,null,null,null,null,null,null,null,null,null,null,null,null,null,null,null,null,null,null,null,null,null,null,null,308]
[null,null,null,null,null,0,309,"QC code of #0308",null,null,null,null,null,null,null,null,null,null,null,null,null,null,null,null,null,null,null,null,null,null,null,null,null,null,null,null,null,null,null,null,null,null,null,null,null,null,null,310]
[null,null,null,null,null,0,311,"QC code of #0310",null,null,null,null,null,null,null,null,null,null,null,null,null,null,null,null,null,null,null,null,null,null,null,null,null,null,null,null,null,null,null,null,null,null,null,null,null,null,null,312]
[null,null,null,null,null,0,313,"QC code of #0312",null,null,null,null,null,null,null,null,null,null,null,null,null,null,null,null,null,null,null,null,null,null,null,null,null,null,null,null,null,null,null,null,null,null,null,null,null,null,null,314]
[null,null,null,null,null,0,315,"QC code of #0314",null,null,null,null,null,null,null,null,null,null,null,null,null,null,null,null,null,null,null,null,null,null,null,null,null,null,null,null,null,null,null,null,null,null,null,null,null,null,null,316]
[null,null,null,null,null,0,317,"QC code of #0316",null,null,null,null,null,null,null,null,null,null,null,null,null,null,null,null,null,null,null,null,null,null,null,null,null,null,null,null,null,null,null,null,null,null,null,null,null,null,null,318]
[null,null,null,null,null,0,319,"QC code of #0318",null,null,null,null,null,null,null,null,null,null,null,null,null,null,null,null,null,null,null,null,null,null,null,null,null,null,null,null,null,null,null,null,null,null,null,null,null,null,null,320]
[null,null,null,null,null,0,321,"QC code of #0320",null,null,null,null,null,null,null,null,null,null,null,null,null,null,null,null,null,null,null,null,null,null,null,null,null,null,null,null,null,null,null,null,null,null,null,null,null,null,null,322]
[null,null,null,null,null,0,323,"QC code of #0322",null,null,null,null,null,null,null,null,null,null,null,null,null,null,null,null,null,null,null,null,null,null,null,null,null,null,null,null,null,null,null,null,null,null,null,null,null,null,null,324]
[null,null,null,null,null,0,325,"QC code of #0324",null,null,null,null,null,null,null,null,null,null,null,null,null,null,null,null,null,null,null,null,null,null,null,null,null,null,null,null,null,null,null,null,null,null,null,null,null,null,null,326]
[null,null,null,null,null,0,327,"QC code of #0326",null,null,null,null,null,null,null,null,null,null,null,null,null,null,null,null,null,null,null,null,null,null,null,null,null,null,null,null,null,null,null,null,null,null,null,null,null,null,null,328]
[null,null,null,null,null,0,329,"QC code of #0328",null,null,null,null,null,null,null,null,null,null,null,null,null,null,null,null,null,null,null,null,null,null,null,null,null,null,null,null,null,null,null,null,null,null,null,null,null,null,null,330]
[null,null,null,null,null,0,331,"QC code of #0330",null,null,null,null,null,null,null,null,null,null,null,null,null,null,null,null,null,null,null,null,null,null,null,null,null,null,null,null,null,null,null,null,null,null,null,null,null,null,null,332]
[null,null,null,null,null,0,333,"QC code of #0332",null,null,null,null,null,null,null,null,null,null,null,null,null,null,null,null,null,null,null,null,null,null,null,null,null,null,null,null,null,null,null,null,null,null,null,null,null,null,null,334]
[null,null,null,null,null,0,335,"QC code of #0334",null,null,null,null,null,null,null,null,null,null,null,null,null,null,null,null,null,null,null,null,null,null,null,null,null,null,null,null,null,null,null,null,null,null,null,null,null,null,null,336]
[null,null,null,null,null,0,337,"QC code of #0336",null,null,null,null,null,null,null,null,null,null,null,null,null,null,null,null,null,null,null,null,null,null,null,null,null,null,null,null,null,null,null,null,null,null,null,null,null,null,null,338]
[null,null,null,null,null,0,339,"QC code of #0338",null,null,null,null,null,null,null,null,null,null,null,null,null,null,null,null,null,null,null,null,null,null,null,null,null,null,null,null,null,null,null,null,null,null,null,null,null,null,null,340]
[null,null,null,null,null,0,341,"QC code of #0340",null,null,null,null,null,null,null,null,null,null,null,null,null,null,null,null,null,null,null,null,null,null,null,null,null,null,null,null,null,null,null,null,null,null,null,null,null,null,null,342]
[null,null,null,null,null,0,343,"QC code of #0342",null,null,null,null,null,null,null,null,null,null,null,null,null,null,null,null,null,null,null,null,null,null,null,null,null,null,null,null,null,null,null,null,null,null,null,null,null,null,null,344]
[null,null,null,null,null,0,345,"QC code of #0344",null,null,null,null,null,null,null,null,null,null,null,null,null,null,null,null,null,null,null,null,null,null,null,null,null,null,null,null,null,null,null,null,null,null,null,null,null,null,null,346]
[null,null,null,null,null,0,347,"QC code of #0346",null,null,null,null,null,null,null,null,null,null,null,null,null,null,null,null,null,null,null,null,null,null,null,null,null,null,null,null,null,null,null,null,null,null,null,null,null,null,null,348]
[null,null,null,null,null,0,349,"QC code of #0348",null,null,null,null,null,null,null,null,null,null,null,null,null,null,null,null,null,null,null,null,null,null,null,null,null,null,null,null,null,null,null,null,null,null,null,null,null,null,null,350]
[null,null,null,null,null,0,351,"QC code of #0350",null,null,null,null,null,null,null,null,null,null,null,null,null,null,null,null,null,null,null,null,null,null,null,null,null,null,null,null,null,null,null,null,null,null,null,null,null,null,null,352]
[null,null,null,null,null,0,353,"QC code of #0352",null,null,null,null,null,null,null,null,null,null,null,null,null,null,null,null,null,null,null,null,null,null,null,null,null,null,null,null,null,null,null,null,null,null,null,null,null,null,null,354]
[null,null,null,null,null,0,355,"QC code of #0354",null,null,null,null,null,null,null,null,null,null,null,null,null,null,null,null,null,null,null,null,null,null,null,null,null,null,null,null,null,null,null,null,null,null,null,null,null,null,null,356]
[null,null,null,null,null,0,357,"QC code of #0356",null,null,null,null,null,null,null,null,null,null,null,null,null,null,null,null,null,null,null,null,null,null,null,null,null,null,null,null,null,null,null,null,null,null,null,null,null,null,null,358]
[null,null,null,null,null,0,359,"QC code of #0358",null,null,null,null,null,null,null,null,null,null,null,null,null,null,null,null,null,null,null,null,null,null,null,null,null,null,null,null,null,null,null,null,null,null,null,null,null,null,null,360]
[null,null,null,null,null,0,361,"QC code of #0360",null,null,null,null,null,null,null,null,null,null,null,null,null,null,null,null,null,null,null,null,null,null,null,null,null,null,null,null,null,null,null,null,null,null,null,null,null,null,null,362]
[null,null,null,null,null,0,363,"QC code of #0362",null,null,null,null,null,null,null,null,null,null,null,null,null,null,null,null,null,null,null,null,null,null,null,null,null,null,null,null,null,null,null,null,null,null,null,null,null,null,null,364]
[null,null,null,null,null,0,365,"QC code of #0364",null,null,null,null,null,null,null,null,null,null,null,null,null,null,null,null,null,null,null,null,null,null,null,null,null,null,null,null,null,null,null,null,null,null,null,null,null,null,null,366]
[null,null,null,null,null,0,367,"QC code of #0366",null,null,null,null,null,null,null,null,null,null,null,null,null,null,null,null,null,null,null,null,null,null,null,null,null,null,null,null,null,null,null,null,null,null,null,null,null,null,null,368]
[null,null,null,null,null,0,369,"QC code of #0368",null,null,null,null,null,null,null,null,null,null,null,null,null,null,null,null,null,null,null,null,null,null,null,null,null,null,null,null,null,null,null,null,null,null,null,null,null,null,null,370]
[null,null,null,null,null,0,371,"QC code of #0370",null,null,null,null,null,null,null,null,null,null,null,null,null,null,null,null,null,null,null,null,null,null,null,null,null,null,null,null,null,null,null,null,null,null,null,null,null,null,null,372]
[null,null,null,null,null,0,373,"QC code of #0372",null,null,null,null,null,null,null,null,null,null,null,null,null,null,null,null,null,null,null,null,null,null,null,null,null,null,null,null,null,null,null,null,null,null,null,null,null,null,null,374]
[null,null,null,null,null,0,375,"QC code of #0374",null,null,null,null,null,null,null,null,null,null,null,null,null,null,null,null,null,null,null,null,null,null,null,null,null,null,null,null,null,null,null,null,null,null,null,null,null,null,null,376]
[null,null,null,null,null,0,377,"QC code of #0376",null,null,null,null,null,null,null,null,null,null,null,null,null,null,null,null,null,null,null,null,null,null,null,null,null,null,null,null,null,null,null,null,null,null,null,null,null,null,null,378]
[null,null,null,null,null,0,379,"QC code of #0378",null,null,null,null,null,null,null,null,null,null,null,null,null,null,null,null,null,null,null,null,null,null,null,null,null,null,null,null,null,null,null,null,null,null,null,null,null,null,null,380]
[null,null,null,null,null,0,381,"QC code of #0380",null,null,null,null,null,null,null,null,null,null,null,null,null,null,null,null,null,null,null,null,null,null,null,null,null,null,null,null,null,null,null,null,null,null,null,null,null,null,null,382]
[null,null,null,null,null,0,383,"QC code of #0382",null,null,null,null,null,null,null,null,null,null,null,null,null,null,null,null,null,null,null,null,null,null,null,null,null,null,null,null,null,null,null,null,null,null,null,null,null,null,null,384]
[null,null,null,null,null,0,385,"QC code of #0384",null,null,null,null,null,null,null,null,null,null,null,null,null,null,null,null,null,null,null,null,null,null,null,null,null,null,null,null,null,null,null,null,null,null,null,null,null,null,null,386]
[null,null,null,null,null,0,387,"QC code of #0386",null,null,null,null,null,null,null,null,null,null,null,null,null,null,null,null,null,null,null,null,null,null,null,null,null,null,null,null,null,null,null,null,null,null,null,null,null,null,null,388]
[null,null,null,null,null,0,389,"QC code of #0388",null,null,null,null,null,null,null,null,null,null,null,null,null,null,null,null,null,null,null,null,null,null,null,null,null,null,null,null,null,null,null,null,null,null,null,null,null,null,null,390]
[null,null,null,null,null,0,391,"QC code of #0390",null,null,null,null,null,null,null,null,null,null,null,null,null,null,null,null,null,null,null,null,null,null,null,null,null,null,null,null,null,null,null,null,null,null,null,null,null,null,null,392]
[null,null,null,null,null,0,393,"QC code of #0392",null,null,null,null,null,null,null,null,null,null,null,null,null,null,null,null,null,null,null,null,null,null,null,null,null,null,null,null,null,null,null,null,null,null,null,null,null,null,null,394]
[null,null,null,null,null,0,395,"QC code of #0394",null,null,null,null,null,null,null,null,null,null,null,null,null,null,null,null,null,null,null,null,null,null,null,null,null,null,null,null,null,null,null,null,null,null,null,null,null,null,null,396]
[null,null,null,null,null,0,397,"QC code of #0396",null,null,null,null,null,null,null,null,null,null,null,null,null,null,null,null,null,null,null,null,null,null,null,null,null,null,null,null,null,null,null,null,null,null,null,null,null,null,null,398]
[null,null,null,null,null,0,399,"QC code of #0398",null,null,null,null,null,null,null,null,null,null,null,null,null,null,null,null,null,null,null,null,null,null,null,null,null,null,null,null,null,null,null,null,null,null,null,null,null,null,null,400]
[null,null,null,null,null,0,401,"QC code of #0400",null,null,null,null,null,null,null,null,null,null,null,null,null,null,null,null,null,null,null,null,null,null,null,null,null,null,null,null,null,null,null,null,null,null,null,null,null,null,null,402]
[null,null,null,null,null,0,403,"QC code of #0402",null,null,null,null,null,null,null,null,null,null,null,null,null,null,null,null,null,null,null,null,null,null,null,null,null,null,null,null,null,null,null,null,null,null,null,null,null,null,null,404]
[null,null,null,null,null,0,405,"QC code of #0404",null,null,null,null,null,null,null,null,null,null,null,null,null,null,null,null,null,null,null,null,null,null,null,null,null,null,null,null,null,null,null,null,null,null,null,null,null,null,null,406]
[null,null,null,null,null,0,407,"QC code of #0406",null,null,null,null,null,null,null,null,null,null,null,null,null,null,null,null,null,null,null,null,null,null,null,null,null,null,null,null,null,null,null,null,null,null,null,null,null,null,null,408]
[null,null,null,null,null,0,409,"QC code of #0408",null,null,null,null,null,null,null,null,null,null,null,null,null,null,null,null,null,null,null,null,null,null,null,null,null,null,null,null,null,null,null,null,null,null,null,null,null,null,null,410]
[null,null,null,null,null,0,411,"QC code of #0410",null,null,null,null,null,null,null,null,null,null,null,null,null,null,null,null,null,null,null,null,null,null,null,null,null,null,null,null,null,null,null,null,null,null,null,null,null,null,null,412]
[null,null,null,null,null,0,413,"QC code of #0412",null,null,null,null,null,null,null,null,null,null,null,null,null,null,null,null,null,null,null,null,null,null,null,null,null,null,null,null,null,null,null,null,null,null,null,null,null,null,null,414]
[null,null,null,null,null,0,415,"QC code of #0414",null,null,null,null,null,null,null,null,null,null,null,null,null,null,null,null,null,null,null,null,null,null,null,null,null,null,null,null,null,null,null,null,null,null,null,null,null,null,null,416]
[null,null,null,null,null,0,417,"QC code of #0416"]